Body Name,Body,Service Division Label,Service Division Code,Organisational Unit,Expenditure Category,Expenditure Code,CIPFA detailed expediture type,CIPFA detailed expediture code,Narrative,Date,Transaction number,Net Amount,Capital and Revenue,Supplier Name,Supplier ID,,
Chorley Borough Council,http://statistics.data.gov.uk/id/local-authority/30UE,Democratic Represent and  Mgnt,1007,GOVN - Policy & Governance,Grants To Other Organisations,40127,Grants and Subscriptions,5031,grant,09/03/2022,0165653,300.00,Revenue,2nd Adlington St Paul`s Guides,77506,,
Chorley Borough Council,http://statistics.data.gov.uk/id/local-authority/30UE,Central Support Services,1009,CUST - Customer & Digital,Telephones - Other,40085,Communication and Computing,5028,Adept Telecom - December 2021,16/03/2022,0160768,"4,021.36",Revenue,Adept Telecom PLC,77452,,
Chorley Borough Council,http://statistics.data.gov.uk/id/local-authority/30UE,Central Support Services,1009,CUST - Customer & Digital,Telephones - Other,40085,Communication and Computing,5028,Adept Telecom - February 2022,16/03/2022,0165073,"1,806.72",Revenue,Adept Telecom PLC,77452,,
Chorley Borough Council,http://statistics.data.gov.uk/id/local-authority/30UE,Capital,Capital,GROW - Commercial & Property,Main Contractor,03007,Capital Expenditure,Capital,"Additional fees associated with the Contractor SKE&T, Assessments and inclusion of the cottage roof and extension",30/03/2022,0166493,"2,265.00",Capital,Aegis Services Ltd,80556,,
Chorley Borough Council,http://statistics.data.gov.uk/id/local-authority/30UE,Homelessness,1075,EARL - Communities,Bed and Breakfast Accommodation,40232,Miscellaneous Expenses,5034,Ongoing Costs for B&B accommodation,02/03/2022,0165209,480.00,Revenue,AG Spot (Chorley) Limited t/a Plaza Hotel Chorley,84640,,
Chorley Borough Council,http://statistics.data.gov.uk/id/local-authority/30UE,Homelessness,1075,EARL - Communities,Bed and Breakfast Accommodation,40232,Miscellaneous Expenses,5034,Ongoing Costs for B&B accommodation,16/03/2022,0165303,360.00,Revenue,AG Spot (Chorley) Limited t/a Plaza Hotel Chorley,84640,,
Chorley Borough Council,http://statistics.data.gov.uk/id/local-authority/30UE,Homelessness,1075,EARL - Communities,Bed and Breakfast Accommodation,40232,Miscellaneous Expenses,5034,Ongoing Costs for B&B accommodation,16/03/2022,0165370,360.00,Revenue,AG Spot (Chorley) Limited t/a Plaza Hotel Chorley,84640,,
Chorley Borough Council,http://statistics.data.gov.uk/id/local-authority/30UE,Homelessness,1075,EARL - Communities,Bed and Breakfast Accommodation,40232,Miscellaneous Expenses,5034,Ongoing Costs for B&B accommodation,16/03/2022,0165672,480.00,Revenue,AG Spot (Chorley) Limited t/a Plaza Hotel Chorley,84640,,
Chorley Borough Council,http://statistics.data.gov.uk/id/local-authority/30UE,Economic Development,1096,PLAN - Planning & Development,Exhibitions & Special Events,40158,Miscellaneous Expenses,5034,Delivery of 5 Business Support Webinars for Choose Chorley/ Digital Creative,28/03/2022,0166320,"1,250.00",Revenue,Alex McCann - Altrincham HQ,81286,,
Chorley Borough Council,http://statistics.data.gov.uk/id/local-authority/30UE,Central Support Services,1009,CUST - Customer & Digital,Bank Charges,40151,Miscellaneous Expenses,5034,add ac fee,16/03/2022,0165712,10.00,Revenue,Allpay Net Ltd,17242,,
Chorley Borough Council,http://statistics.data.gov.uk/id/local-authority/30UE,Central Support Services,1009,CUST - Customer & Digital,Bank Charges,40151,Miscellaneous Expenses,5034,post office,16/03/2022,0165712,184.46,Revenue,Allpay Net Ltd,17242,,
Chorley Borough Council,http://statistics.data.gov.uk/id/local-authority/30UE,Central Support Services,1009,CUST - Customer & Digital,Bank Charges,40151,Miscellaneous Expenses,5034,paypoint,16/03/2022,0165712,101.16,Revenue,Allpay Net Ltd,17242,,
Chorley Borough Council,http://statistics.data.gov.uk/id/local-authority/30UE,Central Support Services,1009,CUST - Customer & Digital,Bank Charges,40151,Miscellaneous Expenses,5034,webcon,16/03/2022,0165712,46.00,Revenue,Allpay Net Ltd,17242,,
Chorley Borough Council,http://statistics.data.gov.uk/id/local-authority/30UE,Central Support Services,1009,EARL - Communities,External Contractor,40198,Miscellaneous Expenses,5034,Pest Control Contract,02/03/2022,0165104,"2,896.66",Revenue,ALPHA PEST CONTROL LIMITED,18208,,
Chorley Borough Council,http://statistics.data.gov.uk/id/local-authority/30UE,Central Support Services,1009,EARL - Communities,External Contractor,40198,Miscellaneous Expenses,5034,Pest Control Contract,02/03/2022,0165216,"1,411.83",Revenue,ALPHA PEST CONTROL LIMITED,18208,,
Chorley Borough Council,http://statistics.data.gov.uk/id/local-authority/30UE,Central Support Services,1009,EARL - Communities,External Contractor,40198,Miscellaneous Expenses,5034,Pest Control Contract,02/03/2022,0165480,"2,425.07",Revenue,ALPHA PEST CONTROL LIMITED,18208,,
Chorley Borough Council,http://statistics.data.gov.uk/id/local-authority/30UE,Central Support Services,1009,EARL - Communities,External Contractor,40198,Miscellaneous Expenses,5034,Pest Control Contract,30/03/2022,0166024,"2,409.38",Revenue,ALPHA PEST CONTROL LIMITED,18208,,
Chorley Borough Council,http://statistics.data.gov.uk/id/local-authority/30UE,Culture & Heritage,1036,GOVN - Policy & Governance,Pest Control,20039,Cleaning and Domestic Supplies,5012,Invoice 78942 - Astley Hall pigeon cull - 21st Dec 283.50,28/03/2022,0166222,283.50,Revenue,ALPHA PEST CONTROL LIMITED,18208,,
Chorley Borough Council,http://statistics.data.gov.uk/id/local-authority/30UE,Culture & Heritage,1036,GOVN - Policy & Governance,Pest Control,20039,Cleaning and Domestic Supplies,5012,Invoice 78944 - Astley Hall pigeon cull - 13th Jan 283.50,28/03/2022,0166223,283.50,Revenue,ALPHA PEST CONTROL LIMITED,18208,,
Chorley Borough Council,http://statistics.data.gov.uk/id/local-authority/30UE,Culture & Heritage,1036,GOVN - Policy & Governance,Pest Control,20039,Cleaning and Domestic Supplies,5012,Invoice 78945 - Astley Hall pigeon cull - 27th Jan 283.50,28/03/2022,0166224,283.50,Revenue,ALPHA PEST CONTROL LIMITED,18208,,
Chorley Borough Council,http://statistics.data.gov.uk/id/local-authority/30UE,Central Support Services,1009,EARL - Communities,External Contractor,40198,Miscellaneous Expenses,5034,Pest Control Contract,30/03/2022,0166329,"3,103.50",Revenue,ALPHA PEST CONTROL LIMITED,18208,,
Chorley Borough Council,http://statistics.data.gov.uk/id/local-authority/30UE,Central Support Services,1009,EARL - Communities,External Contractor,40198,Miscellaneous Expenses,5034,Pest Control Contract,30/03/2022,0166330,673.18,Revenue,ALPHA PEST CONTROL LIMITED,18208,,
Chorley Borough Council,http://statistics.data.gov.uk/id/local-authority/30UE,Development Control,1091,GOVN - Policy & Governance,Car Leasing Payment,14100,Direct Employee Expenses,5001,VIN REDACTED,16/03/2022,0165760,250.79,Revenue,Alphabet (Uk) Fleet Management Ltd,16651,,
Chorley Borough Council,http://statistics.data.gov.uk/id/local-authority/30UE,Development Control,1091,GOVN - Policy & Governance,Car Leasing Payment,14100,Direct Employee Expenses,5001,VAT,16/03/2022,0165760,21.23,Revenue,Alphabet (Uk) Fleet Management Ltd,16651,,
Chorley Borough Council,http://statistics.data.gov.uk/id/local-authority/30UE,Control Accounts,Control,GOVN - Policy & Governance,Manual Control Account,00001,Balance Sheet,Balance,- VAT,16/03/2022,0165760,-21.23,Revenue,Alphabet (Uk) Fleet Management Ltd,16651,,
Chorley Borough Council,http://statistics.data.gov.uk/id/local-authority/30UE,Capital,Capital,EARL - Communities,Main Contractor,03007,Capital Expenditure,Capital,Installation of lighting at Astley park - main contractor,16/03/2022,0165742,"28,902.13",Capital,Altitude Services Ltd,77719,,
Chorley Borough Council,http://statistics.data.gov.uk/id/local-authority/30UE,Business Support,1095,GROW - Commercial & Property,Planned Maintenance,20006,Repairs Maintenance & Alts,5005,"Primrose Gardens, Install door access to kitchen door along with interface to the sites fire alarm system.",02/03/2022,0165449,"2,416.74",Revenue,Amalgamated Ltd,78289,,
Chorley Borough Council,http://statistics.data.gov.uk/id/local-authority/30UE,Central Support Services,1009,GROW - Commercial & Property,Planned Maintenance,20006,Repairs Maintenance & Alts,5005,"inv 110348, Union St, Action 1 Completion Date: 14/01/22 @ 11:00:00 Gas Systems Maintenance Charge - Room Integrity Test",02/03/2022,0165512,400.40,Revenue,Amalgamated Ltd,78289,,
Chorley Borough Council,http://statistics.data.gov.uk/id/local-authority/30UE,Business Support,1095,GROW - Commercial & Property,Planned Maintenance,20006,Repairs Maintenance & Alts,5005,"Primrose Gardens, Install door access to external gate along with interface to the sites fire alarm system.",02/03/2022,0165530,"2,598.01",Revenue,Amalgamated Ltd,78289,,
Chorley Borough Council,http://statistics.data.gov.uk/id/local-authority/30UE,Central Support Services,1009,GROW - Commercial & Property,General Repairs - Reactive,20004,Repairs Maintenance & Alts,5005,All Seasons - Reactive,02/03/2022,0165540,366.46,Revenue,Amalgamated Ltd,78289,,
Chorley Borough Council,http://statistics.data.gov.uk/id/local-authority/30UE,Central Support Services,1009,GROW - Commercial & Property,General Repairs - Reactive,20004,Repairs Maintenance & Alts,5005,Primrose Gardens - reactive repair works,02/03/2022,0165543,348.75,Revenue,Amalgamated Ltd,78289,,
Chorley Borough Council,http://statistics.data.gov.uk/id/local-authority/30UE,Central Support Services,1009,GROW - Commercial & Property,General Repairs - Reactive,20004,Repairs Maintenance & Alts,5005,Cotswold House - reactive repair works,02/03/2022,0165551,326.70,Revenue,Amalgamated Ltd,78289,,
Chorley Borough Council,http://statistics.data.gov.uk/id/local-authority/30UE,Central Support Services,1009,CUST - Customer & Digital,Computer Software-Additional,40102,Communication and Computing,5028,Amazon AWS web services - 718576685325 Cloud charges February 2022,02/03/2022,0165072,"4,262.63",Revenue,Amazon Web Services EMEA SARL,80604,,
Chorley Borough Council,http://statistics.data.gov.uk/id/local-authority/30UE,Business Support,1095,PLAN - Planning & Development,Grants To Other Organisations,40127,Grants and Subscriptions,5031,Shop fron Grant 109 Market Street,28/03/2022,0166553,"3,581.25",Revenue,NAME REDACTED,84625,,
Chorley Borough Council,http://statistics.data.gov.uk/id/local-authority/30UE,Central Support Services,1009,EARL - Communities,Impounded Dogs Costs,40207,Miscellaneous Expenses,5034,Stray dogs kennelling retainer,02/03/2022,0165506,320.00,Revenue,Animal Wardens Ltd,80965,,
Chorley Borough Council,http://statistics.data.gov.uk/id/local-authority/30UE,Central Support Services,1009,GOVN - Policy & Governance,IT Software - Annual Licences,40101,Communication and Computing,5028,"APT BACS iConnect Hosted Site Licence, Annual charge for software maintenance commencing April 2022, As per agreement",30/03/2022,0166091,"1,924.00",Revenue,APT,17305,,
Chorley Borough Council,http://statistics.data.gov.uk/id/local-authority/30UE,Corporate Management,1008,GOVN - Policy & Governance,Car Leasing Payment,14100,Direct Employee Expenses,5001,VIN REDACTED,02/03/2022,0165481,"2,143.68",Revenue,Arnold Clark Finance Ltd,20685,,
Chorley Borough Council,http://statistics.data.gov.uk/id/local-authority/30UE,Corporate Management,1008,GOVN - Policy & Governance,Car Leasing Payment,14100,Direct Employee Expenses,5001,vat,02/03/2022,0165481,231.27,Revenue,Arnold Clark Finance Ltd,20685,,
Chorley Borough Council,http://statistics.data.gov.uk/id/local-authority/30UE,Control Accounts,Control,GOVN - Policy & Governance,Manual Control Account,00001,Balance Sheet,Balance,-vat,02/03/2022,0165481,-231.27,Revenue,Arnold Clark Finance Ltd,20685,,
Chorley Borough Council,http://statistics.data.gov.uk/id/local-authority/30UE,Culture & Heritage,1036,GOVN - Policy & Governance,Car Leasing Payment,14100,Direct Employee Expenses,5001,VIN REDACTED,23/03/2022,0165994,251.97,Revenue,Arnold Clark Finance Ltd,20685,,
Chorley Borough Council,http://statistics.data.gov.uk/id/local-authority/30UE,Culture & Heritage,1036,GOVN - Policy & Governance,Car Leasing Payment,14100,Direct Employee Expenses,5001,vat,23/03/2022,0165994,22.14,Revenue,Arnold Clark Finance Ltd,20685,,
Chorley Borough Council,http://statistics.data.gov.uk/id/local-authority/30UE,Control Accounts,Control,GOVN - Policy & Governance,Manual Control Account,00001,Balance Sheet,Balance,-vat,23/03/2022,0165994,-22.14,Revenue,Arnold Clark Finance Ltd,20685,,
Chorley Borough Council,http://statistics.data.gov.uk/id/local-authority/30UE,Development Control,1091,GOVN - Policy & Governance,Car Leasing Payment,14100,Direct Employee Expenses,5001,VIN REDACTED,23/03/2022,0165994,291.22,Revenue,Arnold Clark Finance Ltd,20685,,
Chorley Borough Council,http://statistics.data.gov.uk/id/local-authority/30UE,Development Control,1091,GOVN - Policy & Governance,Car Leasing Payment,14100,Direct Employee Expenses,5001,vat,23/03/2022,0165994,24.73,Revenue,Arnold Clark Finance Ltd,20685,,
Chorley Borough Council,http://statistics.data.gov.uk/id/local-authority/30UE,Control Accounts,Control,GOVN - Policy & Governance,Manual Control Account,00001,Balance Sheet,Balance,-vat,23/03/2022,0165994,-24.73,Revenue,Arnold Clark Finance Ltd,20685,,
Chorley Borough Council,http://statistics.data.gov.uk/id/local-authority/30UE,Culture & Heritage,1036,GOVN - Policy & Governance,Car Leasing Payment,14100,Direct Employee Expenses,5001,VIN REDACTED,23/03/2022,0165995,318.20,Revenue,Arnold Clark Finance Ltd,20685,,
Chorley Borough Council,http://statistics.data.gov.uk/id/local-authority/30UE,Culture & Heritage,1036,GOVN - Policy & Governance,Car Leasing Payment,14100,Direct Employee Expenses,5001,vat,23/03/2022,0165995,27.95,Revenue,Arnold Clark Finance Ltd,20685,,
Chorley Borough Council,http://statistics.data.gov.uk/id/local-authority/30UE,Control Accounts,Control,GOVN - Policy & Governance,Manual Control Account,00001,Balance Sheet,Balance,-vat,23/03/2022,0165995,-27.95,Revenue,Arnold Clark Finance Ltd,20685,,
Chorley Borough Council,http://statistics.data.gov.uk/id/local-authority/30UE,Central Support Services,1009,GOVN - Policy & Governance,Car Leasing Payment,14100,Direct Employee Expenses,5001,VIN REDACTED,23/03/2022,0165996,"2,143.68",Revenue,Arnold Clark Finance Ltd,20685,,
Chorley Borough Council,http://statistics.data.gov.uk/id/local-authority/30UE,Central Support Services,1009,GOVN - Policy & Governance,Car Leasing Payment,14100,Direct Employee Expenses,5001,vat,23/03/2022,0165996,186.07,Revenue,Arnold Clark Finance Ltd,20685,,
Chorley Borough Council,http://statistics.data.gov.uk/id/local-authority/30UE,Control Accounts,Control,GOVN - Policy & Governance,Manual Control Account,00001,Balance Sheet,Balance,-vat,23/03/2022,0165996,-186.07,Revenue,Arnold Clark Finance Ltd,20685,,
Chorley Borough Council,http://statistics.data.gov.uk/id/local-authority/30UE,Planning Policy,1092,GOVN - Policy & Governance,Car Leasing Payment,14100,Direct Employee Expenses,5001,VIN REDACTED,30/03/2022,0166552,"2,252.04",Revenue,Arnold Clark Finance Ltd,20685,,
Chorley Borough Council,http://statistics.data.gov.uk/id/local-authority/30UE,Planning Policy,1092,GOVN - Policy & Governance,Car Leasing Payment,14100,Direct Employee Expenses,5001,VAT,30/03/2022,0166552,193.48,Revenue,Arnold Clark Finance Ltd,20685,,
Chorley Borough Council,http://statistics.data.gov.uk/id/local-authority/30UE,Control Accounts,Control,GOVN - Policy & Governance,Manual Control Account,00001,Balance Sheet,Balance,- VAT,30/03/2022,0166552,-193.48,Revenue,Arnold Clark Finance Ltd,20685,,
Chorley Borough Council,http://statistics.data.gov.uk/id/local-authority/30UE,Central Support Services,1009,GOVN - Policy & Governance,Car Leasing Payment,14100,Direct Employee Expenses,5001,"Driver: NAME REDACTED, Car Spec: MERCEDES-BENZ A CLASS - A180d SE 5dr, 10,000 miles, Hatchback",16/03/2022,0165747,"2,913.38",Revenue,Arval UK Ltd,18240,,
Chorley Borough Council,http://statistics.data.gov.uk/id/local-authority/30UE,Central Support Services,1009,GOVN - Policy & Governance,Car Leasing Payment,14100,Direct Employee Expenses,5001,VAT,16/03/2022,0165747,251.15,Revenue,Arval UK Ltd,18240,,
Chorley Borough Council,http://statistics.data.gov.uk/id/local-authority/30UE,Control Accounts,Control,GOVN - Policy & Governance,Manual Control Account,00001,Balance Sheet,Balance,- VAT,16/03/2022,0165747,-251.15,Revenue,Arval UK Ltd,18240,,
Chorley Borough Council,http://statistics.data.gov.uk/id/local-authority/30UE,Central Support Services,1009,GOVN - Policy & Governance,Car Leasing Payment,14100,Direct Employee Expenses,5001,VIN REDACTED,16/03/2022,0165761,-217.96,Revenue,Arval UK Ltd,18240,,
Chorley Borough Council,http://statistics.data.gov.uk/id/local-authority/30UE,Central Support Services,1009,GOVN - Policy & Governance,Car Leasing Payment,14100,Direct Employee Expenses,5001,VAT,16/03/2022,0165761,-18.31,Revenue,Arval UK Ltd,18240,,
Chorley Borough Council,http://statistics.data.gov.uk/id/local-authority/30UE,Control Accounts,Control,GOVN - Policy & Governance,Manual Control Account,00001,Balance Sheet,Balance,VAT,16/03/2022,0165761,18.31,Revenue,Arval UK Ltd,18240,,
Chorley Borough Council,http://statistics.data.gov.uk/id/local-authority/30UE,Central Support Services,1009,GOVN - Policy & Governance,Car Leasing Payment,14100,Direct Employee Expenses,5001,VIN REDACTED,16/03/2022,0165761,"2,902.89",Revenue,Arval UK Ltd,18240,,
Chorley Borough Council,http://statistics.data.gov.uk/id/local-authority/30UE,Central Support Services,1009,GOVN - Policy & Governance,Car Leasing Payment,14100,Direct Employee Expenses,5001,VAT,16/03/2022,0165761,255.71,Revenue,Arval UK Ltd,18240,,
Chorley Borough Council,http://statistics.data.gov.uk/id/local-authority/30UE,Control Accounts,Control,GOVN - Policy & Governance,Manual Control Account,00001,Balance Sheet,Balance,- VAT,16/03/2022,0165761,-255.71,Revenue,Arval UK Ltd,18240,,
Chorley Borough Council,http://statistics.data.gov.uk/id/local-authority/30UE,Central Support Services,1009,GOVN - Policy & Governance,Car Leasing Payment,14100,Direct Employee Expenses,5001,VIN REDACTED,23/03/2022,0165765,"1,792.62",Revenue,Arval UK Ltd,18240,,
Chorley Borough Council,http://statistics.data.gov.uk/id/local-authority/30UE,Central Support Services,1009,GOVN - Policy & Governance,Car Leasing Payment,14100,Direct Employee Expenses,5001,vat,23/03/2022,0165765,174.47,Revenue,Arval UK Ltd,18240,,
Chorley Borough Council,http://statistics.data.gov.uk/id/local-authority/30UE,Control Accounts,Control,GOVN - Policy & Governance,Manual Control Account,00001,Balance Sheet,Balance,-vat,23/03/2022,0165765,-174.47,Revenue,Arval UK Ltd,18240,,
Chorley Borough Council,http://statistics.data.gov.uk/id/local-authority/30UE,Central Support Services,1009,GOVN - Policy & Governance,Car Leasing Payment,14100,Direct Employee Expenses,5001,VIN REDACTED,23/03/2022,0165766,"4,009.12",Revenue,Arval UK Ltd,18240,,
Chorley Borough Council,http://statistics.data.gov.uk/id/local-authority/30UE,Central Support Services,1009,GOVN - Policy & Governance,Car Leasing Payment,14100,Direct Employee Expenses,5001,vat,23/03/2022,0165766,343.66,Revenue,Arval UK Ltd,18240,,
Chorley Borough Council,http://statistics.data.gov.uk/id/local-authority/30UE,Control Accounts,Control,GOVN - Policy & Governance,Manual Control Account,00001,Balance Sheet,Balance,-vat,23/03/2022,0165766,-343.66,Revenue,Arval UK Ltd,18240,,
Chorley Borough Council,http://statistics.data.gov.uk/id/local-authority/30UE,Central Support Services,1009,GOVN - Policy & Governance,Car Leasing Payment,14100,Direct Employee Expenses,5001,VIN REDACTED,23/03/2022,0165768,217.96,Revenue,Arval UK Ltd,18240,,
Chorley Borough Council,http://statistics.data.gov.uk/id/local-authority/30UE,Central Support Services,1009,GOVN - Policy & Governance,Car Leasing Payment,14100,Direct Employee Expenses,5001,vat,23/03/2022,0165768,18.31,Revenue,Arval UK Ltd,18240,,
Chorley Borough Council,http://statistics.data.gov.uk/id/local-authority/30UE,Control Accounts,Control,GOVN - Policy & Governance,Manual Control Account,00001,Balance Sheet,Balance,-vat,23/03/2022,0165768,-18.31,Revenue,Arval UK Ltd,18240,,
Chorley Borough Council,http://statistics.data.gov.uk/id/local-authority/30UE,Central Support Services,1009,GOVN - Policy & Governance,Car Leasing Payment,14100,Direct Employee Expenses,5001,VIN REDACTED,23/03/2022,0165768,"3,426.76",Revenue,Arval UK Ltd,18240,,
Chorley Borough Council,http://statistics.data.gov.uk/id/local-authority/30UE,Central Support Services,1009,GOVN - Policy & Governance,Car Leasing Payment,14100,Direct Employee Expenses,5001,vat,23/03/2022,0165768,309.14,Revenue,Arval UK Ltd,18240,,
Chorley Borough Council,http://statistics.data.gov.uk/id/local-authority/30UE,Control Accounts,Control,GOVN - Policy & Governance,Manual Control Account,00001,Balance Sheet,Balance,-vat,23/03/2022,0165768,-309.14,Revenue,Arval UK Ltd,18240,,
Chorley Borough Council,http://statistics.data.gov.uk/id/local-authority/30UE,Central Support Services,1009,GOVN - Policy & Governance,Car Leasing Payment,14100,Direct Employee Expenses,5001,"Driver: NAME REDACTED, Car Spec: AUDI Q2 - 35 TFSI Sport, Period: 3 Years, 11,000 miles, Estate, Transmission: Manual",30/03/2022,0166452,"3,481.94",Revenue,Arval UK Ltd,18240,,
Chorley Borough Council,http://statistics.data.gov.uk/id/local-authority/30UE,Central Support Services,1009,GOVN - Policy & Governance,Car Leasing Payment,14100,Direct Employee Expenses,5001,VAT,30/03/2022,0166452,311.18,Revenue,Arval UK Ltd,18240,,
Chorley Borough Council,http://statistics.data.gov.uk/id/local-authority/30UE,Control Accounts,Control,GOVN - Policy & Governance,Manual Control Account,00001,Balance Sheet,Balance,- VAT,30/03/2022,0166452,-311.18,Revenue,Arval UK Ltd,18240,,
Chorley Borough Council,http://statistics.data.gov.uk/id/local-authority/30UE,Central Support Services,1009,GOVN - Policy & Governance,Car Leasing Payment,14100,Direct Employee Expenses,5001,VIN REDACTED,30/03/2022,0166551,334.10,Revenue,Arval UK Ltd,18240,,
Chorley Borough Council,http://statistics.data.gov.uk/id/local-authority/30UE,Central Support Services,1009,GOVN - Policy & Governance,Car Leasing Payment,14100,Direct Employee Expenses,5001,VAT,30/03/2022,0166551,28.63,Revenue,Arval UK Ltd,18240,,
Chorley Borough Council,http://statistics.data.gov.uk/id/local-authority/30UE,Control Accounts,Control,GOVN - Policy & Governance,Manual Control Account,00001,Balance Sheet,Balance,- VAT,30/03/2022,0166551,-28.63,Revenue,Arval UK Ltd,18240,,
Chorley Borough Council,http://statistics.data.gov.uk/id/local-authority/30UE,Democratic Represent and  Mgnt,1007,GOVN - Policy & Governance,Mayoral Hospitality,40123,Expenses,5030,"Provision of a fun casino at the Mayor's 007 Casino Royale Charity Ball in the Lancastrian at Chorley Town Hall, PR7 1DP",09/03/2022,0165401,700.00,Revenue,ATH Events T/A Pier Fun Casinos,84715,,
Chorley Borough Council,http://statistics.data.gov.uk/id/local-authority/30UE,Service Management & Support,1009,CUST - Customer & Digital,Vehicles and Plant Maintenance,30045,Direct Transport Costs,5016,"FL66 OTZ, Brake master cylinder, Rear brakes and pads, N/S caliper, o/s/r Caliper",23/03/2022,0166006,688.05,Revenue,Autofit,78140,,
Chorley Borough Council,http://statistics.data.gov.uk/id/local-authority/30UE,Corporate Management,1008,EARL - Communities,Grants To Other Organisations,40127,Grants and Subscriptions,5031,Housing support fund whites goods provision.,02/03/2022,0165310,"5,833.33",Revenue,Aztec Domestics,16214,,
Chorley Borough Council,http://statistics.data.gov.uk/id/local-authority/30UE,Service Management & Support,1009,CUST - Customer & Digital,Vehicles and Plant Maintenance,30045,Direct Transport Costs,5016,As per Pro-Forma No 117358,09/03/2022,0165504,485.66,Revenue,Balmers Garden Machinery,17075,,
Chorley Borough Council,http://statistics.data.gov.uk/id/local-authority/30UE,Service Management & Support,1009,CUST - Customer & Digital,Vehicles and Plant Maintenance,30045,Direct Transport Costs,5016,As per Pro-Forma No 117478,09/03/2022,0165505,335.00,Revenue,Balmers Garden Machinery,17075,,
Chorley Borough Council,http://statistics.data.gov.uk/id/local-authority/30UE,Service Management & Support,1009,CUST - Customer & Digital,Hire Of Vehicles and Plant,30028,Contrct Hire & Operating Lease,5018,As per submission to ITT invitation to Tender for contract hire with service and maintenance of Grounds Maintenance Machinery,09/03/2022,0165688,"1,242.40",Revenue,Balmers Garden Machinery,17075,,
Chorley Borough Council,http://statistics.data.gov.uk/id/local-authority/30UE,Capital,Capital,EARL - Communities,Grants,03002,Capital Expenditure,Capital,ADDRESS REDACTED,09/03/2022,0165651,"3,822.50",Capital,Bambers Building Contractors,84046,,
Chorley Borough Council,http://statistics.data.gov.uk/id/local-authority/30UE,Corporate Management,1008,GOVN - Policy & Governance,Bank Charges,40151,Miscellaneous Expenses,5034,Monthly charges,30/03/2022,0166544,217.00,Revenue,Barclaycard Merchant Services,61601,,
Chorley Borough Council,http://statistics.data.gov.uk/id/local-authority/30UE,Corporate Management,1008,GOVN - Policy & Governance,Bank Charges,40151,Miscellaneous Expenses,5034,Monthly charges,30/03/2022,0166544,100.03,Revenue,Barclaycard Merchant Services,61601,,
Chorley Borough Council,http://statistics.data.gov.uk/id/local-authority/30UE,Corporate Management,1008,GOVN - Policy & Governance,Bank Charges,40151,Miscellaneous Expenses,5034,monthly charges,30/03/2022,0166545,130.00,Revenue,Barclaycard Merchant Services,61601,,
Chorley Borough Council,http://statistics.data.gov.uk/id/local-authority/30UE,Corporate Management,1008,GOVN - Policy & Governance,Bank Charges,40151,Miscellaneous Expenses,5034,monthly charges,30/03/2022,0166545,"1,248.72",Revenue,Barclaycard Merchant Services,61601,,
Chorley Borough Council,http://statistics.data.gov.uk/id/local-authority/30UE,Corporate Management,1008,GOVN - Policy & Governance,Bank Charges,40151,Miscellaneous Expenses,5034,monthly charges,30/03/2022,0166546,839.26,Revenue,Barclaycard Merchant Services,61601,,
Chorley Borough Council,http://statistics.data.gov.uk/id/local-authority/30UE,Corporate Management,1008,GOVN - Policy & Governance,Bank Charges,40151,Miscellaneous Expenses,5034,monthly charge,30/03/2022,0166547,361.23,Revenue,Barclaycard Merchant Services,61601,,
Chorley Borough Council,http://statistics.data.gov.uk/id/local-authority/30UE,Development Control,1091,GOVN - Policy & Governance,Computer Software-Maintenance,40107,Communication and Computing,5028,Heritage Services from April 2021 to March 2022,28/03/2022,0165442,"3,739.80",Revenue,Blackburn with Darwen Borough Council,21000,,
Chorley Borough Council,http://statistics.data.gov.uk/id/local-authority/30UE,Central Support Services,1009,GOVN - Policy & Governance,HR Recruitment - Advertising,15300,Indirect Employee Expenses,5002,Invoice No 489742 - fees for NAMES REDACTED Jan-July 2020,30/03/2022,0166327,"4,781.25",Revenue,Blackburn with Darwen Borough Council,21000,,
Chorley Borough Council,http://statistics.data.gov.uk/id/local-authority/30UE,Business Support,1095,GROW - Commercial & Property,Christmas Lights,40179,Miscellaneous Expenses,5034,"Supply, erect, maintain, remove and store Christmas lights display for Market Walk Shopping Centre, Chorley as discussed",23/03/2022,0166049,"14,743.00",Revenue,Blackpool Borough Council,16518,,
Chorley Borough Council,http://statistics.data.gov.uk/id/local-authority/30UE,Economic Development,1096,GROW - Commercial & Property,Christmas Lights,40179,Miscellaneous Expenses,5034,"Supply, erect, maintain, remove and store Christmas lights display as discussed for Chorley Town  Centre 2021/22",23/03/2022,0166050,"21,364.56",Revenue,Blackpool Borough Council,16518,,
Chorley Borough Council,http://statistics.data.gov.uk/id/local-authority/30UE,Central Support Services,1009,GROW - Commercial & Property,General Repairs - Reactive,20004,Repairs Maintenance & Alts,5005,Bengal St Repairs to entry barrier after it was broken,28/03/2022,0166249,596.00,Revenue,Boundary Gate and Barrier Contracts Ltd,78225,,
Chorley Borough Council,http://statistics.data.gov.uk/id/local-authority/30UE,Central Support Services,1009,GROW - Commercial & Property,Planned Maintenance,20006,Repairs Maintenance & Alts,5005,"Brinscall Baths, Asbestos Management Survey Quotation to the entire building - see attached the existing floor plans.",28/03/2022,0166331,995.00,Revenue,Bradley Environmental Consultants Ltd,77154,,
Chorley Borough Council,http://statistics.data.gov.uk/id/local-authority/30UE,Business Support,1095,GROW - Commercial & Property,Electricity,20013,Energy Costs,5006,01/01/2 - 30/01/22,02/03/2022,0165459,294.58,Revenue,British Gas Business,22242,,
Chorley Borough Council,http://statistics.data.gov.uk/id/local-authority/30UE,Business Support,1095,GROW - Commercial & Property,Electricity,20013,Energy Costs,5006,29/01/22 - 28/02/22,28/03/2022,0166543,488.10,Revenue,British Gas Business,22242,,
Chorley Borough Council,http://statistics.data.gov.uk/id/local-authority/30UE,Central Support Services,1009,CUST - Customer & Digital,Telephones - Rentals,40083,Communication and Computing,5028,Analogue Legacy Rental,28/03/2022,0166542,"1,768.36",Revenue,BT Redcare,21115,,
Chorley Borough Council,http://statistics.data.gov.uk/id/local-authority/30UE,Capital,Capital,GROW - Commercial & Property,Main Contractor,03007,Capital Expenditure,Capital,Astley Hall Renovation / Conservation Project,02/03/2022,0165368,"13,751.95",Capital,Bullen Conservation Ltd,68424,,
Chorley Borough Council,http://statistics.data.gov.uk/id/local-authority/30UE,Democratic Represent and  Mgnt,1007,GOVN - Policy & Governance,Grants To Other Organisations,40127,Grants and Subscriptions,5031,grant,09/03/2022,0165650,300.00,Revenue,BWARA,84816,,
Chorley Borough Council,http://statistics.data.gov.uk/id/local-authority/30UE,Capital,Capital,GOVN - Policy & Governance,Other Contractor,03012,Capital Expenditure,Capital,"Costs for prototype display units for Astley Hall. Floor Standing Unit, Joinery, Print, Table Top Unit, Joinery, Print",16/03/2022,0165802,"2,470.60",Capital,BWD Limited,78590,,
Chorley Borough Council,http://statistics.data.gov.uk/id/local-authority/30UE,Capital,Capital,GOVN - Policy & Governance,Other Contractor,03012,Capital Expenditure,Capital,"Astley Hall interpretation fees. 3 Dimensional creative inputs, 2 Dimensional creative inputs, Project co-ordination, Flat day rate.",28/03/2022,0166200,"5,017.00",Capital,BWD Limited,78590,,
Chorley Borough Council,http://statistics.data.gov.uk/id/local-authority/30UE,Service Management & Support,1009,CUST - Customer & Digital,Supplies-Grounds Maintenance,40025,"Equipment, Furniture & Materia",5023,"Cover period up to 31/03/2022, Bengal St Depot - Empty yard catch pits each month, Empty yard interceptor every 3 months",09/03/2022,0164336,390.00,Revenue,C J Lyon,16579,,
Chorley Borough Council,http://statistics.data.gov.uk/id/local-authority/30UE,Service Management & Support,1009,CUST - Customer & Digital,Supplies-Grounds Maintenance,40025,"Equipment, Furniture & Materia",5023,"Cover period up to 31/03/2022, Bengal St Depot - Empty yard catch pits each month, Empty yard interceptor every 3 months",23/03/2022,0165682,720.00,Revenue,C J Lyon,16579,,
Chorley Borough Council,http://statistics.data.gov.uk/id/local-authority/30UE,Service Management & Support,1009,CUST - Customer & Digital,Supplies-Grounds Maintenance,40025,"Equipment, Furniture & Materia",5023,"Cover period up to 31/03/2022, Bengal St Depot - Empty yard catch pits each month, Empty yard interceptor every 3 months",23/03/2022,0165706,390.00,Revenue,C J Lyon,16579,,
Chorley Borough Council,http://statistics.data.gov.uk/id/local-authority/30UE,Service Management & Support,1009,CUST - Customer & Digital,Supplies-Grounds Maintenance,40025,"Equipment, Furniture & Materia",5023,"Cover period up to 31/03/2022, Bengal St Depot - Empty yard catch pits each month, Empty yard interceptor every 3 months",30/03/2022,0166189,390.00,Revenue,C J Lyon,16579,,
Chorley Borough Council,http://statistics.data.gov.uk/id/local-authority/30UE,Service Management & Support,1009,CUST - Customer & Digital,Supplies-Grounds Maintenance,40025,"Equipment, Furniture & Materia",5023,"Cover period up to 31/03/2022, Bengal St Depot - Empty yard catch pits each month, Empty yard interceptor every 3 months",30/03/2022,0166496,300.00,Revenue,C J Lyon,16579,,
Chorley Borough Council,http://statistics.data.gov.uk/id/local-authority/30UE,Homelessness,1075,EARL - Communities,Professional Fees,40063,Services,5027,Quarter 4 (January - March 2022) Provision of Accommodation Finding and Resettlement Support Service for Housing Solutions,28/03/2022,0166494,"7,286.50",Revenue,Calico Enterprise,73338,,
Chorley Borough Council,http://statistics.data.gov.uk/id/local-authority/30UE,Building Control,1090,PLAN - Planning & Development,Agency Staff,13000,Direct Employee Expenses,5001,Agency fees for Building Control Officer,28/03/2022,0165721,"1,326.00",Revenue,Carrington West Ltd,83124,,
Chorley Borough Council,http://statistics.data.gov.uk/id/local-authority/30UE,Building Control,1090,PLAN - Planning & Development,Agency Staff,13000,Direct Employee Expenses,5001,Agency fees for Building Control Officer,28/03/2022,0165722,"1,612.00",Revenue,Carrington West Ltd,83124,,
Chorley Borough Council,http://statistics.data.gov.uk/id/local-authority/30UE,Building Control,1090,PLAN - Planning & Development,Agency Staff,13000,Direct Employee Expenses,5001,Agency fees for Building Control Officer,28/03/2022,0165723,"1,690.00",Revenue,Carrington West Ltd,83124,,
Chorley Borough Council,http://statistics.data.gov.uk/id/local-authority/30UE,Building Control,1090,PLAN - Planning & Development,Agency Staff,13000,Direct Employee Expenses,5001,Agency fees for Building Control Officer,28/03/2022,0165727,"1,261.00",Revenue,Carrington West Ltd,83124,,
Chorley Borough Council,http://statistics.data.gov.uk/id/local-authority/30UE,Building Control,1090,PLAN - Planning & Development,Agency Staff,13000,Direct Employee Expenses,5001,Agency fees for Building Control Officer,28/03/2022,0165729,"1,612.00",Revenue,Carrington West Ltd,83124,,
Chorley Borough Council,http://statistics.data.gov.uk/id/local-authority/30UE,Building Control,1090,PLAN - Planning & Development,Agency Staff,13000,Direct Employee Expenses,5001,Agency fees for Building Control Officer,28/03/2022,0165731,"1,092.00",Revenue,Carrington West Ltd,83124,,
Chorley Borough Council,http://statistics.data.gov.uk/id/local-authority/30UE,Building Control,1090,PLAN - Planning & Development,Agency Staff,13000,Direct Employee Expenses,5001,Agency fees for Building Control Officer,28/03/2022,0166078,"1,716.00",Revenue,Carrington West Ltd,83124,,
Chorley Borough Council,http://statistics.data.gov.uk/id/local-authority/30UE,Building Control,1090,PLAN - Planning & Development,Agency Staff,13000,Direct Employee Expenses,5001,Agency fees for Building Control Officer,28/03/2022,0166079,"1,638.00",Revenue,Carrington West Ltd,83124,,
Chorley Borough Council,http://statistics.data.gov.uk/id/local-authority/30UE,Building Control,1090,PLAN - Planning & Development,Agency Staff,13000,Direct Employee Expenses,5001,Agency fees for Building Control Officer,28/03/2022,0166333,"1,560.00",Revenue,Carrington West Ltd,83124,,
Chorley Borough Council,http://statistics.data.gov.uk/id/local-authority/30UE,Building Control,1090,PLAN - Planning & Development,Agency Staff,13000,Direct Employee Expenses,5001,Agency fees for Building Control Officer - NAME REDACTED - ongoing contract,30/03/2022,0166337,"1,488.00",Revenue,Carrington West Ltd,83124,,
Chorley Borough Council,http://statistics.data.gov.uk/id/local-authority/30UE,Building Control,1090,PLAN - Planning & Development,Agency Staff,13000,Direct Employee Expenses,5001,Agency fees for Building Control Officer - NAME REDACTED - ongoing contract,30/03/2022,0166338,"1,608.00",Revenue,Carrington West Ltd,83124,,
Chorley Borough Council,http://statistics.data.gov.uk/id/local-authority/30UE,Building Control,1090,PLAN - Planning & Development,Agency Staff,13000,Direct Employee Expenses,5001,Agency fees for Building Control Officer - NAME REDACTED - ongoing contract,30/03/2022,0166339,"1,584.00",Revenue,Carrington West Ltd,83124,,
Chorley Borough Council,http://statistics.data.gov.uk/id/local-authority/30UE,Building Control,1090,PLAN - Planning & Development,Agency Staff,13000,Direct Employee Expenses,5001,Agency fees for Building Control Officer - NAME REDACTED - ongoing contract,30/03/2022,0166340,"1,488.00",Revenue,Carrington West Ltd,83124,,
Chorley Borough Council,http://statistics.data.gov.uk/id/local-authority/30UE,Building Control,1090,PLAN - Planning & Development,Agency Staff,13000,Direct Employee Expenses,5001,Agency fees for Building Control Officer - NAME REDACTED - ongoing contract,30/03/2022,0166341,"1,440.00",Revenue,Carrington West Ltd,83124,,
Chorley Borough Council,http://statistics.data.gov.uk/id/local-authority/30UE,Building Control,1090,PLAN - Planning & Development,Agency Staff,13000,Direct Employee Expenses,5001,Agency fees for Building Control Officer - NAME REDACTED - ongoing contract,30/03/2022,0166342,"1,164.00",Revenue,Carrington West Ltd,83124,,
Chorley Borough Council,http://statistics.data.gov.uk/id/local-authority/30UE,Building Control,1090,PLAN - Planning & Development,Agency Staff,13000,Direct Employee Expenses,5001,Agency fees for Building Control Officer - NAME REDACTED - ongoing contract,30/03/2022,0166343,"1,224.00",Revenue,Carrington West Ltd,83124,,
Chorley Borough Council,http://statistics.data.gov.uk/id/local-authority/30UE,Building Control,1090,PLAN - Planning & Development,Agency Staff,13000,Direct Employee Expenses,5001,Agency fees for Building Control Officer - NAME REDACTED - ongoing contract,30/03/2022,0166344,"1,512.00",Revenue,Carrington West Ltd,83124,,
Chorley Borough Council,http://statistics.data.gov.uk/id/local-authority/30UE,Building Control,1090,PLAN - Planning & Development,Agency Staff,13000,Direct Employee Expenses,5001,Agency fees for Building Control Officer - NAME REDACTED - ongoing contract,30/03/2022,0166345,"1,584.00",Revenue,Carrington West Ltd,83124,,
Chorley Borough Council,http://statistics.data.gov.uk/id/local-authority/30UE,Building Control,1090,PLAN - Planning & Development,Agency Staff,13000,Direct Employee Expenses,5001,Agency fees for Building Control Officer - NAME REDACTED - ongoing contract,30/03/2022,0166346,"1,008.00",Revenue,Carrington West Ltd,83124,,
Chorley Borough Council,http://statistics.data.gov.uk/id/local-authority/30UE,Corporate Management,1008,GOVN - Policy & Governance,Agency Staff,13000,Direct Employee Expenses,5001,NAME REDACTED,16/03/2022,0162464,"1,650.00",Revenue,Castlefield Recruitment Limited,80454,,
Chorley Borough Council,http://statistics.data.gov.uk/id/local-authority/30UE,Corporate Management,1008,GROW - Commercial & Property,Miscellaneous Expenses,40200,Miscellaneous Expenses,5034,"Town Hall, Emergency call out following covid outbreak (standalone visit), Deep sanitisation via electrostatic delivery.",02/03/2022,0165364,650.00,Revenue,Castus Solutions Limited,78812,,
Chorley Borough Council,http://statistics.data.gov.uk/id/local-authority/30UE,Parking Services,1066,GROW - Commercial & Property,External Contractors,50008,Private Contractors,5042,"Processing 075, 076, 077, 079, 080, 085, 086, MIPERMIT FEES, CHARGE, ELECPAYBANKFEE, Processing 010, 011",28/03/2022,0165738,441.72,Revenue,Chipside Ltd,22063,,
Chorley Borough Council,http://statistics.data.gov.uk/id/local-authority/30UE,Regulatory Services,1048,PLAN - Planning & Development,Taxi Testing & Vehicle Safety Report,40234,Services,5027,MOT,02/03/2022,0165291,"1,206.70",Revenue,Chorley Autocare Ltd,17110,,
Chorley Borough Council,http://statistics.data.gov.uk/id/local-authority/30UE,Regulatory Services,1048,PLAN - Planning & Development,Taxi Testing & Vehicle Safety Report,40234,Services,5027,Taxi test,02/03/2022,0165291,188.10,Revenue,Chorley Autocare Ltd,17110,,
Chorley Borough Council,http://statistics.data.gov.uk/id/local-authority/30UE,Regulatory Services,1048,PLAN - Planning & Development,Taxi Testing & Vehicle Safety Report,40234,Services,5027,MOT,28/03/2022,0166121,932.45,Revenue,Chorley Autocare Ltd,17110,,
Chorley Borough Council,http://statistics.data.gov.uk/id/local-authority/30UE,Regulatory Services,1048,PLAN - Planning & Development,Taxi Testing & Vehicle Safety Report,40234,Services,5027,Taxi Test,28/03/2022,0166121,145.35,Revenue,Chorley Autocare Ltd,17110,,
Chorley Borough Council,http://statistics.data.gov.uk/id/local-authority/30UE,Central Support Services,1009,GOVN - Policy & Governance,External Contractor,40198,Miscellaneous Expenses,5034,Westway External Contractor Recharges,30/03/2022,0164830,"3,501.97",Revenue,Chorley Leisure Ltd,83376,,
Chorley Borough Council,http://statistics.data.gov.uk/id/local-authority/30UE,Corporate Management,1008,GOVN - Policy & Governance,External Contractors,50008,Private Contractors,5042,Release of COMF funding to make premises Covid secure and facilitate take-up in Leisure activities,30/03/2022,0166326,"100,000.00",Revenue,Chorley Leisure Ltd,83376,,
Chorley Borough Council,http://statistics.data.gov.uk/id/local-authority/30UE,Corporate Management,1008,GOVN - Policy & Governance,Miscellaneous Expenses,40200,Miscellaneous Expenses,5034,ARG4 Grant,29/03/2022,0166579,"25,000.00",Revenue,Chorley Leisure Ltd,83376,,
Chorley Borough Council,http://statistics.data.gov.uk/id/local-authority/30UE,Central Support Services,1009,EARL - Communities,Community Develop Initiatives,40185,Miscellaneous Expenses,5034,Delivery of the Adult Weight Management programme in schools,02/03/2022,0165482,"12,587.50",Revenue,Chorley School Sport Partnership,56115,,
Chorley Borough Council,http://statistics.data.gov.uk/id/local-authority/30UE,Central Support Services,1009,EARL - Communities,Community Develop Initiatives,40185,Miscellaneous Expenses,5034,Delivery of the Adult Weight Management programme in schools,28/03/2022,0166432,"12,587.50",Revenue,Chorley School Sport Partnership,56115,,
Chorley Borough Council,http://statistics.data.gov.uk/id/local-authority/30UE,Service Management & Support,1009,CUST - Customer & Digital,Vehicles and Plant Maintenance,30045,Direct Transport Costs,5016,YM70 GXB4 new tyres Disposal,09/03/2022,0165659,981.09,Revenue,Chorley Tyres,53719,,
Chorley Borough Council,http://statistics.data.gov.uk/id/local-authority/30UE,Central Support Services,1009,EARL - Communities,Children's Activities,40188,Miscellaneous Expenses,5034,Lancashire Breaktime respite care by Inspire Youth Zone October Half Term 21,28/03/2022,0166073,"1,227.16",Revenue,Chorley Youth Zone,77339,,
Chorley Borough Council,http://statistics.data.gov.uk/id/local-authority/30UE,Central Support Services,1009,EARL - Communities,Children's Activities,40188,Miscellaneous Expenses,5034,Lancashire Breaktime respite care by Inspire Youth Zone October Termtime 21,28/03/2022,0166074,"1,533.95",Revenue,Chorley Youth Zone,77339,,
Chorley Borough Council,http://statistics.data.gov.uk/id/local-authority/30UE,Central Support Services,1009,EARL - Communities,Children's Activities,40188,Miscellaneous Expenses,5034,Lancashire Breaktime respite care at Inspire Youth Zone September Term Time 21,28/03/2022,0166075,"1,561.84",Revenue,Chorley Youth Zone,77339,,
Chorley Borough Council,http://statistics.data.gov.uk/id/local-authority/30UE,Homelessness,1075,EARL - Communities,External Contractor,40198,Miscellaneous Expenses,5034,Chorley Council/Inspire Youth Zone Youth Hub Project,28/03/2022,0166439,"6,869.99",Revenue,Chorley Youth Zone,77339,,
Chorley Borough Council,http://statistics.data.gov.uk/id/local-authority/30UE,Corporate Management,1008,EARL - Communities,Grants to Voluntary Organisations,40124,Grants and Subscriptions,5031,Second payment schedule for HSF plus the admin costs,16/03/2022,0165670,"28,750.00",Revenue,Citizens Advice Lancashire,17035,,
Chorley Borough Council,http://statistics.data.gov.uk/id/local-authority/30UE,Economic Development,1096,GROW - Commercial & Property,Christmas Lights,40179,Miscellaneous Expenses,5034,"Portland Street Car Park, Pole features 5 off / festoon/floods/lamps/strobes/led swirls on columns / Reindeer",28/03/2022,0162906,"12,315.00",Revenue,City Illuminations Ltd,77388,,
Chorley Borough Council,http://statistics.data.gov.uk/id/local-authority/30UE,Economic Development,1096,GROW - Commercial & Property,Christmas Lights,40179,Miscellaneous Expenses,5034,"Town Hall Trees, 3x Trees facing Town Hall, New RGB LED tree wraps, Sat controlled, linked. Mains power cables/distribution",28/03/2022,0162906,"22,760.00",Revenue,City Illuminations Ltd,77388,,
Chorley Borough Council,http://statistics.data.gov.uk/id/local-authority/30UE,Central Support Services,1009,GOVN - Policy & Governance,IT Software - Annual Licences,40101,Communication and Computing,5028,"2022 - 2023 Licence, Support and Maintenance",16/03/2022,0165159,"8,118.57",Revenue,Civica UK Limited,17463,,
Chorley Borough Council,http://statistics.data.gov.uk/id/local-authority/30UE,Central Support Services,1009,GOVN - Policy & Governance,IT Software - Annual Licences,40101,Communication and Computing,5028,Payment Gateway Upgrade Consultancy to configure the Mastercard 3 D Secure changes.,16/03/2022,0165176,"2,500.00",Revenue,Civica UK Limited,17463,,
Chorley Borough Council,http://statistics.data.gov.uk/id/local-authority/30UE,Central Support Services,1009,GOVN - Policy & Governance,IT Software - Annual Licences,40101,Communication and Computing,5028,"2022 - 2023 Licence, Support and Maintenance",31/03/2022,0166064,"54,068.56",Revenue,Civica UK Limited,17463,,
Chorley Borough Council,http://statistics.data.gov.uk/id/local-authority/30UE,Capital,Capital,GOVN - Policy & Governance,Main Contractor,03007,Capital Expenditure,Capital,"Astley Hall Museum and Art Gallery, Vista Click Netherfield Case, Case reference E26009, Scope 50, Delivery and Installation",30/03/2022,0166255,"1,609.65",Capital,ClickNetherfield Ltd,66887,,
Chorley Borough Council,http://statistics.data.gov.uk/id/local-authority/30UE,Business Support,1095,GROW - Commercial & Property,First Aid Payments,14001,Direct Employee Expenses,5001,"AEC5356 replacement Battery 324.95, AEC5354 Adult electrode pads 65.95",02/03/2022,0165376,390.90,Revenue,CMUK Visual Safety Ltd,22496,,
Chorley Borough Council,http://statistics.data.gov.uk/id/local-authority/30UE,Business Support,1095,PLAN - Planning & Development,Grants To Other Organisations,40127,Grants and Subscriptions,5031,big grant,28/03/2022,0165483,"1,200.00",Revenue,Compass Skills Training Limited,83514,,
Chorley Borough Council,http://statistics.data.gov.uk/id/local-authority/30UE,Capital,Capital,EARL - Communities,Main Contractor,03007,Capital Expenditure,Capital,Creation of a natural flood management basin on land off Clover Field as per approved drawings and spec with new public access,09/03/2022,0165654,"1,917.00",Capital,Conservation Contracts North West,20520,,
Chorley Borough Council,http://statistics.data.gov.uk/id/local-authority/30UE,Open Spaces,1038,EARL - Communities,Grounds Maintenance Contractor,20043,Grounds Maintenance Costs,5013,Path surfacing through the woodland area of Carr Brook Linear Park to enhance access for all.,28/03/2022,0166216,"2,141.60",Revenue,Conservation Contracts North West,20520,,
Chorley Borough Council,http://statistics.data.gov.uk/id/local-authority/30UE,Central Support Services,1009,CUST - Customer & Digital,Items For Resale,40027,"Equipment, Furniture & Materia",5023,"Blue 240L wheeled bin, Chorley logo to body in white, stacked in 10's, Quantity: 540",02/03/2022,0165484,"9,774.00",Revenue,Contenur Uk Ltd,82451,,
Chorley Borough Council,http://statistics.data.gov.uk/id/local-authority/30UE,Central Support Services,1009,CUST - Customer & Digital,Items For Resale,40027,"Equipment, Furniture & Materia",5023,"Grey 240L wheeled bin, Chorley logo to body in white, RFID chips fitted, stacked in 10's.",16/03/2022,0165684,"10,195.10",Revenue,Contenur Uk Ltd,82451,,
Chorley Borough Council,http://statistics.data.gov.uk/id/local-authority/30UE,Central Support Services,1009,GROW - Commercial & Property,Gas,20014,Energy Costs,5006,jan-feb 22,02/03/2022,0165537,357.17,Revenue,Corona Energy Retail 2 Ltd,67249,,
Chorley Borough Council,http://statistics.data.gov.uk/id/local-authority/30UE,Business Support,1095,GROW - Commercial & Property,Gas,20014,Energy Costs,5006,jan-feb 2,02/03/2022,0165562,"2,238.30",Revenue,Corona Energy Retail 2 Ltd,67249,,
Chorley Borough Council,http://statistics.data.gov.uk/id/local-authority/30UE,Recreation & Sport,1037,GROW - Commercial & Property,Gas,20014,Energy Costs,5006,jan-feb 22,02/03/2022,0165563,"1,205.12",Revenue,Corona Energy Retail 2 Ltd,67249,,
Chorley Borough Council,http://statistics.data.gov.uk/id/local-authority/30UE,Central Support Services,1009,GROW - Commercial & Property,Gas,20014,Energy Costs,5006,jan - feb 22,02/03/2022,0165565,"1,434.72",Revenue,Corona Energy Retail 2 Ltd,67249,,
Chorley Borough Council,http://statistics.data.gov.uk/id/local-authority/30UE,Central Support Services,1009,GROW - Commercial & Property,Gas,20014,Energy Costs,5006,jan-feb22,02/03/2022,0165566,954.59,Revenue,Corona Energy Retail 2 Ltd,67249,,
Chorley Borough Council,http://statistics.data.gov.uk/id/local-authority/30UE,Open Spaces,1038,GROW - Commercial & Property,Gas,20014,Energy Costs,5006,jan-feb22,02/03/2022,0165567,848.79,Revenue,Corona Energy Retail 2 Ltd,67249,,
Chorley Borough Council,http://statistics.data.gov.uk/id/local-authority/30UE,Recreation & Sport,1037,GROW - Commercial & Property,Gas,20014,Energy Costs,5006,jan-feb22,02/03/2022,0165569,"1,479.06",Revenue,Corona Energy Retail 2 Ltd,67249,,
Chorley Borough Council,http://statistics.data.gov.uk/id/local-authority/30UE,Service Management Support,1009,GROW - Commercial & Property,Gas,20014,Energy Costs,5006,jan-feb22,02/03/2022,0165570,251.64,Revenue,Corona Energy Retail 2 Ltd,67249,,
Chorley Borough Council,http://statistics.data.gov.uk/id/local-authority/30UE,Recreation & Sport,1037,GROW - Commercial & Property,Gas,20014,Energy Costs,5006,jan-feb22,02/03/2022,0165572,380.53,Revenue,Corona Energy Retail 2 Ltd,67249,,
Chorley Borough Council,http://statistics.data.gov.uk/id/local-authority/30UE,Homelessness,1075,GROW - Commercial & Property,Gas,20014,Energy Costs,5006,jan-fen22,02/03/2022,0165574,"1,189.40",Revenue,Corona Energy Retail 2 Ltd,67249,,
Chorley Borough Council,http://statistics.data.gov.uk/id/local-authority/30UE,Recreation & Sport,1037,GROW - Commercial & Property,Gas,20014,Energy Costs,5006,jan-feb22,02/03/2022,0165576,"7,985.72",Revenue,Corona Energy Retail 2 Ltd,67249,,
Chorley Borough Council,http://statistics.data.gov.uk/id/local-authority/30UE,Recreation & Sport,1037,GROW - Commercial & Property,Gas,20014,Energy Costs,5006,jan-feb 22,02/03/2022,0165578,"1,915.92",Revenue,Corona Energy Retail 2 Ltd,67249,,
Chorley Borough Council,http://statistics.data.gov.uk/id/local-authority/30UE,Homelessness,1075,GROW - Commercial & Property,Gas,20014,Energy Costs,5006,Feb 22 - Mar 22,28/03/2022,0166502,"1,068.23",Revenue,Corona Energy Retail 2 Ltd,67249,,
Chorley Borough Council,http://statistics.data.gov.uk/id/local-authority/30UE,Recreation & Sport,1037,GROW - Commercial & Property,Gas,20014,Energy Costs,5006,Feb 22 - Mar 22,28/03/2022,0166504,341.24,Revenue,Corona Energy Retail 2 Ltd,67249,,
Chorley Borough Council,http://statistics.data.gov.uk/id/local-authority/30UE,Recreation & Sport,1037,GROW - Commercial & Property,Gas,20014,Energy Costs,5006,Feb 22 - Mar 22,28/03/2022,0166512,"1,266.42",Revenue,Corona Energy Retail 2 Ltd,67249,,
Chorley Borough Council,http://statistics.data.gov.uk/id/local-authority/30UE,Open Spaces,1038,GROW - Commercial & Property,Gas,20014,Energy Costs,5006,Feb 22 - Mar 22,28/03/2022,0166515,848.48,Revenue,Corona Energy Retail 2 Ltd,67249,,
Chorley Borough Council,http://statistics.data.gov.uk/id/local-authority/30UE,Central Support Services,1009,GROW - Commercial & Property,Gas,20014,Energy Costs,5006,Feb 22 - Mar 22,28/03/2022,0166516,982.73,Revenue,Corona Energy Retail 2 Ltd,67249,,
Chorley Borough Council,http://statistics.data.gov.uk/id/local-authority/30UE,Central Support Services,1009,GROW - Commercial & Property,Gas,20014,Energy Costs,5006,Feb 22 - Mar 22,30/03/2022,0166518,"1,274.67",Revenue,Corona Energy Retail 2 Ltd,67249,,
Chorley Borough Council,http://statistics.data.gov.uk/id/local-authority/30UE,Central Support Services,1009,GROW - Commercial & Property,Gas,20014,Energy Costs,5006,Feb 22 - Mar 22,28/03/2022,0166520,281.19,Revenue,Corona Energy Retail 2 Ltd,67249,,
Chorley Borough Council,http://statistics.data.gov.uk/id/local-authority/30UE,Recreation & Sport,1037,GROW - Commercial & Property,Gas,20014,Energy Costs,5006,Feb 22 - Mar 22,28/03/2022,0166523,"7,040.97",Revenue,Corona Energy Retail 2 Ltd,67249,,
Chorley Borough Council,http://statistics.data.gov.uk/id/local-authority/30UE,Recreation & Sport,1037,GROW - Commercial & Property,Gas,20014,Energy Costs,5006,Feb 22 - Mar 22,28/03/2022,0166525,"1,743.96",Revenue,Corona Energy Retail 2 Ltd,67249,,
Chorley Borough Council,http://statistics.data.gov.uk/id/local-authority/30UE,Recreation & Sport,1037,GROW - Commercial & Property,Gas,20014,Energy Costs,5006,Feb 22 - Mar 22,28/03/2022,0166526,"1,129.54",Revenue,Corona Energy Retail 2 Ltd,67249,,
Chorley Borough Council,http://statistics.data.gov.uk/id/local-authority/30UE,Business Support,1095,GROW - Commercial & Property,Gas,20014,Energy Costs,5006,Feb 22 - Mar 22,28/03/2022,0166527,"2,023.59",Revenue,Corona Energy Retail 2 Ltd,67249,,
Chorley Borough Council,http://statistics.data.gov.uk/id/local-authority/30UE,Service Management & Support,1009,CUST - Customer & Digital,Diesel/Derv,30007,Direct Transport Costs,5016,As procured via the chest 7000 litres of road diesel 1000 litres of gas oil,16/03/2022,0165301,"8,988.00",Revenue,Crown Oil Ltd,16739,,
Chorley Borough Council,http://statistics.data.gov.uk/id/local-authority/30UE,Service Management & Support,1009,CUST - Customer & Digital,Diesel/Derv,30007,Direct Transport Costs,5016,"As procured via the chest, 7000 litres of road diesel, 1000litres of gas oil",09/03/2022,0165319,850.00,Revenue,Crown Oil Ltd,16739,,
Chorley Borough Council,http://statistics.data.gov.uk/id/local-authority/30UE,Capital,Capital,EARL - Communities,Grants,03002,Capital Expenditure,Capital,ADDRESS REDACTED,02/03/2022,0165485,"4,361.00",Capital,D J Bathing,78482,,
Chorley Borough Council,http://statistics.data.gov.uk/id/local-authority/30UE,Central Support Services,1009,GOVN - Policy & Governance,Computer - Support Services,40111,Communication and Computing,5028,"Assist document accessibility fixer License x50 users incl. Software Assurance and Support, Startup costs, Annual License Fee",30/03/2022,0165219,"3,200.00",Revenue,Dania Software A/S,81328,,
Chorley Borough Council,http://statistics.data.gov.uk/id/local-authority/30UE,Business Support,1095,GROW - Commercial & Property,Miscellaneous Expenses,40200,Miscellaneous Expenses,5034,"Per your invoice 653958, Reception/admin cover week ending 13.02.22",02/03/2022,0165374,560.63,Revenue,Daniel Adams Recruitment,78104,,
Chorley Borough Council,http://statistics.data.gov.uk/id/local-authority/30UE,Business Support,1095,GROW - Commercial & Property,Cleaning/Attendants' Services,20041,Cleaning and Domestic Supplies,5012,Cleaning cover week ending 13.02.22,02/03/2022,0165374,379.40,Revenue,Daniel Adams Recruitment,78104,,
Chorley Borough Council,http://statistics.data.gov.uk/id/local-authority/30UE,Business Support,1095,GROW - Commercial & Property,Miscellaneous Expenses,40200,Miscellaneous Expenses,5034,"Per your invoice 653979, Reception/Admin cover for week ending 20/02/22",02/03/2022,0165434,500.83,Revenue,Daniel Adams Recruitment,78104,,
Chorley Borough Council,http://statistics.data.gov.uk/id/local-authority/30UE,Business Support,1095,GROW - Commercial & Property,Cleaning/Attendants' Services,20041,Cleaning and Domestic Supplies,5012,Cleaning cover week ending 20/02/22,02/03/2022,0165434,271.00,Revenue,Daniel Adams Recruitment,78104,,
Chorley Borough Council,http://statistics.data.gov.uk/id/local-authority/30UE,Business Support,1095,GROW - Commercial & Property,Miscellaneous Expenses,40200,Miscellaneous Expenses,5034,"Per your invoice 645002, Week ending 27/02/22 reception/admin cover",09/03/2022,0165673,336.38,Revenue,Daniel Adams Recruitment,78104,,
Chorley Borough Council,http://statistics.data.gov.uk/id/local-authority/30UE,Business Support,1095,GROW - Commercial & Property,Cleaning/Attendants' Services,20041,Cleaning and Domestic Supplies,5012,cleaning cover week ending 27/02/22,09/03/2022,0165673,271.00,Revenue,Daniel Adams Recruitment,78104,,
Chorley Borough Council,http://statistics.data.gov.uk/id/local-authority/30UE,Business Support,1095,GROW - Commercial & Property,Miscellaneous Expenses,40200,Miscellaneous Expenses,5034,"Per your week 49 invoice 654022, Reception/Admin cover for week ending  06/03/22",21/03/2022,0166003,560.63,Revenue,Daniel Adams Recruitment,78104,,
Chorley Borough Council,http://statistics.data.gov.uk/id/local-authority/30UE,Business Support,1095,GROW - Commercial & Property,Cleaning/Attendants' Services,20041,Cleaning and Domestic Supplies,5012,Cleaning cover for week ending 06/03/22,21/03/2022,0166003,271.00,Revenue,Daniel Adams Recruitment,78104,,
Chorley Borough Council,http://statistics.data.gov.uk/id/local-authority/30UE,Business Support,1095,GROW - Commercial & Property,Miscellaneous Expenses,40200,Miscellaneous Expenses,5034,"Per your invoice 654042 for week ending 13/03/22, Reception/Administrator cover, 37.5 hours",28/03/2022,0166131,560.63,Revenue,Daniel Adams Recruitment,78104,,
Chorley Borough Council,http://statistics.data.gov.uk/id/local-authority/30UE,Business Support,1095,GROW - Commercial & Property,Cleaning/Attendants' Services,20041,Cleaning and Domestic Supplies,5012,Cleaning cover for a total of 32 hours,28/03/2022,0166131,433.60,Revenue,Daniel Adams Recruitment,78104,,
Chorley Borough Council,http://statistics.data.gov.uk/id/local-authority/30UE,Business Support,1095,GROW - Commercial & Property,Miscellaneous Expenses,40200,Miscellaneous Expenses,5034,"Per your invoice 654069, Reception/admin cover for week ending 20/03/22",28/03/2022,0166214,560.63,Revenue,Daniel Adams Recruitment,78104,,
Chorley Borough Council,http://statistics.data.gov.uk/id/local-authority/30UE,Business Support,1095,GROW - Commercial & Property,Cleaning/Attendants' Services,20041,Cleaning and Domestic Supplies,5012,"Cleaning cover, a total of 28 hours",28/03/2022,0166214,379.40,Revenue,Daniel Adams Recruitment,78104,,
Chorley Borough Council,http://statistics.data.gov.uk/id/local-authority/30UE,Business Support,1095,GROW - Commercial & Property,Tools & Equipment - Purchase,40003,"Equipment, Furniture & Materia",5023,"3 X Hytera VM780 body-worn camera - 128GB memory, 3 x KlickFast Stud To Fit VM780",09/03/2022,0165246,"1,356.00",Revenue,DCS 2 Way Radio Ltd,77666,,
Chorley Borough Council,http://statistics.data.gov.uk/id/local-authority/30UE,Business Support,1095,GROW - Commercial & Property,Tools & Equipment - Purchase,40003,"Equipment, Furniture & Materia",5023,"2x Hytera, 2000mAh Lipolymer, DMR Tier II & analogue, 2x Charging cradle for Li-Polymer/Li-Ion batteries HP Series",09/03/2022,0165247,528.00,Revenue,DCS 2 Way Radio Ltd,77666,,
Chorley Borough Council,http://statistics.data.gov.uk/id/local-authority/30UE,Central Support Services,1009,CUST - Customer & Digital,Computer Equipment-Purchase,40098,Communication and Computing,5028,"Wyse 5470, Dell Multimedia Keyboard-KB216 - UK (QWERTY) Black, Dell Optical Mouse-MS116 - Black, Dell 24 Monitor",23/03/2022,0164716,"1,512.00",Revenue,Dell Corporation Ltd,64387,,
Chorley Borough Council,http://statistics.data.gov.uk/id/local-authority/30UE,Central Support Services,1009,CUST - Customer & Digital,Computer Equipment-Purchase,40098,Communication and Computing,5028,"Wyse 5470, Dell Multimedia Keyboard-KB216 - UK (QWERTY) Black, Dell Optical Mouse-MS116 - Black, Dell 24 Monitor",23/03/2022,0164717,"12,195.00",Revenue,Dell Corporation Ltd,64387,,
Chorley Borough Council,http://statistics.data.gov.uk/id/local-authority/30UE,Central Support Services,1009,CUST - Customer & Digital,Computer Equipment-Purchase,40098,Communication and Computing,5028,"Wyse 5470, Dell Multimedia Keyboard-KB216 - UK (QWERTY) Black, Dell Optical Mouse-MS116 - Black, Dell 24 Monitor",23/03/2022,0165225,"18,750.00",Revenue,Dell Corporation Ltd,64387,,
Chorley Borough Council,http://statistics.data.gov.uk/id/local-authority/30UE,Central Support Services,1009,CUST - Customer & Digital,Computer Equipment-Purchase,40098,Communication and Computing,5028,"Wyse 5470, Dell Multimedia Keyboard-KB216 - UK (QWERTY) Black, Dell Optical Mouse-MS116 - Black, Dell 24 Monitor",23/03/2022,0165237,"18,750.00",Revenue,Dell Corporation Ltd,64387,,
Chorley Borough Council,http://statistics.data.gov.uk/id/local-authority/30UE,Central Support Services,1009,CUST - Customer & Digital,Computer Equipment-Purchase,40098,Communication and Computing,5028,"Wyse 5470, Dell Multimedia Keyboard-KB216 - UK (QWERTY) Black, Dell Optical Mouse-MS116 - Black, Dell 24 Monitor",23/03/2022,0165238,"18,750.00",Revenue,Dell Corporation Ltd,64387,,
Chorley Borough Council,http://statistics.data.gov.uk/id/local-authority/30UE,Central Support Services,1009,CUST - Customer & Digital,Computer Equipment-Purchase,40098,Communication and Computing,5028,"Wyse 5470, Dell Multimedia Keyboard-KB216 - UK (QWERTY) Black, Dell Optical Mouse-MS116 - Black, Dell 24 Monitor",23/03/2022,0165239,"18,750.00",Revenue,Dell Corporation Ltd,64387,,
Chorley Borough Council,http://statistics.data.gov.uk/id/local-authority/30UE,Central Support Services,1009,CUST - Customer & Digital,Computer Equipment-Purchase,40098,Communication and Computing,5028,"Wyse 5470, Dell Multimedia Keyboard-KB216 - UK (QWERTY) Black, Dell Optical Mouse-MS116 - Black, Dell 24 Monitor",23/03/2022,0165386,"18,750.00",Revenue,Dell Corporation Ltd,64387,,
Chorley Borough Council,http://statistics.data.gov.uk/id/local-authority/30UE,Control Accounts,Control,GOVN - Policy & Governance,General Balances,00100,Balance Sheet,Balance,Child Maintenance Attachment of Earnings,23/03/2022,0166062,252.08,Revenue,Department for Work and Pensions,83955,,
Chorley Borough Council,http://statistics.data.gov.uk/id/local-authority/30UE,Homelessness,1075,EARL - Communities,Furniture - Purchase,40012,"Equipment, Furniture & Materia",5023,"Bali Light Oak Cane 2 Seater Sofa, Texture Fabric - Beige 100% Polyester, Delivery Address: ADDRESS REDACTED",28/03/2022,0166138,558.33,Revenue,Desser & Co,84828,,
Chorley Borough Council,http://statistics.data.gov.uk/id/local-authority/30UE,Central Support Services,1009,CUST - Customer & Digital,Service Fees,40056,Services,5027,12 month subscription to HUB,02/03/2022,0165322,"1,750.00",Revenue,Destin Solutions Ltd,78105,,
Chorley Borough Council,http://statistics.data.gov.uk/id/local-authority/30UE,Central Support Services,1009,GOVN - Policy & Governance,Grants to Voluntary Organisations,40124,Grants and Subscriptions,5031,Community Grant Funding from NHS CCG Fund to support First Aid Training,30/03/2022,0165078,800.00,Revenue,DGF First Aid Training,72087,,
Chorley Borough Council,http://statistics.data.gov.uk/id/local-authority/30UE,Central Support Services,1009,EARL - Communities,Miscellaneous Expenses,40200,Miscellaneous Expenses,5034,Delivery of a First Aid Course at Clayton Brook Community Centre on the 12th February.,28/03/2022,0166307,600.00,Revenue,DGF First Aid Training,72087,,
Chorley Borough Council,http://statistics.data.gov.uk/id/local-authority/30UE,Building Control,1090,PLAN - Planning & Development,General Subscriptions,40146,Grants and Subscriptions,5031,LABC Service Fee 2022/2023,28/03/2022,0166206,"2,110.54",Revenue,District Surveyors Association Limited t/a LABC,17538,,
Chorley Borough Council,http://statistics.data.gov.uk/id/local-authority/30UE,Service Management & Support,1009,CUST - Customer & Digital,External Contractor,40198,Miscellaneous Expenses,5034,To test 40 HAV and 5 WBV,23/03/2022,0166009,"1,051.00",Revenue,Earlsmere Ltd,77775,,
Chorley Borough Council,http://statistics.data.gov.uk/id/local-authority/30UE,Central Support Services,1009,GROW - Commercial & Property,General Repairs - Reactive,20004,Repairs Maintenance & Alts,5005,"Union St, Straightening railings on Union Street, car park as instructed by NAME REDACTED",02/03/2022,0165608,320.00,Revenue,Edwards Wrought Iron Ltd,77654,,
Chorley Borough Council,http://statistics.data.gov.uk/id/local-authority/30UE,Central Support Services,1009,CUST - Customer & Digital,Mobile Voice and Data,40086,Communication and Computing,5028,mobile phones,28/03/2022,0166120,"3,268.29",Revenue,EE - Orange,16486,,
Chorley Borough Council,http://statistics.data.gov.uk/id/local-authority/30UE,Central Support Services,1009,CUST - Customer & Digital,Mobile Voice and Data,40086,Communication and Computing,5028,mobile phones,28/03/2022,0166541,"2,785.11",Revenue,EE - Orange,16486,,
Chorley Borough Council,http://statistics.data.gov.uk/id/local-authority/30UE,Central Support Services,1009,GROW - Commercial & Property,General Repairs - Reactive,20004,Repairs Maintenance & Alts,5005,Residential Housing - reactive repair works,23/03/2022,0165063,"1,287.49",Revenue,EFT Construction,78195,,
Chorley Borough Council,http://statistics.data.gov.uk/id/local-authority/30UE,Central Support Services,1009,GROW - Commercial & Property,General Repairs - Reactive,20004,Repairs Maintenance & Alts,5005,Chorley Market - reactive repair works,16/03/2022,0165070,308.24,Revenue,EFT Construction,78195,,
Chorley Borough Council,http://statistics.data.gov.uk/id/local-authority/30UE,Central Support Services,1009,GROW - Commercial & Property,General Repairs - Reactive,20004,Repairs Maintenance & Alts,5005,Primrose Gardens - reactive repair works,02/03/2022,0165088,"1,291.13",Revenue,EFT Construction,78195,,
Chorley Borough Council,http://statistics.data.gov.uk/id/local-authority/30UE,Central Support Services,1009,GROW - Commercial & Property,General Repairs - Reactive,20004,Repairs Maintenance & Alts,5005,All Seasons - Reactive blanket,02/03/2022,0165451,"1,040.16",Revenue,EFT Construction,78195,,
Chorley Borough Council,http://statistics.data.gov.uk/id/local-authority/30UE,Central Support Services,1009,GROW - Commercial & Property,General Repairs - Reactive,20004,Repairs Maintenance & Alts,5005,Brinscall Baths - Reactive blanket,21/03/2022,0165486,599.80,Revenue,EFT Construction,78195,,
Chorley Borough Council,http://statistics.data.gov.uk/id/local-authority/30UE,Central Support Services,1009,GROW - Commercial & Property,General Repairs - Reactive,20004,Repairs Maintenance & Alts,5005,All Seasons - Reactive blanket,02/03/2022,0165489,"1,648.43",Revenue,EFT Construction,78195,,
Chorley Borough Council,http://statistics.data.gov.uk/id/local-authority/30UE,Central Support Services,1009,GROW - Commercial & Property,General Repairs - Reactive,20004,Repairs Maintenance & Alts,5005,Residential Housing - reactive repair works,28/03/2022,0166154,"4,712.93",Revenue,EFT Construction,78195,,
Chorley Borough Council,http://statistics.data.gov.uk/id/local-authority/30UE,Central Support Services,1009,GROW - Commercial & Property,General Repairs - Reactive,20004,Repairs Maintenance & Alts,5005,Clayton Green LC - Reactive blanket,28/03/2022,0166235,322.63,Revenue,EFT Construction,78195,,
Chorley Borough Council,http://statistics.data.gov.uk/id/local-authority/30UE,Central Support Services,1009,GROW - Commercial & Property,General Repairs - Reactive,20004,Repairs Maintenance & Alts,5005,All Seasons - Reactive blanket,28/03/2022,0166505,804.38,Revenue,EFT Construction,78195,,
Chorley Borough Council,http://statistics.data.gov.uk/id/local-authority/30UE,Central Support Services,1009,GROW - Commercial & Property,General Repairs - Reactive,20004,Repairs Maintenance & Alts,5005,Brinscall Baths - Reactive blanket,28/03/2022,0166507,653.55,Revenue,EFT Construction,78195,,
Chorley Borough Council,http://statistics.data.gov.uk/id/local-authority/30UE,Capital,Capital,GROW - Commercial & Property,Main Contractor,03007,Capital Expenditure,Capital,1 fiddlers lane - replacement kitchen works,30/03/2022,0166510,"4,694.30",Capital,EFT Construction,78195,,
Chorley Borough Council,http://statistics.data.gov.uk/id/local-authority/30UE,Capital,Capital,GROW - Commercial & Property,Main Contractor,03007,Capital Expenditure,Capital,"ADDRESS REDACTED, Remove and dispose of existing cooker unit, allow space for free standing hob/oven",30/03/2022,0166511,"2,024.00",Capital,EFT Construction,78195,,
Chorley Borough Council,http://statistics.data.gov.uk/id/local-authority/30UE,Central Support Services,1009,GROW - Commercial & Property,General Repairs - Reactive,20004,Repairs Maintenance & Alts,5005,Town Hall - reactive repair works,28/03/2022,0166554,"1,068.52",Revenue,EFT Construction,78195,,
Chorley Borough Council,http://statistics.data.gov.uk/id/local-authority/30UE,Central Support Services,1009,GROW - Commercial & Property,General Repairs - Reactive,20004,Repairs Maintenance & Alts,5005,Cotswold House - reactive repair works,28/03/2022,0166555,"1,260.81",Revenue,EFT Construction,78195,,
Chorley Borough Council,http://statistics.data.gov.uk/id/local-authority/30UE,Central Support Services,1009,GROW - Commercial & Property,General Repairs - Reactive,20004,Repairs Maintenance & Alts,5005,Union St - reactive repair works,28/03/2022,0166557,520.99,Revenue,EFT Construction,78195,,
Chorley Borough Council,http://statistics.data.gov.uk/id/local-authority/30UE,Central Support Services,1009,GROW - Commercial & Property,General Repairs - Reactive,20004,Repairs Maintenance & Alts,5005,Primrose Gardens - reactive repair works,28/03/2022,0166558,"1,728.01",Revenue,EFT Construction,78195,,
Chorley Borough Council,http://statistics.data.gov.uk/id/local-authority/30UE,Central Support Services,1009,GROW - Commercial & Property,General Repairs - Reactive,20004,Repairs Maintenance & Alts,5005,Chorley Market - reactive repair works,28/03/2022,0166561,290.20,Revenue,EFT Construction,78195,,
Chorley Borough Council,http://statistics.data.gov.uk/id/local-authority/30UE,Business Support,1095,GROW - Commercial & Property,General Repairs - Reactive,20004,Repairs Maintenance & Alts,5005,Strawberry Fields - reactive repair works,28/03/2022,0166562,"1,271.78",Revenue,EFT Construction,78195,,
Chorley Borough Council,http://statistics.data.gov.uk/id/local-authority/30UE,Central Support Services,1009,GROW - Commercial & Property,General Repairs - Reactive,20004,Repairs Maintenance & Alts,5005,Community Centres - reactive repair works,28/03/2022,0166563,652.33,Revenue,EFT Construction,78195,,
Chorley Borough Council,http://statistics.data.gov.uk/id/local-authority/30UE,Homelessness,1075,GROW - Commercial & Property,Laundry,40042,"Clothing, Uniforms and Laundry",5025,12 month laundry for Cotswold Supported House,28/03/2022,0165674,687.14,Revenue,Elis UK Ltd,20799,,
Chorley Borough Council,http://statistics.data.gov.uk/id/local-authority/30UE,Central Support Services,1009,GROW - Commercial & Property,Professional Fees,40063,Services,5027,"Completion of the BREEAM (2018) Forms for the Ecological Assessment, Attendance at the BREEAM Workshop, Site Visits",09/03/2022,0165628,450.00,Revenue,ERAP (Consultant Ecologists) Ltd,78559,,
Chorley Borough Council,http://statistics.data.gov.uk/id/local-authority/30UE,Central Support Services,1009,GROW - Commercial & Property,Professional Fees,40063,Services,5027,"Completion of BREEAM Guidance, Preparation for and Attendance at the BREEAM Workshop",16/03/2022,0165678,730.00,Revenue,ERAP (Consultant Ecologists) Ltd,78559,,
Chorley Borough Council,http://statistics.data.gov.uk/id/local-authority/30UE,Business Support,1095,GROW - Commercial & Property,Internet Charges,40104,Communication and Computing,5028,"For all regular, monthly invoices to cover Operate Growth, Connect Growth, Public IP & Call Charges for financial year 2021-22",21/03/2022,0165780,"3,810.00",Revenue,Essensys Ltd,77836,,
Chorley Borough Council,http://statistics.data.gov.uk/id/local-authority/30UE,Business Support,1095,GROW - Commercial & Property,Internet Charges,40104,Communication and Computing,5028,"For all regular, monthly invoices to cover Operate Growth, Connect Growth, Public IP & Call Charges for financial year 2021-22",28/03/2022,0165941,257.81,Revenue,Essensys Ltd,77836,,
Chorley Borough Council,http://statistics.data.gov.uk/id/local-authority/30UE,Central Support Services,1009,GROW - Commercial & Property,Planned Maintenance,20006,Repairs Maintenance & Alts,5005,"Union St offices, Man Safe equipment testing feb/march 2022",28/03/2022,0166191,300.00,Revenue,Eurosafe Solutions Limited,66302,,
Chorley Borough Council,http://statistics.data.gov.uk/id/local-authority/30UE,Democratic Represent and  Mgnt,1007,GOVN - Policy & Governance,Mayoral Hospitality,40123,Expenses,5030,Venue dressing for the Mayor's 007 Casino Royale charity ball on Saturday 26th March 2022. Set up main room on Thursday.,09/03/2022,0165716,"1,585.80",Revenue,Event Entertainment Ltd (The Big White Events Comp,62042,,
Chorley Borough Council,http://statistics.data.gov.uk/id/local-authority/30UE,Capital,Capital,EARL - Communities,Main Contractor,03007,Capital Expenditure,Capital,Planting for Carr Brook Linear Park,28/03/2022,0166227,"5,997.50",Capital,Everglades Nurseries Ltd,20202,,
Chorley Borough Council,http://statistics.data.gov.uk/id/local-authority/30UE,Capital,Capital,EARL - Communities,Main Contractor,03007,Capital Expenditure,Capital,Supply and Delivery of trees for bulk orders Giveaway Feb 22,28/03/2022,0166228,"4,164.95",Capital,Everglades Nurseries Ltd,20202,,
Chorley Borough Council,http://statistics.data.gov.uk/id/local-authority/30UE,Central Support Services,1009,CUST - Customer & Digital,Professional Fees,14011,Direct Employee Expenses,5001,Bank Wizard Annual Licence,21/03/2022,0166010,"4,094.39",Revenue,Experian Limited,17797,,
Chorley Borough Council,http://statistics.data.gov.uk/id/local-authority/30UE,Service Management & Support,1009,CUST - Customer & Digital,Vehicles and Plant Maintenance,30045,Direct Transport Costs,5016,As per Pro-Forma No 110651,23/03/2022,0165665,"1,490.32",Revenue,F R Sharrock Ltd,18091,,
Chorley Borough Council,http://statistics.data.gov.uk/id/local-authority/30UE,Central Support Services,1009,CUST - Customer & Digital,Misc Employee Costs,18001,Indirect Employee Expenses,5002,HGV driver bonus for Oct-Dec 2021. Chorley Contract,09/03/2022,0165499,"7,900.00",Revenue,FCC Environment Services (UK) Limited,77903,,
Chorley Borough Council,http://statistics.data.gov.uk/id/local-authority/30UE,Central Support Services,1009,CUST - Customer & Digital,Unitary Payment(S),50009,Private Contractors,5042,Provision of waste and recycling collection services 2021-2022,09/03/2022,0165500,"190,256.46",Revenue,FCC Environment Services (UK) Limited,77903,,
Chorley Borough Council,http://statistics.data.gov.uk/id/local-authority/30UE,Central Support Services,1009,CUST - Customer & Digital,Tools & Equipment - Purchase,40003,"Equipment, Furniture & Materia",5023,"Contribution to CCTV installation costs for 3 x RCVs, Chorley Contract. 2707.80",02/03/2022,0165501,"2,707.80",Revenue,FCC Environment Services (UK) Limited,77903,,
Chorley Borough Council,http://statistics.data.gov.uk/id/local-authority/30UE,Parking Services,1066,GROW - Commercial & Property,Fixtures & Fittings - Repair/Mtnce,20028,Fixtures and Fittings,5010,"Update software and bank holiday dates to 23 machines: Strada Software Customisation Qty 4, Strada Software Copy Qty 19",30/03/2022,0166090,"1,355.00",Revenue,Flow Bird Smart City UK Ltd,16279,,
Chorley Borough Council,http://statistics.data.gov.uk/id/local-authority/30UE,Central Support Services,1009,GOVN - Policy & Governance,Legal Fees,40171,Miscellaneous Expenses,5034,Professional Fees in relation to an Employment Tribunal Claim - 22/12/21 - 26/01/2022,23/03/2022,0166004,860.00,Revenue,Forbes Solicitors,17527,,
Chorley Borough Council,http://statistics.data.gov.uk/id/local-authority/30UE,Other Long Term Debtors,,GROW - Commercial & Property,Other Debtors,00098,Balance Sheet,Balance,capital contribution,21/03/2022,0165968,"80,000.00",Revenue,Fortuna Catering and Events Ltd,84224,,
Chorley Borough Council,http://statistics.data.gov.uk/id/local-authority/30UE,Central Support Services,1009,EARL - Communities,External Contractor,40198,Miscellaneous Expenses,5034,Contractor - NAME REDACTED,09/03/2022,0165514,"1,134.00",Revenue,G2 Recruitment Solutions,84173,,
Chorley Borough Council,http://statistics.data.gov.uk/id/local-authority/30UE,Central Support Services,1009,EARL - Communities,External Contractor,40198,Miscellaneous Expenses,5034,Contractor - NAME REDACTED,09/03/2022,0165515,"1,134.00",Revenue,G2 Recruitment Solutions,84173,,
Chorley Borough Council,http://statistics.data.gov.uk/id/local-authority/30UE,Central Support Services,1009,EARL - Communities,External Contractor,40198,Miscellaneous Expenses,5034,Contractor - NAME REDACTED,16/03/2022,0165710,"1,863.00",Revenue,G2 Recruitment Solutions,84173,,
Chorley Borough Council,http://statistics.data.gov.uk/id/local-authority/30UE,Corporate Management,1008,EARL - Communities,Agency Staff,13000,Direct Employee Expenses,5001,Agency placement of NAME REDACTED for 6 months,30/03/2022,0166209,"1,665.00",Revenue,G2 Recruitment Solutions,84173,,
Chorley Borough Council,http://statistics.data.gov.uk/id/local-authority/30UE,Corporate Management,1008,EARL - Communities,Agency Staff,13000,Direct Employee Expenses,5001,Agency placement of NAME REDACTED for 6 months,30/03/2022,0166269,"1,597.50",Revenue,G2 Recruitment Solutions,84173,,
Chorley Borough Council,http://statistics.data.gov.uk/id/local-authority/30UE,Capital,Capital,GROW - Commercial & Property,Main Contractor,03007,Capital Expenditure,Capital,"Astley Hall Renovation Project, Conservation specialist works",28/03/2022,0166240,"7,920.00",Capital,Geoff W Maybank,64389,,
Chorley Borough Council,http://statistics.data.gov.uk/id/local-authority/30UE,Service Management & Support,1009,CUST - Customer & Digital,Vehicles and Plant Maintenance,30045,Direct Transport Costs,5016,As per estimate NO Q18053,09/03/2022,0165218,510.92,Revenue,Gibsons Garden Machinery Ltd,17550,,
Chorley Borough Council,http://statistics.data.gov.uk/id/local-authority/30UE,Capital,Capital,GROW - Commercial & Property,Other Capital Related Fees,03024,Capital Expenditure,Capital,Covered Market Improvement works - Toilet fit out as per schedule of works,09/03/2022,0165071,"4,071.86",Capital,GK Construction & Project Management Ltd,82901,,
Chorley Borough Council,http://statistics.data.gov.uk/id/local-authority/30UE,Capital,Capital,GROW - Commercial & Property,Other Capital Related Fees,03024,Capital Expenditure,Capital,Extra works carried out increasing the total of the order to 146799.13 (3621.63 will be held back for retention for 12 months),09/03/2022,0165071,"1,011.07",Capital,GK Construction & Project Management Ltd,82901,,
Chorley Borough Council,http://statistics.data.gov.uk/id/local-authority/30UE,Recreation & Sport,1037,EARL - Communities,Miscellaneous Expenses,40200,Miscellaneous Expenses,5034,Annual Maintenance Agreement AWA July 2021 - June 2022,21/03/2022,0164995,325.00,Revenue,Global Maintainance Ltd,83334,,
Chorley Borough Council,http://statistics.data.gov.uk/id/local-authority/30UE,Service Management & Support,1009,CUST - Customer & Digital,Hire Of Vehicles and Plant,30028,Contrct Hire & Operating Lease,5018,3 Year Contract hire 1x Schmidt Swingo 200+ as per ITT including servicing and Maintenance,23/03/2022,0165371,"2,019.85",Revenue,Go Plant Fleet Services Ltd,80857,,
Chorley Borough Council,http://statistics.data.gov.uk/id/local-authority/30UE,Service Management & Support,1009,CUST - Customer & Digital,Hire Of Vehicles and Plant,30028,Contrct Hire & Operating Lease,5018,3 Year Contract hire 1x Johnston CN101 as per ITT including servicing and Maintenance,09/03/2022,0165387,"1,762.23",Revenue,Go Plant Fleet Services Ltd,80857,,
Chorley Borough Council,http://statistics.data.gov.uk/id/local-authority/30UE,Service Management & Support,1009,CUST - Customer & Digital,Hire Of Vehicles and Plant,30028,Contrct Hire & Operating Lease,5018,3 Year Contract hire 1x Johnston CN101 as per ITT including servicing and Maintenance,23/03/2022,0165388,"2,772.31",Revenue,Go Plant Fleet Services Ltd,80857,,
Chorley Borough Council,http://statistics.data.gov.uk/id/local-authority/30UE,Service Management & Support,1009,CUST - Customer & Digital,Hire Of Vehicles and Plant,30028,Contrct Hire & Operating Lease,5018,3 Year Contract hire 1x Johnston CN101 as per ITT including servicing and Maintenance,23/03/2022,0165389,"2,019.85",Revenue,Go Plant Fleet Services Ltd,80857,,
Chorley Borough Council,http://statistics.data.gov.uk/id/local-authority/30UE,Service Management & Support,1009,CUST - Customer & Digital,Vehicles and Plant Maintenance,30045,Direct Transport Costs,5016,Johnston VT652 screen mesh as per NAME REDACTED email 06/01/2022,09/03/2022,0165677,391.00,Revenue,Go Plant Fleet Services Ltd,80857,,
Chorley Borough Council,http://statistics.data.gov.uk/id/local-authority/30UE,Service Management & Support,1009,CUST - Customer & Digital,Supplies-Grounds Maintenance,40025,"Equipment, Furniture & Materia",5023,Quantity x 10 Johnston C101 poly wire brushes @36.17 each Delivery @ 50.60,28/03/2022,0166047,412.28,Revenue,Go Plant Fleet Services Ltd,80857,,
Chorley Borough Council,http://statistics.data.gov.uk/id/local-authority/30UE,Central Support Services,1009,CUST - Customer & Digital,Professional Fees,40063,Services,5027,2021-2022 Garden Waste Subscription payments,21/03/2022,0165795,708.33,Revenue,GoCardless,77457,,
Chorley Borough Council,http://statistics.data.gov.uk/id/local-authority/30UE,Central Support Services,1009,CUST - Customer & Digital,Professional Fees,40063,Services,5027,2021-2022 Garden Waste Subscription payments,28/03/2022,0166125,713.43,Revenue,GoCardless,77457,,
Chorley Borough Council,http://statistics.data.gov.uk/id/local-authority/30UE,Central Support Services,1009,PLAN - Planning & Development,Miscellaneous Expenses,40200,Miscellaneous Expenses,5034,Planning Application Support - Chorley in Bloom,23/03/2022,0164796,"1,500.00",Revenue,Gosling Consulting Limited,78380,,
Chorley Borough Council,http://statistics.data.gov.uk/id/local-authority/30UE,Capital,Capital,GROW - Commercial & Property,Other Capital Related Fees,03024,Capital Expenditure,Capital,Covered Market Seating area fee,02/03/2022,0165441,"1,667.00",Capital,Gosling Consulting Limited,78380,,
Chorley Borough Council,http://statistics.data.gov.uk/id/local-authority/30UE,Central Support Services,1009,GROW - Commercial & Property,Professional Fees,40063,Services,5027,Timesheet - Alker(Feb 22) 4.75 at 325,09/03/2022,0165609,"1,543.75",Revenue,Gosling Consulting Limited,78380,,
Chorley Borough Council,http://statistics.data.gov.uk/id/local-authority/30UE,Central Support Services,1009,GROW - Commercial & Property,Professional Fees,40063,Services,5027,Tatton - Timesheet (Feb 22) 4.75 days at 325,09/03/2022,0165610,"1,543.75",Revenue,Gosling Consulting Limited,78380,,
Chorley Borough Council,http://statistics.data.gov.uk/id/local-authority/30UE,Capital,Capital,GROW - Commercial & Property,Main Contractor,03007,Capital Expenditure,Capital,"Chorley Town Centre Shopfront Improvements, a) External condition survey on each vacant property in the town centre",09/03/2022,0165655,"1,740.00",Capital,Gosling Consulting Limited,78380,,
Chorley Borough Council,http://statistics.data.gov.uk/id/local-authority/30UE,Capital,Capital,GROW - Commercial & Property,Main Contractor,03007,Capital Expenditure,Capital,"b) Refresh external condition survey on each property in Chapel Street (up to the gate), Qty: 15, Time Allocated: 0.2",09/03/2022,0165655,900.00,Capital,Gosling Consulting Limited,78380,,
Chorley Borough Council,http://statistics.data.gov.uk/id/local-authority/30UE,Corporate Management,1008,GROW - Commercial & Property,Professional Fees,40063,Services,5027,Provide a feasibility study for constructing a multi-storey car park at Strawberry Fields: Stage 2 cost appraisal based on NRM 2,16/03/2022,0165788,"2,500.00",Revenue,Gosling Consulting Limited,78380,,
Chorley Borough Council,http://statistics.data.gov.uk/id/local-authority/30UE,Central Support Services,1009,GOVN - Policy & Governance,Computer - Support Services,40111,Communication and Computing,5028,"One off configuration cost for the implementation of Browse Aloud onto the Chorley Council website, Annual support.",30/03/2022,0166348,"1,150.00",Revenue,GOSS Interactive Limited,20316,,
Chorley Borough Council,http://statistics.data.gov.uk/id/local-authority/30UE,Central Support Services,1009,PLAN - Planning & Development,Vandalism Repairs,20005,Repairs Maintenance & Alts,5005,Graffiti removal contract Feb 2022 ongoing,02/03/2022,0164341,285.00,Revenue,Graffiti Away Ltd,78340,,
Chorley Borough Council,http://statistics.data.gov.uk/id/local-authority/30UE,Central Support Services,1009,PLAN - Planning & Development,Vandalism Repairs,20005,Repairs Maintenance & Alts,5005,Graffiti removal contract Feb 2022 ongoing,30/03/2022,0166315,430.00,Revenue,Graffiti Away Ltd,78340,,
Chorley Borough Council,http://statistics.data.gov.uk/id/local-authority/30UE,Economic Development,1096,GROW - Commercial & Property,Fixtures & Fittings - Purchase,20027,Fixtures and Fittings,5010,Supply x2 Ergo HR Plus chairs in Black @ 295 each,02/03/2022,0165090,590.00,Revenue,Grafton Projects Limited,76545,,
Chorley Borough Council,http://statistics.data.gov.uk/id/local-authority/30UE,Business Support,1095,GROW - Commercial & Property,Promotional Expenses,40159,Miscellaneous Expenses,5034,"Please supply floral elegance, artificial 48cm single stem gift wrapped red rose, Qty 1008 @ 0.60 each",02/03/2022,0165399,604.80,Revenue,Grafton Projects Limited,76545,,
Chorley Borough Council,http://statistics.data.gov.uk/id/local-authority/30UE,Corporate Management,1008,GOVN - Policy & Governance,External Audit,40064,Services,5027,2021-22 Audit,28/03/2022,0166044,"9,461.50",Revenue,Grant Thornton UK LLP,57322,,
Chorley Borough Council,http://statistics.data.gov.uk/id/local-authority/30UE,Corporate Management,1008,GROW - Commercial & Property,Publicity - Advertising,40157,Miscellaneous Expenses,5034,"Social media for Market Walk SHopping Centre Chorley. July 2021 - March 2022 @500 Per month, Total 9 months 4500",09/03/2022,0165630,500.00,Revenue,Gravity,77837,,
Chorley Borough Council,http://statistics.data.gov.uk/id/local-authority/30UE,Service Management & Support,1009,CUST - Customer & Digital,External Contractor,40198,Miscellaneous Expenses,5034,"As per Quotation QU-0176, Reference, Back lane - Heath, Charnock",09/03/2022,0165581,900.00,Revenue,Greenfield Removals Limited,78440,,
Chorley Borough Council,http://statistics.data.gov.uk/id/local-authority/30UE,Service Management & Support,1009,CUST - Customer & Digital,External Contractor,40198,Miscellaneous Expenses,5034,"As per quotation QU-0180, Removal and Disposal of fly tipped asbestos in, layby on Bolton Road A675 - Riley Green",30/03/2022,0166153,550.00,Revenue,Greenfield Removals Limited,78440,,
Chorley Borough Council,http://statistics.data.gov.uk/id/local-authority/30UE,Service Management & Support,1009,CUST - Customer & Digital,Supplies-Grounds Maintenance,40025,"Equipment, Furniture & Materia",5023,"Supply a 6m heavy duty commercial glassfibre flagpole tapering from 120mm-65mm complete with hinged base, ground rods",23/03/2022,0165942,444.95,Revenue,Harrison External Display Systems,56395,,
Chorley Borough Council,http://statistics.data.gov.uk/id/local-authority/30UE,Service Management & Support,1009,CUST - Customer & Digital,Supplies-Grounds Maintenance,40025,"Equipment, Furniture & Materia",5023,"As per email quotation from NAME REDACTED. 60,000 refuse sacks delivered to Chorley Council, PR7 1SA on tail lift vehicle",09/03/2022,0165149,"6,277.05",Revenue,Harrisons Packaging Ltd,17555,,
Chorley Borough Council,http://statistics.data.gov.uk/id/local-authority/30UE,Economic Development,1096,GOVN - Policy & Governance,Agency Staff,13000,Direct Employee Expenses,5001,Recruitment Charges for NAME REDACTED,28/03/2022,0165094,"1,237.50",Revenue,Hays Senior Finance,20078,,
Chorley Borough Council,http://statistics.data.gov.uk/id/local-authority/30UE,Central Support Services,1009,GOVN - Policy & Governance,Operational Employees Salaries,10000,Direct Employee Expenses,5001,Fees for NAME REDACTED,28/03/2022,0165224,"1,650.00",Revenue,Hays Senior Finance,20078,,
Chorley Borough Council,http://statistics.data.gov.uk/id/local-authority/30UE,Economic Development,1096,GOVN - Policy & Governance,Agency Staff,13000,Direct Employee Expenses,5001,Recruitment Charges for NAME REDACTED,28/03/2022,0165397,"1,650.00",Revenue,Hays Senior Finance,20078,,
Chorley Borough Council,http://statistics.data.gov.uk/id/local-authority/30UE,Elections,1012,GOVN - Policy & Governance,Rent/Hire Of Premises,20017,Premises Rents,5007,room hire for polling station 6 May 2021,09/03/2022,0165709,250.00,Revenue,Heapey & Wheelton Village Hall,19826,,
Chorley Borough Council,http://statistics.data.gov.uk/id/local-authority/30UE,Corporate Management,1008,EARL - Communities,Grants to Voluntary Organisations,40124,Grants and Subscriptions,5031,HSF - Essentials - 5000,28/03/2022,0166087,"5,000.00",Revenue,Help The Homeless (Chorley),16716,,
Chorley Borough Council,http://statistics.data.gov.uk/id/local-authority/30UE,Corporate Management,1008,EARL - Communities,Grants to Voluntary Organisations,40124,Grants and Subscriptions,5031,HSF - Other wider essentials - Wider 2500,28/03/2022,0166087,"2,500.00",Revenue,Help The Homeless (Chorley),16716,,
Chorley Borough Council,http://statistics.data.gov.uk/id/local-authority/30UE,Corporate Management,1008,EARL - Communities,Grants to Voluntary Organisations,40124,Grants and Subscriptions,5031,Admin Costs HSF,28/03/2022,0166087,"2,500.00",Revenue,Help The Homeless (Chorley),16716,,
Chorley Borough Council,http://statistics.data.gov.uk/id/local-authority/30UE,Central Support Services,1009,CUST - Customer & Digital,Miscellaneous Expenses,40200,Miscellaneous Expenses,5034,As per quote dated 14/12/21 - preparation and painting of Duxbury rails and gates including all materials Cost: 890,30/03/2022,0166431,890.00,Revenue,Henry Nightingale & Son,17923,,
Chorley Borough Council,http://statistics.data.gov.uk/id/local-authority/30UE,Central Support Services,1009,CUST - Customer & Digital,Computer Software-Purchase,40100,Communication and Computing,5028,"Access control hardware, Door installation and configuration (including PM), Time recording hardware, Professional Services",16/03/2022,0165612,"3,856.00",Revenue,Hfx Ltd,17164,,
Chorley Borough Council,http://statistics.data.gov.uk/id/local-authority/30UE,Central Support Services,1009,GOVN - Policy & Governance,Tools & Equipment - Purchase,40003,"Equipment, Furniture & Materia",5023,"As per quote PQ22001299, Supply of 3 Queens Jubilee Flags",16/03/2022,0165708,255.00,Revenue,HoF Display Solutions,49100,,
Chorley Borough Council,http://statistics.data.gov.uk/id/local-authority/30UE,Corporate Management,1008,EARL - Communities,Grants to Voluntary Organisations,40124,Grants and Subscriptions,5031,Second payment HSF - Essentials For Homestart,28/03/2022,0166088,"10,000.00",Revenue,Home-Start Central Lancashire Ltd,20585,,
Chorley Borough Council,http://statistics.data.gov.uk/id/local-authority/30UE,Corporate Management,1008,EARL - Communities,Grants to Voluntary Organisations,40124,Grants and Subscriptions,5031,Second payment for wider essentials,28/03/2022,0166088,"2,500.00",Revenue,Home-Start Central Lancashire Ltd,20585,,
Chorley Borough Council,http://statistics.data.gov.uk/id/local-authority/30UE,Corporate Management,1008,EARL - Communities,Grants to Voluntary Organisations,40124,Grants and Subscriptions,5031,HSF - Admin costs - Homestart,28/03/2022,0166088,"2,625.00",Revenue,Home-Start Central Lancashire Ltd,20585,,
Chorley Borough Council,http://statistics.data.gov.uk/id/local-authority/30UE,Corporate Management,1008,EARL - Communities,Grants to Voluntary Organisations,40124,Grants and Subscriptions,5031,"HSF - 3rd Payment to Homestart for essentials, vouchers and admin costs Admin - 750 + 4000 +1250",28/03/2022,0166260,"6,000.00",Revenue,Home-Start Central Lancashire Ltd,20585,,
Chorley Borough Council,http://statistics.data.gov.uk/id/local-authority/30UE,Central Support Services,1009,CUST - Customer & Digital,Telephones - Other,40085,Communication and Computing,5028,Hybrit SIP charges Nov 21,09/03/2022,0165498,585.00,Revenue,Hybrit LLP,77925,,
Chorley Borough Council,http://statistics.data.gov.uk/id/local-authority/30UE,Central Support Services,1009,CUST - Customer & Digital,Computer - Support Services,40111,Communication and Computing,5028,On-Site Support Retainer 10 days @ 300. 50% only,23/03/2022,0166051,"1,500.00",Revenue,Hybrit LLP,77925,,
Chorley Borough Council,http://statistics.data.gov.uk/id/local-authority/30UE,Central Support Services,1009,CUST - Customer & Digital,Computer - Support Services,40111,Communication and Computing,5028,"PS to support Chorley Power Outage, Emergency Infrastructure PS 3 550.00 1,650.00",28/03/2022,0166155,"1,650.00",Revenue,Hybrit LLP,77925,,
Chorley Borough Council,http://statistics.data.gov.uk/id/local-authority/30UE,Central Support Services,1009,CUST - Customer & Digital,IT Consultancy Fees,40223,Services,5027,Technical Support Cyber Security Intervention,28/03/2022,0166219,"1,375.00",Revenue,Hybrit LLP,77925,,
Chorley Borough Council,http://statistics.data.gov.uk/id/local-authority/30UE,Central Support Services,1009,CUST - Customer & Digital,Telephones - Other,40085,Communication and Computing,5028,Hybrit SIP charges Jan 22,28/03/2022,0166229,585.00,Revenue,Hybrit LLP,77925,,
Chorley Borough Council,http://statistics.data.gov.uk/id/local-authority/30UE,Corporate Management,1008,GOVN - Policy & Governance,Other Fees,40212,Miscellaneous Expenses,5034,Subsidy for the provision of a meals on wheels service in Chorley up to 27 February 2022,30/03/2022,0165806,"1,780.80",Revenue,I Care GB Ltd,77247,,
Chorley Borough Council,http://statistics.data.gov.uk/id/local-authority/30UE,Business Support,1095,GROW - Commercial & Property,Refreshments,40036,Catering,5024,Per your invoice 9448030322 - milk deliveries for February 2022,21/03/2022,0165970,324.36,Revenue,I W Critchley & Son,77615,,
Chorley Borough Council,http://statistics.data.gov.uk/id/local-authority/30UE,Central Support Services,1009,CUST - Customer & Digital,External Contractor,40198,Miscellaneous Expenses,5034,"Collection of redundant ICT equipment for secure disposal on 11 March 2022 from Chorley Council, Civic Offices, PR7 1AL",16/03/2022,0165719,399.00,Revenue,ICT Reverse asset Management Limited,77276,,
Chorley Borough Council,http://statistics.data.gov.uk/id/local-authority/30UE,Elections,1012,GOVN - Policy & Governance,Computer Software-Maintenance,40107,Communication and Computing,5028,"Annual Election Maintenance renewal 2022, PVC Auto network licence, PVC additional non-Auto client, Eros Scanning network",09/03/2022,0165396,"9,238.01",Revenue,IDOX Software Limited,17542,,
Chorley Borough Council,http://statistics.data.gov.uk/id/local-authority/30UE,Capital,Capital,EARL - Communities,Main Contractor,03007,Capital Expenditure,Capital,"Consultancy for Astley Lighting Installation including: Contract administration until handover, Principal designer duties",30/03/2022,0166217,"1,152.00",Capital,IKTEC Ltd,83843,,
Chorley Borough Council,http://statistics.data.gov.uk/id/local-authority/30UE,Central Support Services,1009,EARL - Communities,Miscellaneous Expenses,40200,Miscellaneous Expenses,5034,"Cardiac science power heart fully automatic x1, Adult CPRD Pads x2, Armor Stainless Steel Heated Outdoor cabinet with lock x1",02/03/2022,0165152,"1,370.00",Revenue,Imperative Training Limited T/A Defibshop,78355,,
Chorley Borough Council,http://statistics.data.gov.uk/id/local-authority/30UE,Capital,Capital,GROW - Commercial & Property,Main Contractor,03007,Capital Expenditure,Capital,Works completed at Buzz Bingo site,28/03/2022,0166128,"63,225.56",Capital,Inglenorth (Contracting) Limited,81123,,
Chorley Borough Council,http://statistics.data.gov.uk/id/local-authority/30UE,Control Accounts,Control,System,Manual Control Account,00001,Balance Sheet,Balance,,23/03/2022,0165624,366.98,Revenue,Inland Revenue,17445,,
Chorley Borough Council,http://statistics.data.gov.uk/id/local-authority/30UE,Regulatory Services,1048,PLAN - Planning & Development,Training Course Fees,17010,Indirect Employee Expenses,5002,National Training Conference 3 days for NAME REDACTED 16 18 November 2022,28/03/2022,0166077,760.75,Revenue,Institute Of Licensing,16987,,
Chorley Borough Council,http://statistics.data.gov.uk/id/local-authority/30UE,Community Development,1097,GROW - Commercial & Property,Rent/Hire Of Premises,20017,Premises Rents,5007,35-37 Market St Rent 12mths @ 7218.75 per quarter,28/03/2022,0166498,"7,218.75",Revenue,J R Keys,17124,,
Chorley Borough Council,http://statistics.data.gov.uk/id/local-authority/30UE,Regulatory Services,1048,PLAN - Planning & Development,Professional Fees,14011,Direct Employee Expenses,5001,Subscription fees 01.04.2022 - 31.03.2023,30/03/2022,0166308,765.00,Revenue,James Button and Co,77064,,
Chorley Borough Council,http://statistics.data.gov.uk/id/local-authority/30UE,Planning Policy,1092,EARL - Communities,Consultants` Fees,40077,Services,5027,SFRA Level 1 (Additional),28/03/2022,0166063,"1,050.00",Revenue,JBA Consulting,77859,,
Chorley Borough Council,http://statistics.data.gov.uk/id/local-authority/30UE,Culture & Heritage,1036,GOVN - Policy & Governance,Arts Development Initiatives,40187,Miscellaneous Expenses,5034,Performance Development - Iluminated,16/03/2022,0165171,"2,500.00",Revenue,Jenny Reeves,84238,,
Chorley Borough Council,http://statistics.data.gov.uk/id/local-authority/30UE,Culture & Heritage,1036,GOVN - Policy & Governance,Exhibitions & Special Events,40158,Miscellaneous Expenses,5034,Performance for Illuminated,16/03/2022,0165172,"2,000.00",Revenue,Jenny Reeves,84238,,
Chorley Borough Council,http://statistics.data.gov.uk/id/local-authority/30UE,Business Support,1095,GROW - Commercial & Property,Tools & Equipment - Purchase,40003,"Equipment, Furniture & Materia",5023,Washing machine and tumble dryer servicing for 12 months,09/03/2022,0165313,317.22,Revenue,JLA Total Care LTD,78420,,
Chorley Borough Council,http://statistics.data.gov.uk/id/local-authority/30UE,Business Support,1095,GROW - Commercial & Property,Tools & Equipment - Purchase,40003,"Equipment, Furniture & Materia",5023,Washing machine and tumble dryer servicing for 12 months,28/03/2022,0166207,333.09,Revenue,JLA Total Care LTD,78420,,
Chorley Borough Council,http://statistics.data.gov.uk/id/local-authority/30UE,Culture & Heritage,1036,GOVN - Policy & Governance,Exhibitions & Special Events,40158,Miscellaneous Expenses,5034,"Christmas tree, delivery and installation - at Astley Hall",09/03/2022,0165227,600.00,Revenue,John H Mayor & Sons Ltd,16635,,
Chorley Borough Council,http://statistics.data.gov.uk/id/local-authority/30UE,Open Spaces,1038,CUST - Customer & Digital,Maintenance/Nature Reserves,20045,Grounds Maintenance Costs,5013,10 @ 1.8m x 150mm x 75mm timber,28/03/2022,0166146,109.40,Revenue,John H Mayor & Sons Ltd,16635,,
Chorley Borough Council,http://statistics.data.gov.uk/id/local-authority/30UE,Open Spaces,1038,CUST - Customer & Digital,Maintenance/Nature Reserves,20045,Grounds Maintenance Costs,5013,20 @ 4.2m x 100mm x 35mm timber,28/03/2022,0166146,172.40,Revenue,John H Mayor & Sons Ltd,16635,,
Chorley Borough Council,http://statistics.data.gov.uk/id/local-authority/30UE,Central Support Services,1009,GROW - Commercial & Property,Main Contractor,03007,Capital Expenditure,Capital,Alker Lane Design & Build Contract,21/03/2022,0166005,"1,150,766.33",Revenue,John Turner Construction Group Limited,82376,,
Chorley Borough Council,http://statistics.data.gov.uk/id/local-authority/30UE,Development Control,1091,PLAN - Planning & Development,Statutory Notices,40160,Miscellaneous Expenses,5034,Planning Public Notices to appear in the Chorley Guardian April 2021 to March 2022,28/03/2022,0165244,689.52,Revenue,JPI Media - Johnston Publishing Ltd,20072,,
Chorley Borough Council,http://statistics.data.gov.uk/id/local-authority/30UE,Development Control,1091,PLAN - Planning & Development,Statutory Notices,40160,Miscellaneous Expenses,5034,Planning Public Notices to appear in the Chorley Guardian April 2021 to March 2022,28/03/2022,0165971,270.40,Revenue,JPI Media - Johnston Publishing Ltd,20072,,
Chorley Borough Council,http://statistics.data.gov.uk/id/local-authority/30UE,Central Support Services,1009,CUST - Customer & Digital,Service Fees,40056,Services,5027,Chorley Guardian General Notices - NMC6153180,28/03/2022,0165972,668.04,Revenue,JPI Media - Johnston Publishing Ltd,20072,,
Chorley Borough Council,http://statistics.data.gov.uk/id/local-authority/30UE,Business Support,1095,GROW - Commercial & Property,Promotional Expenses,40159,Miscellaneous Expenses,5034,"Supply rabbit willow sculpture for Market Walk Shopping Centre (Easter Centre Piece), Willow woven around steel framework",23/03/2022,0166105,"1,885.00",Revenue,Julie Livesey at Pip Cottage,84161,,
Chorley Borough Council,http://statistics.data.gov.uk/id/local-authority/30UE,Capital,Capital,EARL - Communities,Grants,03002,Capital Expenditure,Capital,21/00155/cag,28/03/2022,0166481,"2,405.00",Capital,K Berry Ltd,16421,,
Chorley Borough Council,http://statistics.data.gov.uk/id/local-authority/30UE,Capital,Capital,EARL - Communities,Grants,03002,Capital Expenditure,Capital,21/00166/cag,28/03/2022,0166483,"4,980.00",Capital,K Berry Ltd,16421,,
Chorley Borough Council,http://statistics.data.gov.uk/id/local-authority/30UE,Homelessness,1075,EARL - Communities,Miscellaneous Expenses,40200,Miscellaneous Expenses,5034,"International Women's Day Event, United Reformed Church, Bollywood DJ PA System, Inc Bollywood Dance Workshop",16/03/2022,0165753,420.00,Revenue,Kash.SJBLimited,78455,,
Chorley Borough Council,http://statistics.data.gov.uk/id/local-authority/30UE,Culture & Heritage,1036,GOVN - Policy & Governance,Exhibitions & Special Events,40158,Miscellaneous Expenses,5034,Costume - Illuminated,28/03/2022,0166433,"1,000.00",Revenue,Katie Duxbury,84237,,
Chorley Borough Council,http://statistics.data.gov.uk/id/local-authority/30UE,Service Management & Support,1009,CUST - Customer & Digital,Entry Fees,40237,Miscellaneous Expenses,5034,Coronation Recreation Ground - Green Flag application fee 2022,28/03/2022,0164768,339.00,Revenue,Keep Britain Tidy,22196,,
Chorley Borough Council,http://statistics.data.gov.uk/id/local-authority/30UE,Service Management & Support,1009,CUST - Customer & Digital,Entry Fees,40237,Miscellaneous Expenses,5034,Green Flag fee for the Withnell Nature Reserve,28/03/2022,0165165,339.00,Revenue,Keep Britain Tidy,22196,,
Chorley Borough Council,http://statistics.data.gov.uk/id/local-authority/30UE,Service Management & Support,1009,CUST - Customer & Digital,Entry Fees,40237,Miscellaneous Expenses,5034,"Green Flag fee for Rangletts Recreation Ground, Chorley",28/03/2022,0165973,339.00,Revenue,Keep Britain Tidy,22196,,
Chorley Borough Council,http://statistics.data.gov.uk/id/local-authority/30UE,Service Management & Support,1009,CUST - Customer & Digital,Entry Fees,40237,Miscellaneous Expenses,5034,Harpers Recreation Ground - Green Flag application fee,28/03/2022,0165974,339.00,Revenue,Keep Britain Tidy,22196,,
Chorley Borough Council,http://statistics.data.gov.uk/id/local-authority/30UE,Control Accounts,Control,GOVN - Policy & Governance,General Balances,00100,Balance Sheet,Balance,Deductions from Expenses,23/03/2022,0166058,"1,225.38",Revenue,Labour Councillors Association,17577,,
Chorley Borough Council,http://statistics.data.gov.uk/id/local-authority/30UE,Service Management & Support,1009,CUST - Customer & Digital,Grounds Maintenance Contractor,20043,Grounds Maintenance Costs,5013,"Genny - CAT Signal Generator, Genny - CAT Signal Generator, CAT - Cable Avoidance Tester, CAT - Cable Avoidance Tester",30/03/2022,0166277,327.60,Revenue,Lambda Calibration Ltd,73724,,
Chorley Borough Council,http://statistics.data.gov.uk/id/local-authority/30UE,Corporate Management,1008,EARL - Communities,External Contractor,40198,Miscellaneous Expenses,5034,Funding for clearance at property,16/03/2022,0165771,300.00,Revenue,Lancashire Clearance Services Ltd,79462,,
Chorley Borough Council,http://statistics.data.gov.uk/id/local-authority/30UE,Central Support Services,1009,GROW - Commercial & Property,General Repairs - Reactive,20004,Repairs Maintenance & Alts,5005,"ADDRESS REDACTED Cotswold House, Property Clearance, Mattress Disposal, Refrigerator Removal, Carpet uplift and disposal",30/03/2022,0166265,400.00,Revenue,Lancashire Clearance Services Ltd,79462,,
Chorley Borough Council,http://statistics.data.gov.uk/id/local-authority/30UE,Central Support Services,1009,GROW - Commercial & Property,General Repairs - Reactive,20004,Repairs Maintenance & Alts,5005,"Primrose Gardens ADDRESS REDACTED, Removal and Disposal of contents including carpets, curtains and outside items",30/03/2022,0166311,415.00,Revenue,Lancashire Clearance Services Ltd,79462,,
Chorley Borough Council,http://statistics.data.gov.uk/id/local-authority/30UE,Capital,Capital,GOVN - Policy & Governance,Main Contractor,03007,Capital Expenditure,Capital,"Astley Hall Training Day: NAME REDACTED 3/3/2022, Removal of surface dirt on decorative frames and paintings in preparation.",21/03/2022,0165830,325.53,Capital,Lancashire County Council,17758,,
Chorley Borough Council,http://statistics.data.gov.uk/id/local-authority/30UE,Capital,Capital,EARL - Communities,Grants,03002,Capital Expenditure,Capital,21/00034/dfg,28/03/2022,0166488,"2,321.00",Capital,Lancashire County Council,17758,,
Chorley Borough Council,http://statistics.data.gov.uk/id/local-authority/30UE,Capital,Capital,EARL - Communities,Grants,03002,Capital Expenditure,Capital,Ceiling Track Hoist fitted 20/00197/dfg,28/03/2022,0166489,"2,560.02",Capital,Lancashire County Council,17758,,
Chorley Borough Council,http://statistics.data.gov.uk/id/local-authority/30UE,Capital,Capital,EARL - Communities,Grants,03002,Capital Expenditure,Capital,21/00165/cag,28/03/2022,0166491,"2,568.32",Capital,Lancashire County Council,17758,,
Chorley Borough Council,http://statistics.data.gov.uk/id/local-authority/30UE,Precepts and Collection Fund,Precepts,GOVN - Policy & Governance,LCC Precept,02009,Precepts & Collection Fund,Precept,LCC Council Tax Precept,30/03/2022,0166492,"5,460,622.00",Revenue,Lancashire County Council,18386,,
Chorley Borough Council,http://statistics.data.gov.uk/id/local-authority/30UE,Collection Fund Revenue Accoun,,GOVN - Policy & Governance,NNDR County Share,02036,Precepts & Collection Fund,Precept,LCC Business Rates Precept,30/03/2022,0166492,"137,018.00",Revenue,Lancashire County Council,18386,,
Chorley Borough Council,http://statistics.data.gov.uk/id/local-authority/30UE,Capital,Capital,EARL - Communities,Grants,03002,Capital Expenditure,Capital,21/00146/cag,28/03/2022,0166495,"3,045.68",Capital,Lancashire County Council,17758,,
Chorley Borough Council,http://statistics.data.gov.uk/id/local-authority/30UE,Central Support Services,1009,GROW - Commercial & Property,Miscellaneous Expenses,40200,Miscellaneous Expenses,5034,Tatton S106 Travel Plan Contribution & Legal Fees,16/03/2022,0165752,"6,000.00",Revenue,Lancashire County Council Highways,18845,,
Chorley Borough Council,http://statistics.data.gov.uk/id/local-authority/30UE,Business Support,1095,GROW - Commercial & Property,General Repairs - Reactive,20004,Repairs Maintenance & Alts,5005,Market Walk - reactive repair works,23/03/2022,0165327,500.25,Revenue,Lancashire Gas Services Ltd,78192,,
Chorley Borough Council,http://statistics.data.gov.uk/id/local-authority/30UE,Central Support Services,1009,GROW - Commercial & Property,General Repairs - Reactive,20004,Repairs Maintenance & Alts,5005,Cotswold House - reactive repair works,23/03/2022,0165355,419.45,Revenue,Lancashire Gas Services Ltd,78192,,
Chorley Borough Council,http://statistics.data.gov.uk/id/local-authority/30UE,Central Support Services,1009,GROW - Commercial & Property,General Repairs - Reactive,20004,Repairs Maintenance & Alts,5005,Residential Housing - reactive repair works,23/03/2022,0165357,"1,108.92",Revenue,Lancashire Gas Services Ltd,78192,,
Chorley Borough Council,http://statistics.data.gov.uk/id/local-authority/30UE,Central Support Services,1009,GROW - Commercial & Property,General Repairs - Reactive,20004,Repairs Maintenance & Alts,5005,Astley Hall and Buildings - reactive repair works,23/03/2022,0165359,861.72,Revenue,Lancashire Gas Services Ltd,78192,,
Chorley Borough Council,http://statistics.data.gov.uk/id/local-authority/30UE,Central Support Services,1009,GROW - Commercial & Property,General Repairs - Reactive,20004,Repairs Maintenance & Alts,5005,All Seasons - Reactive blanket,02/03/2022,0165455,"1,041.35",Revenue,Lancashire Gas Services Ltd,78192,,
Chorley Borough Council,http://statistics.data.gov.uk/id/local-authority/30UE,Central Support Services,1009,GROW - Commercial & Property,General Repairs - Reactive,20004,Repairs Maintenance & Alts,5005,Brinscall Baths - Reactive blanket,02/03/2022,0165497,263.25,Revenue,Lancashire Gas Services Ltd,78192,,
Chorley Borough Council,http://statistics.data.gov.uk/id/local-authority/30UE,Central Support Services,1009,GROW - Commercial & Property,General Repairs - Reactive,20004,Repairs Maintenance & Alts,5005,All Seasons - Reactive blanket,30/03/2022,0166239,"1,362.70",Revenue,Lancashire Gas Services Ltd,78192,,
Chorley Borough Council,http://statistics.data.gov.uk/id/local-authority/30UE,Central Support Services,1009,GROW - Commercial & Property,General Repairs - Reactive,20004,Repairs Maintenance & Alts,5005,"ADDRESS REDACTED, Recent call out to report of no heating or hot water, engineer recommended replacing the boiler",30/03/2022,0166245,"3,758.00",Revenue,Lancashire Gas Services Ltd,78192,,
Chorley Borough Council,http://statistics.data.gov.uk/id/local-authority/30UE,Business Support,1095,GROW - Commercial & Property,Building Services Maintenance Other,20076,Fixtures and Fittings,5010,Safe isolation drain down and removal of existing Santon water boilers in the three break out rooms. Supply and install.,30/03/2022,0166246,"2,113.50",Revenue,Lancashire Gas Services Ltd,78192,,
Chorley Borough Council,http://statistics.data.gov.uk/id/local-authority/30UE,Central Support Services,1009,GROW - Commercial & Property,General Repairs - Reactive,20004,Repairs Maintenance & Alts,5005,Chorley Market supply and install 1 x Deva Sensor chrome plated mono tap.,30/03/2022,0166247,339.64,Revenue,Lancashire Gas Services Ltd,78192,,
Chorley Borough Council,http://statistics.data.gov.uk/id/local-authority/30UE,Central Support Services,1009,GROW - Commercial & Property,General Repairs - Reactive,20004,Repairs Maintenance & Alts,5005,Brinscall Baths - Reactive blanket,28/03/2022,0166455,461.64,Revenue,Lancashire Gas Services Ltd,78192,,
Chorley Borough Council,http://statistics.data.gov.uk/id/local-authority/30UE,Central Support Services,1009,GROW - Commercial & Property,General Repairs - Reactive,20004,Repairs Maintenance & Alts,5005,Primrose Gardens - reactive repair works,28/03/2022,0166466,304.00,Revenue,Lancashire Gas Services Ltd,78192,,
Chorley Borough Council,http://statistics.data.gov.uk/id/local-authority/30UE,Central Support Services,1009,GROW - Commercial & Property,General Repairs - Reactive,20004,Repairs Maintenance & Alts,5005,commercial - reactive repairs,28/03/2022,0166472,392.00,Revenue,Lancashire Gas Services Ltd,78192,,
Chorley Borough Council,http://statistics.data.gov.uk/id/local-authority/30UE,Central Support Services,1009,GROW - Commercial & Property,General Repairs - Reactive,20004,Repairs Maintenance & Alts,5005,Chorley Market - reactive repair works,30/03/2022,0166478,409.51,Revenue,Lancashire Gas Services Ltd,78192,,
Chorley Borough Council,http://statistics.data.gov.uk/id/local-authority/30UE,Central Support Services,1009,GROW - Commercial & Property,General Repairs - Reactive,20004,Repairs Maintenance & Alts,5005,Town Hall - reactive repair works,30/03/2022,0166482,451.00,Revenue,Lancashire Gas Services Ltd,78192,,
Chorley Borough Council,http://statistics.data.gov.uk/id/local-authority/30UE,Business Support,1095,GROW - Commercial & Property,General Repairs - Reactive,20004,Repairs Maintenance & Alts,5005,Strawberry Fields - reactive repair works,28/03/2022,0166484,"1,770.42",Revenue,Lancashire Gas Services Ltd,78192,,
Chorley Borough Council,http://statistics.data.gov.uk/id/local-authority/30UE,Central Support Services,1009,GOVN - Policy & Governance,Consultants` Fees,40077,Services,5027,Mercer's Actuarial Services - YE 31 March 2021,30/03/2022,0166540,335.00,Revenue,Lancashire Pensions Service BACS ONLY,78212,,
Chorley Borough Council,http://statistics.data.gov.uk/id/local-authority/30UE,Unapportionable Central OHeads,1009,GOVN - Policy & Governance,Pensions Increase Act Payments,18005,Indirect Employee Expenses,5002,CAY Feb 22,30/03/2022,0165976,"16,993.55",Revenue,Lancashire Pensions Services DD ONLY,16696,,
Chorley Borough Council,http://statistics.data.gov.uk/id/local-authority/30UE,Other Short Term Creditors,,GOVN - Policy & Governance,General Balances,00100,Balance Sheet,Balance,Employee Pension Contributions Jan 22,30/03/2022,0166485,"43,668.25",Revenue,Lancashire Pensions Services DD ONLY,16696,,
Chorley Borough Council,http://statistics.data.gov.uk/id/local-authority/30UE,Other Short Term Creditors,,GOVN - Policy & Governance,General Balances,00100,Balance Sheet,Balance,Employee Pension Contributions Feb 22,30/03/2022,0166486,"45,498.33",Revenue,Lancashire Pensions Services DD ONLY,16696,,
Chorley Borough Council,http://statistics.data.gov.uk/id/local-authority/30UE,Precepts and Collection Fund,Precepts,GOVN - Policy & Governance,LCFA Precept,02011,Precepts & Collection Fund,Precept,LCFA Council Tax Precept,30/03/2022,0166487,"271,012.00",Revenue,Lancs Combined Fire Authority,17768,,
Chorley Borough Council,http://statistics.data.gov.uk/id/local-authority/30UE,Collection Fund Revenue Accoun,,GOVN - Policy & Governance,NNDR Fire Share,02037,Precepts & Collection Fund,Precept,LCFA Business Rates Precept,30/03/2022,0166487,"14,851.00",Revenue,Lancs Combined Fire Authority,17768,,
Chorley Borough Council,http://statistics.data.gov.uk/id/local-authority/30UE,Development Control,1091,PLAN - Planning & Development,Professional Fees,40063,Services,5027,Consultancy fees for Planning Inquiries (Appeals at Parr Lane and Carrington Road),28/03/2022,0165707,"12,000.00",Revenue,Land Use Consultants (LUC) Ltd,81849,,
Chorley Borough Council,http://statistics.data.gov.uk/id/local-authority/30UE,Development Control,1091,PLAN - Planning & Development,Professional Fees,40063,Services,5027,Consultancy fees for Planning Inquiries (Appeals at Parr Lane and Carrington Road) 2,30/03/2022,0166318,"4,000.00",Revenue,Land Use Consultants (LUC) Ltd,81849,,
Chorley Borough Council,http://statistics.data.gov.uk/id/local-authority/30UE,Capital,Capital,EARL - Communities,Main Contractor,03007,Capital Expenditure,Capital,"Design and Construction for 106 x 70 Artificial Grass Pitch, Including New Fencing, Hardstanding, Floodlighting and Track Works",30/03/2022,0165748,"1,799.60",Capital,Lano Sports,80704,,
Chorley Borough Council,http://statistics.data.gov.uk/id/local-authority/30UE,Central Support Services,1009,GOVN - Policy & Governance,Professional Fees,40063,Services,5027,VAT and Capital Gains Tax Advice on the potential sale of a commercial property Investment,28/03/2022,0166137,"1,350.00",Revenue,LAVAT Consulting Ltd,76942,,
Chorley Borough Council,http://statistics.data.gov.uk/id/local-authority/30UE,Central Support Services,1009,GROW - Commercial & Property,Consultants` Fees,40077,Services,5027,Asset Valuation for the 2020-21 Statement of Accounts as per tender,28/03/2022,0164766,"5,790.00",Revenue,Lea Hough & Co LLP,76318,,
Chorley Borough Council,http://statistics.data.gov.uk/id/local-authority/30UE,Open Spaces,1038,GOVN - Policy & Governance,Car Leasing Payment,14100,Direct Employee Expenses,5001,VIN REDACTED,30/03/2022,0166538,"2,797.13",Revenue,LeasePlan UK Ltd T/A Automotive Leasing,65197,,
Chorley Borough Council,http://statistics.data.gov.uk/id/local-authority/30UE,Open Spaces,1038,GOVN - Policy & Governance,Car Leasing Payment,14100,Direct Employee Expenses,5001,VAT,30/03/2022,0166538,242.19,Revenue,LeasePlan UK Ltd T/A Automotive Leasing,65197,,
Chorley Borough Council,http://statistics.data.gov.uk/id/local-authority/30UE,Control Accounts,Control,GOVN - Policy & Governance,Manual Control Account,00001,Balance Sheet,Balance,- VAT,30/03/2022,0166538,-242.19,Revenue,LeasePlan UK Ltd T/A Automotive Leasing,65197,,
Chorley Borough Council,http://statistics.data.gov.uk/id/local-authority/30UE,Economic Development,1096,GOVN - Policy & Governance,Training Course Fees,17010,Indirect Employee Expenses,5002,Postgraduate Tuition Fees for NAME REDACTED,02/03/2022,0165162,"1,983.00",Revenue,Leeds Beckett University,78518,,
Chorley Borough Council,http://statistics.data.gov.uk/id/local-authority/30UE,Homelessness,1075,EARL - Communities,Agency Staff,13000,Direct Employee Expenses,5001,Installation of security guard at Cotswold House facilitate widened use of Winter Watch room comply with Covid safety measures.,02/03/2022,0165008,"7,065.68",Revenue,Leisure Guard Security UK Ltd,84259,,
Chorley Borough Council,http://statistics.data.gov.uk/id/local-authority/30UE,Homelessness,1075,EARL - Communities,Agency Staff,13000,Direct Employee Expenses,5001,Installation of security guard at Cotswold House facilitate widened use of Winter Watch room comply with Covid safety measures.,16/03/2022,0165631,"4,079.24",Revenue,Leisure Guard Security UK Ltd,84259,,
Chorley Borough Council,http://statistics.data.gov.uk/id/local-authority/30UE,Democratic Represent and  Mgnt,1007,GOVN - Policy & Governance,Car Leasing Payment,14100,Direct Employee Expenses,5001,VIN REDACTED,02/03/2022,0165493,377.19,Revenue,Lex Autolease Ltd,70682,,
Chorley Borough Council,http://statistics.data.gov.uk/id/local-authority/30UE,Democratic Represent and  Mgnt,1007,GOVN - Policy & Governance,Car Leasing Payment,14100,Direct Employee Expenses,5001,vat,02/03/2022,0165493,34.42,Revenue,Lex Autolease Ltd,70682,,
Chorley Borough Council,http://statistics.data.gov.uk/id/local-authority/30UE,Control Accounts,Control,GOVN - Policy & Governance,Manual Control Account,00001,Balance Sheet,Balance,-vat,02/03/2022,0165493,-34.42,Revenue,Lex Autolease Ltd,70682,,
Chorley Borough Council,http://statistics.data.gov.uk/id/local-authority/30UE,Democratic Represent and  Mgnt,1007,GOVN - Policy & Governance,Car Leasing Payment,14100,Direct Employee Expenses,5001,VIN REDACTED,02/03/2022,0165494,377.19,Revenue,Lex Autolease Ltd,70682,,
Chorley Borough Council,http://statistics.data.gov.uk/id/local-authority/30UE,Democratic Represent and  Mgnt,1007,GOVN - Policy & Governance,Car Leasing Payment,14100,Direct Employee Expenses,5001,vat,02/03/2022,0165494,34.42,Revenue,Lex Autolease Ltd,70682,,
Chorley Borough Council,http://statistics.data.gov.uk/id/local-authority/30UE,Control Accounts,Control,GOVN - Policy & Governance,Manual Control Account,00001,Balance Sheet,Balance,-vat,02/03/2022,0165494,-34.42,Revenue,Lex Autolease Ltd,70682,,
Chorley Borough Council,http://statistics.data.gov.uk/id/local-authority/30UE,Democratic Represent and  Mgnt,1007,GOVN - Policy & Governance,Car Leasing Payment,14100,Direct Employee Expenses,5001,VIN REDACTED,30/03/2022,0166537,377.19,Revenue,Lex Autolease Ltd,70682,,
Chorley Borough Council,http://statistics.data.gov.uk/id/local-authority/30UE,Democratic Represent and  Mgnt,1007,GOVN - Policy & Governance,Car Leasing Payment,14100,Direct Employee Expenses,5001,VAT,30/03/2022,0166537,34.42,Revenue,Lex Autolease Ltd,70682,,
Chorley Borough Council,http://statistics.data.gov.uk/id/local-authority/30UE,Control Accounts,Control,GOVN - Policy & Governance,Manual Control Account,00001,Balance Sheet,Balance,- VAT,30/03/2022,0166537,-34.42,Revenue,Lex Autolease Ltd,70682,,
Chorley Borough Council,http://statistics.data.gov.uk/id/local-authority/30UE,Central Support Services,1009,GOVN - Policy & Governance,General Subscriptions,40146,Grants and Subscriptions,5031,NDNR1 Support for 2022/23,30/03/2022,0165977,"1,995.00",Revenue,LG Futures,22551,,
Chorley Borough Council,http://statistics.data.gov.uk/id/local-authority/30UE,Central Support Services,1009,GROW - Commercial & Property,Planned Maintenance,20006,Repairs Maintenance & Alts,5005,"Clayton Green, Lightning inspection remedials",28/03/2022,0166211,365.00,Revenue,Lightning Consultants (UK) Ltd,17446,,
Chorley Borough Council,http://statistics.data.gov.uk/id/local-authority/30UE,Central Support Services,1009,GROW - Commercial & Property,Planned Maintenance,20006,Repairs Maintenance & Alts,5005,"Primrose, Lightning inspection remedials",28/03/2022,0166211,252.00,Revenue,Lightning Consultants (UK) Ltd,17446,,
Chorley Borough Council,http://statistics.data.gov.uk/id/local-authority/30UE,Central Support Services,1009,GROW - Commercial & Property,Planned Maintenance,20006,Repairs Maintenance & Alts,5005,"Friday St, Lightning inspection remedials",28/03/2022,0166211,340.00,Revenue,Lightning Consultants (UK) Ltd,17446,,
Chorley Borough Council,http://statistics.data.gov.uk/id/local-authority/30UE,Capital,Capital,GROW - Commercial & Property,Main Contractor,03007,Capital Expenditure,Capital,Project management services for Astley Hall Restoration project,16/03/2022,0165328,"2,875.00",Capital,Linchpin Ltd,80779,,
Chorley Borough Council,http://statistics.data.gov.uk/id/local-authority/30UE,Capital,Capital,GROW - Commercial & Property,Main Contractor,03007,Capital Expenditure,Capital,Project Management for Astley Restoration Project,28/03/2022,0166248,"1,839.00",Capital,Linchpin Ltd,80779,,
Chorley Borough Council,http://statistics.data.gov.uk/id/local-authority/30UE,Open Spaces,1038,EARL - Communities,External Contractor,40198,Miscellaneous Expenses,5034,"32sq/m of wildflower turf for Crosse Hall Allotments. Delivery to Brockholes Nature Reserve, FAO NAME REDACTED",23/03/2022,0166030,411.52,Revenue,Lindum seeded Turf Ltd,80933,,
Chorley Borough Council,http://statistics.data.gov.uk/id/local-authority/30UE,Central Support Services,1009,Chief Executive,Stationery,40050,"Printing, Stationery & General",5026,Lyreco Twinwire Manuscript Books A5,28/03/2022,0164223,12.00,Revenue,Lyreco UK Ltd,17623,,
Chorley Borough Council,http://statistics.data.gov.uk/id/local-authority/30UE,Central Support Services,1009,Chief Executive,Stationery,40050,"Printing, Stationery & General",5026,BX100 LYRECO LAM POUCH 2X75MI A4 GLOSS,28/03/2022,0164223,2.38,Revenue,Lyreco UK Ltd,17623,,
Chorley Borough Council,http://statistics.data.gov.uk/id/local-authority/30UE,Central Support Services,1009,Chief Executive,Stationery,40050,"Printing, Stationery & General",5026,6469418 LYRECO A3 GLOSS LAMINATING POUCH - Box 100,28/03/2022,0164223,4.83,Revenue,Lyreco UK Ltd,17623,,
Chorley Borough Council,http://statistics.data.gov.uk/id/local-authority/30UE,Central Support Services,1009,Chief Executive,Stationery,40050,"Printing, Stationery & General",5026,Sellotape holder,28/03/2022,0164223,29.10,Revenue,Lyreco UK Ltd,17623,,
Chorley Borough Council,http://statistics.data.gov.uk/id/local-authority/30UE,Central Support Services,1009,Chief Executive,Stationery,40050,"Printing, Stationery & General",5026,Petty Cash Voucher Pads 127 X 102Mm - Pack Of 10 Pads (10 X 100 Sheets),28/03/2022,0164223,11.50,Revenue,Lyreco UK Ltd,17623,,
Chorley Borough Council,http://statistics.data.gov.uk/id/local-authority/30UE,Central Support Services,1009,Chief Executive,Computer Consumables,40099,Communication and Computing,5028,BX1000 LYRECO PAP CLIP ROUND GALV 32MM,28/03/2022,0164223,0.66,Revenue,Lyreco UK Ltd,17623,,
Chorley Borough Council,http://statistics.data.gov.uk/id/local-authority/30UE,Central Support Services,1009,Chief Executive,Stationery,40050,"Printing, Stationery & General",5026, A4 Multi-Punched Plastic Pockets 80 Microns - Pack Of 100,28/03/2022,0164223,4.44,Revenue,Lyreco UK Ltd,17623,,
Chorley Borough Council,http://statistics.data.gov.uk/id/local-authority/30UE,Central Support Services,1009,Chief Executive,Stationery,40050,"Printing, Stationery & General",5026, LYRECO BUDGET CLEAR A4 CUT FLUSH PLASTIC FOLDERS 90 MICRONS - BOX OF 100,28/03/2022,0164223,1.85,Revenue,Lyreco UK Ltd,17623,,
Chorley Borough Council,http://statistics.data.gov.uk/id/local-authority/30UE,Central Support Services,1009,Chief Executive,Stationery,40050,"Printing, Stationery & General",5026,sharpie fine blister pack (coloured),28/03/2022,0164223,8.98,Revenue,Lyreco UK Ltd,17623,,
Chorley Borough Council,http://statistics.data.gov.uk/id/local-authority/30UE,Central Support Services,1009,Chief Executive,Stationery,40050,"Printing, Stationery & General",5026,LYRECO RETRACTABLE GEL INK BLACK PENS 0.5MM LINE WIDTH - BOX OF 12,28/03/2022,0164223,10.56,Revenue,Lyreco UK Ltd,17623,,
Chorley Borough Council,http://statistics.data.gov.uk/id/local-authority/30UE,Central Support Services,1009,Chief Executive,Stationery,40050,"Printing, Stationery & General",5026,wirebound notebooks (ruled and perforated),28/03/2022,0164223,2.76,Revenue,Lyreco UK Ltd,17623,,
Chorley Borough Council,http://statistics.data.gov.uk/id/local-authority/30UE,Central Support Services,1009,Chief Executive,Stationery,40050,"Printing, Stationery & General",5026,Stapler,28/03/2022,0164223,27.75,Revenue,Lyreco UK Ltd,17623,,
Chorley Borough Council,http://statistics.data.gov.uk/id/local-authority/30UE,Central Support Services,1009,Chief Executive,Stationery,40050,"Printing, Stationery & General",5026,LYRECO REPO NOTES 76X76MM 100SHT YLLW,28/03/2022,0164223,0.72,Revenue,Lyreco UK Ltd,17623,,
Chorley Borough Council,http://statistics.data.gov.uk/id/local-authority/30UE,Central Support Services,1009,Chief Executive,Stationery,40050,"Printing, Stationery & General",5026,Lyreco Yellow sticky notes pkt  of 12 125 -7,28/03/2022,0164223,1.08,Revenue,Lyreco UK Ltd,17623,,
Chorley Borough Council,http://statistics.data.gov.uk/id/local-authority/30UE,Central Support Services,1009,Chief Executive,Stationery,40050,"Printing, Stationery & General",5026,LYRECO WHITE C5 SELF SEAL WINDOW ENVELOPES 90GSM - BOX OF 500,28/03/2022,0164223,21.55,Revenue,Lyreco UK Ltd,17623,,
Chorley Borough Council,http://statistics.data.gov.uk/id/local-authority/30UE,Central Support Services,1009,Chief Executive,Stationery,40050,"Printing, Stationery & General",5026,ANTI-SLIP MOUSE MAT - BLUE,28/03/2022,0164223,3.15,Revenue,Lyreco UK Ltd,17623,,
Chorley Borough Council,http://statistics.data.gov.uk/id/local-authority/30UE,Central Support Services,1009,Chief Executive,Computer Consumables,40099,Communication and Computing,5028,Black Toner Cartridge for Lexmark T650 printer,28/03/2022,0164223,299.22,Revenue,Lyreco UK Ltd,17623,,
Chorley Borough Council,http://statistics.data.gov.uk/id/local-authority/30UE,Central Support Services,1009,Chief Executive,Stationery,40050,"Printing, Stationery & General",5026,Tippex,28/03/2022,0164223,1.30,Revenue,Lyreco UK Ltd,17623,,
Chorley Borough Council,http://statistics.data.gov.uk/id/local-authority/30UE,Central Support Services,1009,Chief Executive,Stationery,40050,"Printing, Stationery & General",5026,Micron Stick Ball Point,28/03/2022,0164223,1.50,Revenue,Lyreco UK Ltd,17623,,
Chorley Borough Council,http://statistics.data.gov.uk/id/local-authority/30UE,Central Support Services,1009,Chief Executive,Stationery,40050,"Printing, Stationery & General",5026,ANTI-SLIP MOUSE MAT - BLUE,28/03/2022,0164223,3.15,Revenue,Lyreco UK Ltd,17623,,
Chorley Borough Council,http://statistics.data.gov.uk/id/local-authority/30UE,Central Support Services,1009,Chief Executive,Stationery,40050,"Printing, Stationery & General",5026,Lyreco Twinwire Manuscript Books A5,28/03/2022,0164223,6.00,Revenue,Lyreco UK Ltd,17623,,
Chorley Borough Council,http://statistics.data.gov.uk/id/local-authority/30UE,Central Support Services,1009,Chief Executive,Stationery,40050,"Printing, Stationery & General",5026,Lyreco Yellow sticky notes pkt  of 12 125 -7,28/03/2022,0164223,1.08,Revenue,Lyreco UK Ltd,17623,,
Chorley Borough Council,http://statistics.data.gov.uk/id/local-authority/30UE,Central Support Services,1009,Chief Executive,Stationery,40050,"Printing, Stationery & General",5026,LYRECO REPO NOTES 76X76MM 100SHT YLLW,28/03/2022,0164223,0.72,Revenue,Lyreco UK Ltd,17623,,
Chorley Borough Council,http://statistics.data.gov.uk/id/local-authority/30UE,Service Management & Support,1009,CUST - Customer & Digital,Grounds Maintenance Contractor,20043,Grounds Maintenance Costs,5013,Walker Tree Services Invoice 60,09/03/2022,0165250,"5,680.00",Revenue,M J Walker,62044,,
Chorley Borough Council,http://statistics.data.gov.uk/id/local-authority/30UE,Service Management & Support,1009,CUST - Customer & Digital,Grounds Maintenance Contractor,20043,Grounds Maintenance Costs,5013,Walkers Tree Services Invoice 61,30/03/2022,0166282,"4,735.00",Revenue,M J Walker,62044,,
Chorley Borough Council,http://statistics.data.gov.uk/id/local-authority/30UE,Homelessness,1075,EARL - Communities,Furniture - Purchase,40012,"Equipment, Furniture & Materia",5023,"Supply and Installation of carpet at ADDRESS REDACTED. Living Room, Hall Way and Dining Room.",16/03/2022,0165754,640.00,Revenue,Master Carpets Ltd,84717,,
Chorley Borough Council,http://statistics.data.gov.uk/id/local-authority/30UE,Corporate Management,1008,GOVN - Policy & Governance,Agency Staff,13000,Direct Employee Expenses,5001,NAME REDACTED,02/03/2022,0165252,581.04,Revenue,Matrix SCM Ltd,22128,,
Chorley Borough Council,http://statistics.data.gov.uk/id/local-authority/30UE,Corporate Management,1008,GOVN - Policy & Governance,Agency Staff,13000,Direct Employee Expenses,5001,NAME REDACTED,21/03/2022,0165535,577.37,Revenue,Matrix SCM Ltd,22128,,
Chorley Borough Council,http://statistics.data.gov.uk/id/local-authority/30UE,Corporate Management,1008,GOVN - Policy & Governance,Agency Staff,13000,Direct Employee Expenses,5001,NAME REDACTED,23/03/2022,0165726,592.10,Revenue,Matrix SCM Ltd,22128,,
Chorley Borough Council,http://statistics.data.gov.uk/id/local-authority/30UE,Corporate Management,1008,GOVN - Policy & Governance,Agency Staff,13000,Direct Employee Expenses,5001,NAME REDACTED,30/03/2022,0166122,577.36,Revenue,Matrix SCM Ltd,22128,,
Chorley Borough Council,http://statistics.data.gov.uk/id/local-authority/30UE,Corporate Management,1008,GOVN - Policy & Governance,Agency Staff,13000,Direct Employee Expenses,5001,NAME REDACTED,30/03/2022,0166536,581.04,Revenue,Matrix SCM Ltd,22128,,
Chorley Borough Council,http://statistics.data.gov.uk/id/local-authority/30UE,Development Control,1091,CUST - Customer & Digital,Legal Fees,40171,Miscellaneous Expenses,5034,Land Near Hut Lane. Application For Change Of Use Of The Land To A Residential Gypsy And Traveller Site,09/03/2022,0163806,"1,200.00",Revenue,Matthew Henderson,77746,,
Chorley Borough Council,http://statistics.data.gov.uk/id/local-authority/30UE,Central Support Services,1009,EARL - Communities,Miscellaneous Expenses,40200,Miscellaneous Expenses,5034,neighbourhood working,16/03/2022,0165705,"1,000.00",Revenue,Mawdesley Village Hall,18423,,
Chorley Borough Council,http://statistics.data.gov.uk/id/local-authority/30UE,Central Support Services,1009,GROW - Commercial & Property,Planned Maintenance,20006,Repairs Maintenance & Alts,5005,"Legionella monitoring, Astley Hall, Coach House and Farmhouse",02/03/2022,0165367,75.00,Revenue,Maxigiene Environmental Services Ltd,67160,,
Chorley Borough Council,http://statistics.data.gov.uk/id/local-authority/30UE,Central Support Services,1009,GROW - Commercial & Property,Planned Maintenance,20006,Repairs Maintenance & Alts,5005,"Legionella monitoring, Parks Buildings -  Devonshire rec, harpers rec",02/03/2022,0165367,40.00,Revenue,Maxigiene Environmental Services Ltd,67160,,
Chorley Borough Council,http://statistics.data.gov.uk/id/local-authority/30UE,Central Support Services,1009,GROW - Commercial & Property,Planned Maintenance,20006,Repairs Maintenance & Alts,5005,"Legionella monitoring, Community centres",02/03/2022,0165367,169.16,Revenue,Maxigiene Environmental Services Ltd,67160,,
Chorley Borough Council,http://statistics.data.gov.uk/id/local-authority/30UE,Central Support Services,1009,GROW - Commercial & Property,Planned Maintenance,20006,Repairs Maintenance & Alts,5005,"Legionella monitoring, WC's including cemetery wc",02/03/2022,0165367,65.00,Revenue,Maxigiene Environmental Services Ltd,67160,,
Chorley Borough Council,http://statistics.data.gov.uk/id/local-authority/30UE,Central Support Services,1009,GROW - Commercial & Property,Planned Maintenance,20006,Repairs Maintenance & Alts,5005,"Legionella monitoring, sports pitches/pavilions",02/03/2022,0165367,72.08,Revenue,Maxigiene Environmental Services Ltd,67160,,
Chorley Borough Council,http://statistics.data.gov.uk/id/local-authority/30UE,Central Support Services,1009,GROW - Commercial & Property,Planned Maintenance,20006,Repairs Maintenance & Alts,5005,"Legionella monitoring, Bengal St",02/03/2022,0165367,25.00,Revenue,Maxigiene Environmental Services Ltd,67160,,
Chorley Borough Council,http://statistics.data.gov.uk/id/local-authority/30UE,Central Support Services,1009,GROW - Commercial & Property,Planned Maintenance,20006,Repairs Maintenance & Alts,5005,"Legionella monitoring, chorley cem",02/03/2022,0165367,20.00,Revenue,Maxigiene Environmental Services Ltd,67160,,
Chorley Borough Council,http://statistics.data.gov.uk/id/local-authority/30UE,Community Development,1097,GROW - Commercial & Property,Planned Maintenance,20006,Repairs Maintenance & Alts,5005,"Legionella monitoring, CAB (CIC)",02/03/2022,0165367,20.00,Revenue,Maxigiene Environmental Services Ltd,67160,,
Chorley Borough Council,http://statistics.data.gov.uk/id/local-authority/30UE,Business Support,1095,GROW - Commercial & Property,Planned Maintenance,20006,Repairs Maintenance & Alts,5005,"Legionella monitoring, MW Mgt",02/03/2022,0165367,20.00,Revenue,Maxigiene Environmental Services Ltd,67160,,
Chorley Borough Council,http://statistics.data.gov.uk/id/local-authority/30UE,Central Support Services,1009,GROW - Commercial & Property,Planned Maintenance,20006,Repairs Maintenance & Alts,5005,"Legionella monitoring, Cotswold House",02/03/2022,0165367,20.00,Revenue,Maxigiene Environmental Services Ltd,67160,,
Chorley Borough Council,http://statistics.data.gov.uk/id/local-authority/30UE,Central Support Services,1009,GROW - Commercial & Property,Planned Maintenance,20006,Repairs Maintenance & Alts,5005,"Legionella monitoring, Market",02/03/2022,0165367,20.00,Revenue,Maxigiene Environmental Services Ltd,67160,,
Chorley Borough Council,http://statistics.data.gov.uk/id/local-authority/30UE,Central Support Services,1009,GROW - Commercial & Property,Planned Maintenance,20006,Repairs Maintenance & Alts,5005,"Legionella monitoring, Primrose",02/03/2022,0165367,30.00,Revenue,Maxigiene Environmental Services Ltd,67160,,
Chorley Borough Council,http://statistics.data.gov.uk/id/local-authority/30UE,Business Support,1095,GROW - Commercial & Property,Planned Maintenance,20006,Repairs Maintenance & Alts,5005,"Legionella monitoring, DOP",02/03/2022,0165367,30.00,Revenue,Maxigiene Environmental Services Ltd,67160,,
Chorley Borough Council,http://statistics.data.gov.uk/id/local-authority/30UE,Central Support Services,1009,GROW - Commercial & Property,Planned Maintenance,20006,Repairs Maintenance & Alts,5005,"Legionella monitoring, Town Hall",02/03/2022,0165367,25.00,Revenue,Maxigiene Environmental Services Ltd,67160,,
Chorley Borough Council,http://statistics.data.gov.uk/id/local-authority/30UE,Central Support Services,1009,GROW - Commercial & Property,Planned Maintenance,20006,Repairs Maintenance & Alts,5005,"Legionella monitoring, Union St",02/03/2022,0165367,25.00,Revenue,Maxigiene Environmental Services Ltd,67160,,
Chorley Borough Council,http://statistics.data.gov.uk/id/local-authority/30UE,Central Support Services,1009,GROW - Commercial & Property,Planned Maintenance,20006,Repairs Maintenance & Alts,5005,westway monthly monitoring @ 30,02/03/2022,0165367,30.00,Revenue,Maxigiene Environmental Services Ltd,67160,,
Chorley Borough Council,http://statistics.data.gov.uk/id/local-authority/30UE,Central Support Services,1009,GROW - Commercial & Property,Planned Maintenance,20006,Repairs Maintenance & Alts,5005,"Legionella monitoring, Astley Hall, Coach House and Farmhouse",28/03/2022,0166194,75.00,Revenue,Maxigiene Environmental Services Ltd,67160,,
Chorley Borough Council,http://statistics.data.gov.uk/id/local-authority/30UE,Central Support Services,1009,GROW - Commercial & Property,Planned Maintenance,20006,Repairs Maintenance & Alts,5005,"Legionella monitoring, Parks Buildings -  Devonshire rec, harpers rec",28/03/2022,0166194,40.00,Revenue,Maxigiene Environmental Services Ltd,67160,,
Chorley Borough Council,http://statistics.data.gov.uk/id/local-authority/30UE,Central Support Services,1009,GROW - Commercial & Property,Planned Maintenance,20006,Repairs Maintenance & Alts,5005,"Legionella monitoring, Community centres",28/03/2022,0166194,169.16,Revenue,Maxigiene Environmental Services Ltd,67160,,
Chorley Borough Council,http://statistics.data.gov.uk/id/local-authority/30UE,Central Support Services,1009,GROW - Commercial & Property,Planned Maintenance,20006,Repairs Maintenance & Alts,5005,"Legionella monitoring, WC's including cemetery wc",28/03/2022,0166194,65.00,Revenue,Maxigiene Environmental Services Ltd,67160,,
Chorley Borough Council,http://statistics.data.gov.uk/id/local-authority/30UE,Central Support Services,1009,GROW - Commercial & Property,Planned Maintenance,20006,Repairs Maintenance & Alts,5005,"Legionella monitoring, sports pitches/pavilions",28/03/2022,0166194,72.08,Revenue,Maxigiene Environmental Services Ltd,67160,,
Chorley Borough Council,http://statistics.data.gov.uk/id/local-authority/30UE,Central Support Services,1009,GROW - Commercial & Property,Planned Maintenance,20006,Repairs Maintenance & Alts,5005,"Legionella monitoring, Bengal St",28/03/2022,0166194,25.00,Revenue,Maxigiene Environmental Services Ltd,67160,,
Chorley Borough Council,http://statistics.data.gov.uk/id/local-authority/30UE,Central Support Services,1009,GROW - Commercial & Property,Planned Maintenance,20006,Repairs Maintenance & Alts,5005,"Legionella monitoring, chorley cem",28/03/2022,0166194,20.00,Revenue,Maxigiene Environmental Services Ltd,67160,,
Chorley Borough Council,http://statistics.data.gov.uk/id/local-authority/30UE,Community Development,1097,GROW - Commercial & Property,Planned Maintenance,20006,Repairs Maintenance & Alts,5005,"Legionella monitoring, CAB (CIC)",28/03/2022,0166194,20.00,Revenue,Maxigiene Environmental Services Ltd,67160,,
Chorley Borough Council,http://statistics.data.gov.uk/id/local-authority/30UE,Business Support,1095,GROW - Commercial & Property,Planned Maintenance,20006,Repairs Maintenance & Alts,5005,"Legionella monitoring, MW Mgt",28/03/2022,0166194,20.00,Revenue,Maxigiene Environmental Services Ltd,67160,,
Chorley Borough Council,http://statistics.data.gov.uk/id/local-authority/30UE,Central Support Services,1009,GROW - Commercial & Property,Planned Maintenance,20006,Repairs Maintenance & Alts,5005,"Legionella monitoring, Cotswold House",28/03/2022,0166194,20.00,Revenue,Maxigiene Environmental Services Ltd,67160,,
Chorley Borough Council,http://statistics.data.gov.uk/id/local-authority/30UE,Central Support Services,1009,GROW - Commercial & Property,Planned Maintenance,20006,Repairs Maintenance & Alts,5005,"Legionella monitoring, Market",28/03/2022,0166194,20.00,Revenue,Maxigiene Environmental Services Ltd,67160,,
Chorley Borough Council,http://statistics.data.gov.uk/id/local-authority/30UE,Central Support Services,1009,GROW - Commercial & Property,Planned Maintenance,20006,Repairs Maintenance & Alts,5005,"Legionella monitoring, Primrose",28/03/2022,0166194,30.00,Revenue,Maxigiene Environmental Services Ltd,67160,,
Chorley Borough Council,http://statistics.data.gov.uk/id/local-authority/30UE,Business Support,1095,GROW - Commercial & Property,Planned Maintenance,20006,Repairs Maintenance & Alts,5005,"Legionella monitoring, DOP",28/03/2022,0166194,30.00,Revenue,Maxigiene Environmental Services Ltd,67160,,
Chorley Borough Council,http://statistics.data.gov.uk/id/local-authority/30UE,Central Support Services,1009,GROW - Commercial & Property,Planned Maintenance,20006,Repairs Maintenance & Alts,5005,"Legionella monitoring, Town Hall",28/03/2022,0166194,25.00,Revenue,Maxigiene Environmental Services Ltd,67160,,
Chorley Borough Council,http://statistics.data.gov.uk/id/local-authority/30UE,Central Support Services,1009,GROW - Commercial & Property,Planned Maintenance,20006,Repairs Maintenance & Alts,5005,"Legionella monitoring, Union St",28/03/2022,0166194,25.00,Revenue,Maxigiene Environmental Services Ltd,67160,,
Chorley Borough Council,http://statistics.data.gov.uk/id/local-authority/30UE,Central Support Services,1009,GROW - Commercial & Property,Planned Maintenance,20006,Repairs Maintenance & Alts,5005,westway monthly monitoring @ 30,28/03/2022,0166194,30.00,Revenue,Maxigiene Environmental Services Ltd,67160,,
Chorley Borough Council,http://statistics.data.gov.uk/id/local-authority/30UE,Central Support Services,1009,GROW - Commercial & Property,Planned Maintenance,20006,Repairs Maintenance & Alts,5005,"Legionella monitoring, Astley Hall, Coach House and Farmhouse",30/03/2022,0166499,75.00,Revenue,Maxigiene Environmental Services Ltd,67160,,
Chorley Borough Council,http://statistics.data.gov.uk/id/local-authority/30UE,Central Support Services,1009,GROW - Commercial & Property,Planned Maintenance,20006,Repairs Maintenance & Alts,5005,"Legionella monitoring, Parks Buildings -  Devonshire rec, harpers rec",30/03/2022,0166499,40.00,Revenue,Maxigiene Environmental Services Ltd,67160,,
Chorley Borough Council,http://statistics.data.gov.uk/id/local-authority/30UE,Central Support Services,1009,GROW - Commercial & Property,Planned Maintenance,20006,Repairs Maintenance & Alts,5005,"Legionella monitoring, Community centres",30/03/2022,0166499,169.16,Revenue,Maxigiene Environmental Services Ltd,67160,,
Chorley Borough Council,http://statistics.data.gov.uk/id/local-authority/30UE,Central Support Services,1009,GROW - Commercial & Property,Planned Maintenance,20006,Repairs Maintenance & Alts,5005,"Legionella monitoring, WC's including cemetery wc",30/03/2022,0166499,65.00,Revenue,Maxigiene Environmental Services Ltd,67160,,
Chorley Borough Council,http://statistics.data.gov.uk/id/local-authority/30UE,Central Support Services,1009,GROW - Commercial & Property,Planned Maintenance,20006,Repairs Maintenance & Alts,5005,"Legionella monitoring, sports pitches/pavilions",30/03/2022,0166499,72.08,Revenue,Maxigiene Environmental Services Ltd,67160,,
Chorley Borough Council,http://statistics.data.gov.uk/id/local-authority/30UE,Central Support Services,1009,GROW - Commercial & Property,Planned Maintenance,20006,Repairs Maintenance & Alts,5005,"Legionella monitoring, Bengal St",30/03/2022,0166499,25.00,Revenue,Maxigiene Environmental Services Ltd,67160,,
Chorley Borough Council,http://statistics.data.gov.uk/id/local-authority/30UE,Central Support Services,1009,GROW - Commercial & Property,Planned Maintenance,20006,Repairs Maintenance & Alts,5005,"Legionella monitoring, chorley cem",30/03/2022,0166499,20.00,Revenue,Maxigiene Environmental Services Ltd,67160,,
Chorley Borough Council,http://statistics.data.gov.uk/id/local-authority/30UE,Community Development,1097,GROW - Commercial & Property,Planned Maintenance,20006,Repairs Maintenance & Alts,5005,"Legionella monitoring, CAB (CIC)",30/03/2022,0166499,20.00,Revenue,Maxigiene Environmental Services Ltd,67160,,
Chorley Borough Council,http://statistics.data.gov.uk/id/local-authority/30UE,Business Support,1095,GROW - Commercial & Property,Planned Maintenance,20006,Repairs Maintenance & Alts,5005,"Legionella monitoring, MW Mgt",30/03/2022,0166499,20.00,Revenue,Maxigiene Environmental Services Ltd,67160,,
Chorley Borough Council,http://statistics.data.gov.uk/id/local-authority/30UE,Central Support Services,1009,GROW - Commercial & Property,Planned Maintenance,20006,Repairs Maintenance & Alts,5005,"Legionella monitoring, Cotswold House",30/03/2022,0166499,20.00,Revenue,Maxigiene Environmental Services Ltd,67160,,
Chorley Borough Council,http://statistics.data.gov.uk/id/local-authority/30UE,Central Support Services,1009,GROW - Commercial & Property,Planned Maintenance,20006,Repairs Maintenance & Alts,5005,"Legionella monitoring, Market",30/03/2022,0166499,20.00,Revenue,Maxigiene Environmental Services Ltd,67160,,
Chorley Borough Council,http://statistics.data.gov.uk/id/local-authority/30UE,Central Support Services,1009,GROW - Commercial & Property,Planned Maintenance,20006,Repairs Maintenance & Alts,5005,"Legionella monitoring, Primrose",30/03/2022,0166499,30.00,Revenue,Maxigiene Environmental Services Ltd,67160,,
Chorley Borough Council,http://statistics.data.gov.uk/id/local-authority/30UE,Business Support,1095,GROW - Commercial & Property,Planned Maintenance,20006,Repairs Maintenance & Alts,5005,"Legionella monitoring, DOP",30/03/2022,0166499,30.00,Revenue,Maxigiene Environmental Services Ltd,67160,,
Chorley Borough Council,http://statistics.data.gov.uk/id/local-authority/30UE,Central Support Services,1009,GROW - Commercial & Property,Planned Maintenance,20006,Repairs Maintenance & Alts,5005,"Legionella monitoring, Town Hall",30/03/2022,0166499,25.00,Revenue,Maxigiene Environmental Services Ltd,67160,,
Chorley Borough Council,http://statistics.data.gov.uk/id/local-authority/30UE,Central Support Services,1009,GROW - Commercial & Property,Planned Maintenance,20006,Repairs Maintenance & Alts,5005,"Legionella monitoring, Union St",30/03/2022,0166499,25.00,Revenue,Maxigiene Environmental Services Ltd,67160,,
Chorley Borough Council,http://statistics.data.gov.uk/id/local-authority/30UE,Central Support Services,1009,GROW - Commercial & Property,Planned Maintenance,20006,Repairs Maintenance & Alts,5005,westway monthly monitoring @ 30,30/03/2022,0166499,30.00,Revenue,Maxigiene Environmental Services Ltd,67160,,
Chorley Borough Council,http://statistics.data.gov.uk/id/local-authority/30UE,Service Management & Support,1009,CUST - Customer & Digital,Supplies-Grounds Maintenance,40025,"Equipment, Furniture & Materia",5023,"10 tonnes rock salt @60 per tonne, Delivery to Chorley council, Bengal street depot, Chorley, PR7 1SA",23/03/2022,0165150,810.00,Revenue,Mc & Ma Stewart (Haulage Ltd),16627,,
Chorley Borough Council,http://statistics.data.gov.uk/id/local-authority/30UE,Capital,Capital,EARL - Communities,Main Contractor,03007,Capital Expenditure,Capital,20 tonne of grade 1 topsoil. Delivery to Yarrow Depot,21/03/2022,0165715,479.75,Capital,Mc & Ma Stewart (Haulage Ltd),16627,,
Chorley Borough Council,http://statistics.data.gov.uk/id/local-authority/30UE,Corporate Management,1008,EARL - Communities,External Contractor,40198,Miscellaneous Expenses,5034,Tickets for Hoarding Peer Support Group to attend Northwest Hoarding Conference,28/03/2022,0166267,400.00,Revenue,Merseyside Hoarders Helping Hoarders,85004,,
Chorley Borough Council,http://statistics.data.gov.uk/id/local-authority/30UE,Central Support Services,1009,GROW - Commercial & Property,General Repairs - Reactive,20004,Repairs Maintenance & Alts,5005,14417 West st Car Park Clear out gulley�s and jet through,23/03/2022,0165365,280.00,Revenue,Michael Roe,78294,,
Chorley Borough Council,http://statistics.data.gov.uk/id/local-authority/30UE,Central Support Services,1009,GROW - Commercial & Property,General Repairs - Reactive,20004,Repairs Maintenance & Alts,5005,14341 Chorley Surgery Supply and fit 4 concrete gravel boards,02/03/2022,0165366,280.00,Revenue,Michael Roe,78294,,
Chorley Borough Council,http://statistics.data.gov.uk/id/local-authority/30UE,Central Support Services,1009,GROW - Commercial & Property,General Repairs - Reactive,20004,Repairs Maintenance & Alts,5005,Brinscall BathsAttend to leaking poolside drain,28/03/2022,0166275,280.00,Revenue,Michael Roe,78294,,
Chorley Borough Council,http://statistics.data.gov.uk/id/local-authority/30UE,Central Support Services,1009,GROW - Commercial & Property,General Repairs - Reactive,20004,Repairs Maintenance & Alts,5005,"Chorley cemetery drains, To form 2 top water catch pits adjacent to the cricket club,Concrete chamber risers, Concrete lintols",28/03/2022,0166434,"4,928.00",Revenue,Michael Roe,78294,,
Chorley Borough Council,http://statistics.data.gov.uk/id/local-authority/30UE,Collection Fund Revenue Accoun,,GOVN - Policy & Governance,Transitional Protection,02033,Precepts & Collection Fund,Precept,Trans Protn Contributions,30/03/2022,0165380,"3,412.00",Revenue,Ministry of Housing Communities & Local Government,16280,,
Chorley Borough Council,http://statistics.data.gov.uk/id/local-authority/30UE,Collection Fund Revenue Accoun,,GOVN - Policy & Governance,NNDR Central Share,02034,Precepts & Collection Fund,Precept,Central Share BR,30/03/2022,0165380,"1,029,012.00",Revenue,Ministry of Housing Communities & Local Government,16280,,
Chorley Borough Council,http://statistics.data.gov.uk/id/local-authority/30UE,Collection Fund Revenue Accoun,,GOVN - Policy & Governance,NNDR Central Share,02034,Precepts & Collection Fund,Precept,Deficit Collection Fund,30/03/2022,0165380,"-468,511.00",Revenue,Ministry of Housing Communities & Local Government,16280,,
Chorley Borough Council,http://statistics.data.gov.uk/id/local-authority/30UE,General Government Grants,,GOVN - Policy & Governance,Miscellaneous Government Grants,60241,Government Grants,5062,BRRG clawback,21/03/2022,0165811,"-102,438.00",Revenue,"Ministry of Housing,Communities&Local Government",19439,,
Chorley Borough Council,http://statistics.data.gov.uk/id/local-authority/30UE,General Government Grants,,GOVN - Policy & Governance,Miscellaneous Government Grants,60241,Government Grants,5062,BRRG clawback,21/03/2022,0165811,"196,508.00",Revenue,"Ministry of Housing,Communities&Local Government",19439,,
Chorley Borough Council,http://statistics.data.gov.uk/id/local-authority/30UE,General Government Grants,,GOVN - Policy & Governance,Miscellaneous Government Grants,60241,Government Grants,5062,BRRG clawback,21/03/2022,0165811,1.00,Revenue,"Ministry of Housing,Communities&Local Government",19439,,
Chorley Borough Council,http://statistics.data.gov.uk/id/local-authority/30UE,General Government Grants,,GOVN - Policy & Governance,Miscellaneous Government Grants,60241,Government Grants,5062,BRRG clawback,21/03/2022,0165811,422.00,Revenue,"Ministry of Housing,Communities&Local Government",19439,,
Chorley Borough Council,http://statistics.data.gov.uk/id/local-authority/30UE,General Government Grants,,GOVN - Policy & Governance,Miscellaneous Government Grants,60241,Government Grants,5062,BRRG clawback,21/03/2022,0165811,"3,081.00",Revenue,"Ministry of Housing,Communities&Local Government",19439,,
Chorley Borough Council,http://statistics.data.gov.uk/id/local-authority/30UE,General Government Grants,,GOVN - Policy & Governance,Miscellaneous Government Grants,60241,Government Grants,5062,BRRG clawback,21/03/2022,0165811,-153.00,Revenue,"Ministry of Housing,Communities&Local Government",19439,,
Chorley Borough Council,http://statistics.data.gov.uk/id/local-authority/30UE,General Government Grants,,GOVN - Policy & Governance,Miscellaneous Government Grants,60241,Government Grants,5062,BRRG clawback,21/03/2022,0165811,"2,757,879.00",Revenue,"Ministry of Housing,Communities&Local Government",19439,,
Chorley Borough Council,http://statistics.data.gov.uk/id/local-authority/30UE,General Government Grants,,GOVN - Policy & Governance,Miscellaneous Government Grants,60241,Government Grants,5062,BRRG clawback,21/03/2022,0165811,"689,470.00",Revenue,"Ministry of Housing,Communities&Local Government",19439,,
Chorley Borough Council,http://statistics.data.gov.uk/id/local-authority/30UE,General Government Grants,,GOVN - Policy & Governance,Miscellaneous Government Grants,60241,Government Grants,5062,BRRG clawback,21/03/2022,0165811,"3,447,348.00",Revenue,"Ministry of Housing,Communities&Local Government",19439,,
Chorley Borough Council,http://statistics.data.gov.uk/id/local-authority/30UE,General Government Grants,,GOVN - Policy & Governance,Miscellaneous Government Grants,60241,Government Grants,5062,BRRG clawback,21/03/2022,0165811,"52,920.00",Revenue,"Ministry of Housing,Communities&Local Government",19439,,
Chorley Borough Council,http://statistics.data.gov.uk/id/local-authority/30UE,General Government Grants,,GOVN - Policy & Governance,Miscellaneous Government Grants,60241,Government Grants,5062,BRRG clawback,21/03/2022,0165811,"13,230.00",Revenue,"Ministry of Housing,Communities&Local Government",19439,,
Chorley Borough Council,http://statistics.data.gov.uk/id/local-authority/30UE,General Government Grants,,GOVN - Policy & Governance,Miscellaneous Government Grants,60241,Government Grants,5062,BRRG clawback,21/03/2022,0165811,"66,149.00",Revenue,"Ministry of Housing,Communities&Local Government",19439,,
Chorley Borough Council,http://statistics.data.gov.uk/id/local-authority/30UE,Capital,Capital,EARL - Communities,Grants,03002,Capital Expenditure,Capital,ADDRESS REDACTED,28/03/2022,0166119,"5,432.34",Capital,Mint Northwest Ltd,65607,,
Chorley Borough Council,http://statistics.data.gov.uk/id/local-authority/30UE,Private Sector HSG Renewal,1073,EARL - Communities,External Contractor,40198,Miscellaneous Expenses,5034,Ref 6068,21/03/2022,0165720,67.00,Revenue,Mobility Care Services,70841,,
Chorley Borough Council,http://statistics.data.gov.uk/id/local-authority/30UE,Private Sector HSG Renewal,1073,EARL - Communities,External Contractor,40198,Miscellaneous Expenses,5034,Ref 5871,21/03/2022,0165720,80.00,Revenue,Mobility Care Services,70841,,
Chorley Borough Council,http://statistics.data.gov.uk/id/local-authority/30UE,Private Sector HSG Renewal,1073,EARL - Communities,External Contractor,40198,Miscellaneous Expenses,5034,Ref 5889,21/03/2022,0165720,67.00,Revenue,Mobility Care Services,70841,,
Chorley Borough Council,http://statistics.data.gov.uk/id/local-authority/30UE,Private Sector HSG Renewal,1073,EARL - Communities,External Contractor,40198,Miscellaneous Expenses,5034,Ref 5890,21/03/2022,0165720,140.00,Revenue,Mobility Care Services,70841,,
Chorley Borough Council,http://statistics.data.gov.uk/id/local-authority/30UE,Private Sector HSG Renewal,1073,EARL - Communities,External Contractor,40198,Miscellaneous Expenses,5034,Ref 5904,21/03/2022,0165720,180.00,Revenue,Mobility Care Services,70841,,
Chorley Borough Council,http://statistics.data.gov.uk/id/local-authority/30UE,Private Sector HSG Renewal,1073,EARL - Communities,External Contractor,40198,Miscellaneous Expenses,5034,Ref 5905,21/03/2022,0165720,112.75,Revenue,Mobility Care Services,70841,,
Chorley Borough Council,http://statistics.data.gov.uk/id/local-authority/30UE,Private Sector HSG Renewal,1073,EARL - Communities,External Contractor,40198,Miscellaneous Expenses,5034,Ref 5906,21/03/2022,0165720,130.00,Revenue,Mobility Care Services,70841,,
Chorley Borough Council,http://statistics.data.gov.uk/id/local-authority/30UE,Private Sector HSG Renewal,1073,EARL - Communities,External Contractor,40198,Miscellaneous Expenses,5034,Ref 5907,21/03/2022,0165720,130.00,Revenue,Mobility Care Services,70841,,
Chorley Borough Council,http://statistics.data.gov.uk/id/local-authority/30UE,Private Sector HSG Renewal,1073,EARL - Communities,External Contractor,40198,Miscellaneous Expenses,5034,Ref 5908,21/03/2022,0165720,130.00,Revenue,Mobility Care Services,70841,,
Chorley Borough Council,http://statistics.data.gov.uk/id/local-authority/30UE,Private Sector HSG Renewal,1073,EARL - Communities,External Contractor,40198,Miscellaneous Expenses,5034,Ref 5963,21/03/2022,0165720,50.25,Revenue,Mobility Care Services,70841,,
Chorley Borough Council,http://statistics.data.gov.uk/id/local-authority/30UE,Private Sector HSG Renewal,1073,EARL - Communities,External Contractor,40198,Miscellaneous Expenses,5034,Ref 5891,21/03/2022,0165720,50.25,Revenue,Mobility Care Services,70841,,
Chorley Borough Council,http://statistics.data.gov.uk/id/local-authority/30UE,Private Sector HSG Renewal,1073,EARL - Communities,External Contractor,40198,Miscellaneous Expenses,5034,Ref 5999,21/03/2022,0165720,130.00,Revenue,Mobility Care Services,70841,,
Chorley Borough Council,http://statistics.data.gov.uk/id/local-authority/30UE,Private Sector HSG Renewal,1073,EARL - Communities,External Contractor,40198,Miscellaneous Expenses,5034,Ref 6000,21/03/2022,0165720,130.00,Revenue,Mobility Care Services,70841,,
Chorley Borough Council,http://statistics.data.gov.uk/id/local-authority/30UE,Private Sector HSG Renewal,1073,EARL - Communities,External Contractor,40198,Miscellaneous Expenses,5034,Ref 6001,21/03/2022,0165720,380.00,Revenue,Mobility Care Services,70841,,
Chorley Borough Council,http://statistics.data.gov.uk/id/local-authority/30UE,Private Sector HSG Renewal,1073,EARL - Communities,External Contractor,40198,Miscellaneous Expenses,5034,Ref 6008,21/03/2022,0165720,100.50,Revenue,Mobility Care Services,70841,,
Chorley Borough Council,http://statistics.data.gov.uk/id/local-authority/30UE,Private Sector HSG Renewal,1073,EARL - Communities,External Contractor,40198,Miscellaneous Expenses,5034,Ref 6009,21/03/2022,0165720,67.00,Revenue,Mobility Care Services,70841,,
Chorley Borough Council,http://statistics.data.gov.uk/id/local-authority/30UE,Private Sector HSG Renewal,1073,EARL - Communities,External Contractor,40198,Miscellaneous Expenses,5034,Ref 6010,21/03/2022,0165720,67.00,Revenue,Mobility Care Services,70841,,
Chorley Borough Council,http://statistics.data.gov.uk/id/local-authority/30UE,Private Sector HSG Renewal,1073,EARL - Communities,External Contractor,40198,Miscellaneous Expenses,5034,Ref 6031,21/03/2022,0165720,112.75,Revenue,Mobility Care Services,70841,,
Chorley Borough Council,http://statistics.data.gov.uk/id/local-authority/30UE,Private Sector HSG Renewal,1073,EARL - Communities,External Contractor,40198,Miscellaneous Expenses,5034,Ref 6036,21/03/2022,0165720,620.00,Revenue,Mobility Care Services,70841,,
Chorley Borough Council,http://statistics.data.gov.uk/id/local-authority/30UE,Private Sector HSG Renewal,1073,EARL - Communities,External Contractor,40198,Miscellaneous Expenses,5034,Ref 6048,21/03/2022,0165720,260.00,Revenue,Mobility Care Services,70841,,
Chorley Borough Council,http://statistics.data.gov.uk/id/local-authority/30UE,Private Sector HSG Renewal,1073,EARL - Communities,External Contractor,40198,Miscellaneous Expenses,5034,Ref 6050,21/03/2022,0165720,130.00,Revenue,Mobility Care Services,70841,,
Chorley Borough Council,http://statistics.data.gov.uk/id/local-authority/30UE,Private Sector HSG Renewal,1073,EARL - Communities,External Contractor,40198,Miscellaneous Expenses,5034,Ref 6051,21/03/2022,0165720,660.00,Revenue,Mobility Care Services,70841,,
Chorley Borough Council,http://statistics.data.gov.uk/id/local-authority/30UE,Private Sector HSG Renewal,1073,EARL - Communities,External Contractor,40198,Miscellaneous Expenses,5034,Ref 6053,21/03/2022,0165720,85.00,Revenue,Mobility Care Services,70841,,
Chorley Borough Council,http://statistics.data.gov.uk/id/local-authority/30UE,Private Sector HSG Renewal,1073,EARL - Communities,External Contractor,40198,Miscellaneous Expenses,5034,Ref 6085,28/03/2022,0166535,50.25,Revenue,Mobility Care Services,70841,,
Chorley Borough Council,http://statistics.data.gov.uk/id/local-authority/30UE,Private Sector HSG Renewal,1073,EARL - Communities,External Contractor,40198,Miscellaneous Expenses,5034,Ref 6109,28/03/2022,0166535,67.00,Revenue,Mobility Care Services,70841,,
Chorley Borough Council,http://statistics.data.gov.uk/id/local-authority/30UE,Private Sector HSG Renewal,1073,EARL - Communities,External Contractor,40198,Miscellaneous Expenses,5034,Ref 6110,28/03/2022,0166535,33.50,Revenue,Mobility Care Services,70841,,
Chorley Borough Council,http://statistics.data.gov.uk/id/local-authority/30UE,Private Sector HSG Renewal,1073,EARL - Communities,External Contractor,40198,Miscellaneous Expenses,5034,Ref 6149,28/03/2022,0166535,112.75,Revenue,Mobility Care Services,70841,,
Chorley Borough Council,http://statistics.data.gov.uk/id/local-authority/30UE,Private Sector HSG Renewal,1073,EARL - Communities,External Contractor,40198,Miscellaneous Expenses,5034,Ref 6150,28/03/2022,0166535,260.00,Revenue,Mobility Care Services,70841,,
Chorley Borough Council,http://statistics.data.gov.uk/id/local-authority/30UE,Private Sector HSG Renewal,1073,EARL - Communities,External Contractor,40198,Miscellaneous Expenses,5034,Ref 6152,28/03/2022,0166535,620.00,Revenue,Mobility Care Services,70841,,
Chorley Borough Council,http://statistics.data.gov.uk/id/local-authority/30UE,Private Sector HSG Renewal,1073,EARL - Communities,External Contractor,40198,Miscellaneous Expenses,5034,Ref 6153,28/03/2022,0166535,130.00,Revenue,Mobility Care Services,70841,,
Chorley Borough Council,http://statistics.data.gov.uk/id/local-authority/30UE,Private Sector HSG Renewal,1073,EARL - Communities,External Contractor,40198,Miscellaneous Expenses,5034,Ref 5154,28/03/2022,0166535,112.75,Revenue,Mobility Care Services,70841,,
Chorley Borough Council,http://statistics.data.gov.uk/id/local-authority/30UE,Private Sector HSG Renewal,1073,EARL - Communities,External Contractor,40198,Miscellaneous Expenses,5034,Ref 6155,28/03/2022,0166535,112.75,Revenue,Mobility Care Services,70841,,
Chorley Borough Council,http://statistics.data.gov.uk/id/local-authority/30UE,Private Sector HSG Renewal,1073,EARL - Communities,External Contractor,40198,Miscellaneous Expenses,5034,Ref 6156,28/03/2022,0166535,130.00,Revenue,Mobility Care Services,70841,,
Chorley Borough Council,http://statistics.data.gov.uk/id/local-authority/30UE,Private Sector HSG Renewal,1073,EARL - Communities,External Contractor,40198,Miscellaneous Expenses,5034,Ref 6158,28/03/2022,0166535,83.75,Revenue,Mobility Care Services,70841,,
Chorley Borough Council,http://statistics.data.gov.uk/id/local-authority/30UE,Private Sector HSG Renewal,1073,EARL - Communities,External Contractor,40198,Miscellaneous Expenses,5034,Ref 6159,28/03/2022,0166535,50.25,Revenue,Mobility Care Services,70841,,
Chorley Borough Council,http://statistics.data.gov.uk/id/local-authority/30UE,Private Sector HSG Renewal,1073,EARL - Communities,External Contractor,40198,Miscellaneous Expenses,5034,Ref 6176,28/03/2022,0166535,67.00,Revenue,Mobility Care Services,70841,,
Chorley Borough Council,http://statistics.data.gov.uk/id/local-authority/30UE,Private Sector HSG Renewal,1073,EARL - Communities,External Contractor,40198,Miscellaneous Expenses,5034,Ref 6177,28/03/2022,0166535,67.00,Revenue,Mobility Care Services,70841,,
Chorley Borough Council,http://statistics.data.gov.uk/id/local-authority/30UE,Private Sector HSG Renewal,1073,EARL - Communities,External Contractor,40198,Miscellaneous Expenses,5034,Ref 6189,28/03/2022,0166535,260.00,Revenue,Mobility Care Services,70841,,
Chorley Borough Council,http://statistics.data.gov.uk/id/local-authority/30UE,Service Management & Support,1009,CUST - Customer & Digital,Training Course Fees,17010,Indirect Employee Expenses,5002,Pole pruner refresher training on 9th March for 5 operatives,23/03/2022,0165689,823.00,Revenue,Morton Training Limited,76873,,
Chorley Borough Council,http://statistics.data.gov.uk/id/local-authority/30UE,Control Accounts,Control,GROW - Commercial & Property,Manual Control Account,00001,Balance Sheet,Balance,,02/03/2022,0165306,"5,612.81",Revenue,Mr D Iddon,84716,,
Chorley Borough Council,http://statistics.data.gov.uk/id/local-authority/30UE,Tourism,1039,GOVN - Policy & Governance,Publicity - Advertising,40157,Miscellaneous Expenses,5034,16 page Chorley Flower Show amateur competitions booklet. 3000 copies,21/03/2022,0166008,811.00,Revenue,N B Colour Print Ltd,17917,,
Chorley Borough Council,http://statistics.data.gov.uk/id/local-authority/30UE,Capital,Capital,EARL - Communities,Main Contractor,03007,Capital Expenditure,Capital,"Interpretation and signage for Carr Brook Linear Park. 50nr Wildlife Sanctuary signs, 2nr Oak A1 lecterns, 2nr art work.",28/03/2022,0166208,"2,865.00",Capital,Nature Sign Design,64676,,
Chorley Borough Council,http://statistics.data.gov.uk/id/local-authority/30UE,Open Spaces,1038,EARL - Communities,Maintenance/Nature Reserves,20045,Grounds Maintenance Costs,5013,"Woodland, Wetland and Water Edge plug plants supply and delivery as per estimate 1223",28/03/2022,0166188,489.14,Revenue,Naturescape,62058,,
Chorley Borough Council,http://statistics.data.gov.uk/id/local-authority/30UE,Central Support Services,1009,CUST - Customer & Digital,Service Fees,40056,Services,5027,"Docs on line, Extension of Term and adjustment of volumes of Documents, 1 April 2022 - 31 March 2023",30/03/2022,0166287,"1,800.00",Revenue,NEC Software Solutions UK Ltd,18285,,
Chorley Borough Council,http://statistics.data.gov.uk/id/local-authority/30UE,Central Support Services,1009,GOVN - Policy & Governance,Postages,40082,Communication and Computing,5028,TOP UP Franking Machine,30/03/2022,0166534,500.00,Revenue,Neopost Ltd RCB Credifon A/C,20009,,
Chorley Borough Council,http://statistics.data.gov.uk/id/local-authority/30UE,Business Support,1095,GROW - Commercial & Property,Security Service,40062,Services,5027,"Increased PO, extra security staff needed to cover anti social behaviour issues (2 x security for Thurs - Sun) over Christmas",16/03/2022,0165059,822.50,Revenue,New Concept Security NW Ltd T/A New Concept Goup,80488,,
Chorley Borough Council,http://statistics.data.gov.uk/id/local-authority/30UE,Business Support,1095,GROW - Commercial & Property,Security Service,40062,Services,5027,"Evening Site Security Services, Market Walk Shopping Centre, 5pm until midnight, 7 days a week. 1st Apr 2021 to March 2022",23/03/2022,0165223,575.75,Revenue,New Concept Security NW Ltd T/A New Concept Goup,80488,,
Chorley Borough Council,http://statistics.data.gov.uk/id/local-authority/30UE,Business Support,1095,GROW - Commercial & Property,Security Service,40062,Services,5027,"Evening Site Security Services, Market Walk Shopping Centre, 5pm until midnight, 7 days a week. 1st Apr 2021 to March 2022",23/03/2022,0165393,575.75,Revenue,New Concept Security NW Ltd T/A New Concept Goup,80488,,
Chorley Borough Council,http://statistics.data.gov.uk/id/local-authority/30UE,Business Support,1095,GROW - Commercial & Property,Security Service,40062,Services,5027,"Increased PO, extra security staff needed to cover anti social behaviour issues (2 x security for Thurs - Sun) over Christmas",16/03/2022,0165606,575.75,Revenue,New Concept Security NW Ltd T/A New Concept Goup,80488,,
Chorley Borough Council,http://statistics.data.gov.uk/id/local-authority/30UE,Business Support,1095,GROW - Commercial & Property,Security Service,40062,Services,5027,"Increased PO, extra security staff needed to cover anti social behaviour issues (2 x security for Thurs - Sun) over Christmas",30/03/2022,0165791,575.75,Revenue,New Concept Security NW Ltd T/A New Concept Goup,80488,,
Chorley Borough Council,http://statistics.data.gov.uk/id/local-authority/30UE,Business Support,1095,GROW - Commercial & Property,Security Service,40062,Services,5027,"Increased PO, extra security staff needed to cover anti social behaviour issues (2 x security for Thurs - Sun) over Christmas",23/03/2022,0166025,575.75,Revenue,New Concept Security NW Ltd T/A New Concept Goup,80488,,
Chorley Borough Council,http://statistics.data.gov.uk/id/local-authority/30UE,Business Support,1095,GROW - Commercial & Property,Security Service,40062,Services,5027,"Increased PO, extra security staff needed to cover anti social behaviour issues (2 x security for Thurs - Sun) over Christmas",30/03/2022,0166500,575.75,Revenue,New Concept Security NW Ltd T/A New Concept Goup,80488,,
Chorley Borough Council,http://statistics.data.gov.uk/id/local-authority/30UE,Central Support Services,1009,EARL - Communities,Miscellaneous Expenses,40200,Miscellaneous Expenses,5034,"Items for Clayton Brook and Emerging Futures for financial hardship, Ordered by NAME REDACTED",28/03/2022,0165978,"1,774.78",Revenue,Nisbets PLC,19593,,
Chorley Borough Council,http://statistics.data.gov.uk/id/local-authority/30UE,Service Management & Support,1009,CUST - Customer & Digital,Supplies-Grounds Maintenance,40025,"Equipment, Furniture & Materia",5023,8x Nomix Dual - 5 Litres @ 112.75 each,30/03/2022,0156710,902.00,Revenue,Nomix Enviro Ltd,82223,,
Chorley Borough Council,http://statistics.data.gov.uk/id/local-authority/30UE,Service Management & Support,1009,CUST - Customer & Digital,Supplies-Grounds Maintenance,40025,"Equipment, Furniture & Materia",5023,1x Universal Cleaner - 5 Litres @ 24.10,30/03/2022,0156710,24.10,Revenue,Nomix Enviro Ltd,82223,,
Chorley Borough Council,http://statistics.data.gov.uk/id/local-authority/30UE,Service Management & Support,1009,CUST - Customer & Digital,Supplies-Grounds Maintenance,40025,"Equipment, Furniture & Materia",5023,1x Nomix Dual - Box of 4 x 750ml @ 80.00,30/03/2022,0156710,80.00,Revenue,Nomix Enviro Ltd,82223,,
Chorley Borough Council,http://statistics.data.gov.uk/id/local-authority/30UE,Service Management & Support,1009,CUST - Customer & Digital,Supplies-Grounds Maintenance,40025,"Equipment, Furniture & Materia",5023,1x Universal Cleaner - Box of 4 x 750ml @ 26.00,30/03/2022,0156710,26.00,Revenue,Nomix Enviro Ltd,82223,,
Chorley Borough Council,http://statistics.data.gov.uk/id/local-authority/30UE,Service Management & Support,1009,CUST - Customer & Digital,Supplies-Grounds Maintenance,40025,"Equipment, Furniture & Materia",5023,carriage,30/03/2022,0156710,32.00,Revenue,Nomix Enviro Ltd,82223,,
Chorley Borough Council,http://statistics.data.gov.uk/id/local-authority/30UE,Service Management & Support,1009,CUST - Customer & Digital,Supplies-Grounds Maintenance,40025,"Equipment, Furniture & Materia",5023,4x Nomix Dual - 5 Litres @ 112.75,30/03/2022,0157355,451.00,Revenue,Nomix Enviro Ltd,82223,,
Chorley Borough Council,http://statistics.data.gov.uk/id/local-authority/30UE,Service Management & Support,1009,CUST - Customer & Digital,Supplies-Grounds Maintenance,40025,"Equipment, Furniture & Materia",5023,1x Nomix Dual - Box of 4 x 750ml @ 80.00,30/03/2022,0157355,80.00,Revenue,Nomix Enviro Ltd,82223,,
Chorley Borough Council,http://statistics.data.gov.uk/id/local-authority/30UE,Service Management & Support,1009,CUST - Customer & Digital,Supplies-Grounds Maintenance,40025,"Equipment, Furniture & Materia",5023,"Supply 4 x 750ml Nomix dual (for compact applicators), 4 x 750ml Universal cleaner (for compact applicators)",30/03/2022,0165235,"2,095.45",Revenue,Nomix Enviro Ltd,82223,,
Chorley Borough Council,http://statistics.data.gov.uk/id/local-authority/30UE,Culture & Heritage,1036,GOVN - Policy & Governance,General Subscriptions,40146,Grants and Subscriptions,5031,"1/4/22 - 31/3/23 Annual cloud back office subscription, till licence rental and telephone/remote support for Astley Hall gift shop.",23/03/2022,0166022,600.00,Revenue,North West Business Machines Limited,80971,,
Chorley Borough Council,http://statistics.data.gov.uk/id/local-authority/30UE,Business Support,1095,GROW - Commercial & Property,Refreshments,40036,Catering,5024,"Clipper F/T Med Roast Org Coffee 500g (4 pk ) X 3, Crawford Mini Packs Biscuits x 4, 1 pack of 15 bags of 1kg Sugar",16/03/2022,0165669,7.29,Revenue,North West Tea FM Solutions,78255,,
Chorley Borough Council,http://statistics.data.gov.uk/id/local-authority/30UE,Business Support,1095,GROW - Commercial & Property,Refreshments,40036,Catering,5024,non-vat items,16/03/2022,0165669,299.78,Revenue,North West Tea FM Solutions,78255,,
Chorley Borough Council,http://statistics.data.gov.uk/id/local-authority/30UE,Business Support,1095,GROW - Commercial & Property,Refreshments,40036,Catering,5024,3 x NWT084 Clipper Organic Arabica Coffee 500g case of 4 @ 70.99 each,28/03/2022,0166149,283.96,Revenue,North West Tea FM Solutions,78255,,
Chorley Borough Council,http://statistics.data.gov.uk/id/local-authority/30UE,Business Support,1095,GROW - Commercial & Property,Refreshments,40036,Catering,5024,"1 x NWT113, Tate & Lyle granulated sugar, pack of 15",28/03/2022,0166149,12.89,Revenue,North West Tea FM Solutions,78255,,
Chorley Borough Council,http://statistics.data.gov.uk/id/local-authority/30UE,Business Support,1095,GROW - Commercial & Property,Refreshments,40036,Catering,5024,Carriage charge,28/03/2022,0166149,7.29,Revenue,North West Tea FM Solutions,78255,,
Chorley Borough Council,http://statistics.data.gov.uk/id/local-authority/30UE,Business Support,1095,GROW - Commercial & Property,Contract Catering,40038,Catering,5024,NWT2163 Coffee Sticks x 4 @ 20.99,28/03/2022,0166204,83.96,Revenue,North West Tea FM Solutions,78255,,
Chorley Borough Council,http://statistics.data.gov.uk/id/local-authority/30UE,Business Support,1095,GROW - Commercial & Property,Contract Catering,40038,Catering,5024,NWT127 Semi skimmed milk jiggers x 8 @ 3.49,28/03/2022,0166204,27.92,Revenue,North West Tea FM Solutions,78255,,
Chorley Borough Council,http://statistics.data.gov.uk/id/local-authority/30UE,Business Support,1095,GROW - Commercial & Property,Refreshments,40036,Catering,5024,NWT084 Clipper Fairtrade coffee (4 x 500g) x 3 @ 67.99,28/03/2022,0166204,203.97,Revenue,North West Tea FM Solutions,78255,,
Chorley Borough Council,http://statistics.data.gov.uk/id/local-authority/30UE,Business Support,1095,GROW - Commercial & Property,Refreshments,40036,Catering,5024,NWT1971 Long Life semi skimmed milk (12 x 1litre) x 1,28/03/2022,0166204,10.49,Revenue,North West Tea FM Solutions,78255,,
Chorley Borough Council,http://statistics.data.gov.uk/id/local-authority/30UE,Business Support,1095,GROW - Commercial & Property,Refreshments,40036,Catering,5024,NWT235 Clipper fairtrade 1100 teabags x 2 @ 25.99,28/03/2022,0166204,51.98,Revenue,North West Tea FM Solutions,78255,,
Chorley Borough Council,http://statistics.data.gov.uk/id/local-authority/30UE,Business Support,1095,GROW - Commercial & Property,Refreshments,40036,Catering,5024,Carriage charge,28/03/2022,0166204,6.99,Revenue,North West Tea FM Solutions,78255,,
Chorley Borough Council,http://statistics.data.gov.uk/id/local-authority/30UE,Central Support Services,1009,CUST - Customer & Digital,Hire Of Vehicles and Plant,30028,Contrct Hire & Operating Lease,5018,"vehicle hire, 3.5 ton Luton Van with  tail lift  (April 2021 - 31 March 2022)",28/03/2022,0166201,641.86,Revenue,Northgate Vehicle Hire (NW) Ltd,17360,,
Chorley Borough Council,http://statistics.data.gov.uk/id/local-authority/30UE,Economic Development,1096,PLAN - Planning & Development,Exhibitions & Special Events,40158,Miscellaneous Expenses,5034,Red Rose Awards 2022. Chorley Council Supporters package. Joint sponsorship of the campaign (badged as supported by),28/03/2022,0165369,"2,500.00",Revenue,Northpoint Publishing Limited,76265,,
Chorley Borough Council,http://statistics.data.gov.uk/id/local-authority/30UE,Recreation & Sport,1037,GROW - Commercial & Property,Electricity,20013,Energy Costs,5006,1/2 to 28/2/22,21/03/2022,0165980,"1,184.41",Revenue,Npower Commercial Gas,16814,,
Chorley Borough Council,http://statistics.data.gov.uk/id/local-authority/30UE,Business Support,1095,GROW - Commercial & Property,Electricity,20013,Energy Costs,5006,1/2 to 28/2/22,21/03/2022,0165981,"1,198.11",Revenue,Npower Commercial Gas,16814,,
Chorley Borough Council,http://statistics.data.gov.uk/id/local-authority/30UE,Recreation & Sport,1037,GROW - Commercial & Property,Electricity,20013,Energy Costs,5006,1/2 to 28/2/22,21/03/2022,0165982,"1,129.39",Revenue,Npower Commercial Gas,16814,,
Chorley Borough Council,http://statistics.data.gov.uk/id/local-authority/30UE,Business Support,1095,GROW - Commercial & Property,Electricity,20013,Energy Costs,5006,1/2 to 28/2/22,21/03/2022,0165983,"3,811.33",Revenue,Npower Commercial Gas,16814,,
Chorley Borough Council,http://statistics.data.gov.uk/id/local-authority/30UE,Recreation & Sport,1037,GROW - Commercial & Property,Electricity,20013,Energy Costs,5006,1/2 to 28/2/22,21/03/2022,0165984,"5,916.51",Revenue,Npower Commercial Gas,16814,,
Chorley Borough Council,http://statistics.data.gov.uk/id/local-authority/30UE,Central Support Services,1009,GROW - Commercial & Property,Electricity,20013,Energy Costs,5006,1/2 to 28/2/22,21/03/2022,0165985,"1,440.31",Revenue,Npower Commercial Gas,16814,,
Chorley Borough Council,http://statistics.data.gov.uk/id/local-authority/30UE,Central Support Services,1009,GROW - Commercial & Property,Electricity,20013,Energy Costs,5006,1/2 to 28/2/22,21/03/2022,0165986,"3,060.88",Revenue,Npower Commercial Gas,16814,,
Chorley Borough Council,http://statistics.data.gov.uk/id/local-authority/30UE,Central Support Services,1009,GROW - Commercial & Property,Electricity,20013,Energy Costs,5006,1/2 to 28/2/22,21/03/2022,0165987,"2,622.45",Revenue,Npower Commercial Gas,16814,,
Chorley Borough Council,http://statistics.data.gov.uk/id/local-authority/30UE,Business Support,1095,GROW - Commercial & Property,Electricity,20013,Energy Costs,5006,01/01/22 - 31/01/22,28/03/2022,0166349,"1,297.21",Revenue,Npower Commercial Gas,16814,,
Chorley Borough Council,http://statistics.data.gov.uk/id/local-authority/30UE,Open Spaces,1038,GROW - Commercial & Property,Electricity,20013,Energy Costs,5006,01/02/22 - 28/02/22,28/03/2022,0166375,289.96,Revenue,Npower Commercial Gas,16814,,
Chorley Borough Council,http://statistics.data.gov.uk/id/local-authority/30UE,Open Spaces,1038,GROW - Commercial & Property,Electricity,20013,Energy Costs,5006,01/02/22 - 28/02/22,28/03/2022,0166383,"1,494.68",Revenue,Npower Commercial Gas,16814,,
Chorley Borough Council,http://statistics.data.gov.uk/id/local-authority/30UE,Parking Services,1066,GROW - Commercial & Property,Electricity,20013,Energy Costs,5006,01/02/22 - 28/02/22,28/03/2022,0166407,327.26,Revenue,Npower Commercial Gas,16814,,
Chorley Borough Council,http://statistics.data.gov.uk/id/local-authority/30UE,Parking Services,1066,GROW - Commercial & Property,Electricity,20013,Energy Costs,5006,01/02/2022 - 28/02/2022,28/03/2022,0166410,756.52,Revenue,Npower Commercial Gas,16814,,
Chorley Borough Council,http://statistics.data.gov.uk/id/local-authority/30UE,Parking Services,1066,GROW - Commercial & Property,Electricity,20013,Energy Costs,5006,01/02/22 - 28/02/22,28/03/2022,0166411,514.71,Revenue,Npower Commercial Gas,16814,,
Chorley Borough Council,http://statistics.data.gov.uk/id/local-authority/30UE,Business Support,1095,GROW - Commercial & Property,Electricity,20013,Energy Costs,5006,01/02/22 - 28/02/22,28/03/2022,0166414,"1,036.00",Revenue,Npower Commercial Gas,16814,,
Chorley Borough Council,http://statistics.data.gov.uk/id/local-authority/30UE,Homelessness,1075,GROW - Commercial & Property,Electricity,20013,Energy Costs,5006,01/02/22 - 28/02/22,28/03/2022,0166424,314.54,Revenue,Npower Commercial Gas,16814,,
Chorley Borough Council,http://statistics.data.gov.uk/id/local-authority/30UE,Homelessness,1075,GROW - Commercial & Property,Electricity,20013,Energy Costs,5006,01/02/22 - 28/02/22,28/03/2022,0166425,640.91,Revenue,Npower Commercial Gas,16814,,
Chorley Borough Council,http://statistics.data.gov.uk/id/local-authority/30UE,Parking Services,1066,GROW - Commercial & Property,External Contractors,50008,Private Contractors,5042,Provision of Off Street Car Park Cash Collection & Enforcement � final year of contract 01.11.21 to 31.10.22,16/03/2022,0165743,"5,010.55",Revenue,NSL Limited,67253,,
Chorley Borough Council,http://statistics.data.gov.uk/id/local-authority/30UE,Corporate Management,1008,GOVN - Policy & Governance,Consultants` Fees,40077,Services,5027,Chorley Residents and Staff Survey,02/03/2022,0165309,"4,460.00",Revenue,NWA Social & Market Research Limited,20931,,
Chorley Borough Council,http://statistics.data.gov.uk/id/local-authority/30UE,Democratic Represent and  Mgnt,1007,GOVN - Policy & Governance,Member Development Programme,17007,Indirect Employee Expenses,5002,Political Awareness - Member learning session January 2022 (date to be confirmed),02/03/2022,0165174,650.00,Revenue,Nwlaeo,17571,,
Chorley Borough Council,http://statistics.data.gov.uk/id/local-authority/30UE,Central Support Services,1009,CUST - Customer & Digital,Professional Fees,14011,Direct Employee Expenses,5001,Web Benefits Calculator (Software licence annual Subscription 21 Feb 2022 to 2- Feb 2023),09/03/2022,0165632,427.50,Revenue,Otech Limited,17667,,
Chorley Borough Council,http://statistics.data.gov.uk/id/local-authority/30UE,Central Support Services,1009,GOVN - Policy & Governance,Exhibitions & Special Events,40158,Miscellaneous Expenses,5034,Climbing wall for Picnic in the Park.,09/03/2022,0165647,450.00,Revenue,Outdoor Logistics NW,78024,,
Chorley Borough Council,http://statistics.data.gov.uk/id/local-authority/30UE,Service Management & Support,1009,CUST - Customer & Digital,Supplies - Workshop,40246,"Equipment, Furniture & Materia",5023,As per invoice 21088,23/03/2022,0165781,272.70,Revenue,P D M Components,19204,,
Chorley Borough Council,http://statistics.data.gov.uk/id/local-authority/30UE,Planning Policy,1092,EARL - Communities,Operational Employees Salaries,10000,Direct Employee Expenses,5001,Supply of agency staff to work on the Central Lancashire Local Plan,02/03/2022,0165440,"2,403.50",Revenue,Park Avenue Recruitment Ltd,82305,,
Chorley Borough Council,http://statistics.data.gov.uk/id/local-authority/30UE,Planning Policy,1092,EARL - Communities,Operational Employees Salaries,10000,Direct Employee Expenses,5001,Supply of agency staff to work on the Central Lancashire Local Plan,21/03/2022,0165834,"1,518.00",Revenue,Park Avenue Recruitment Ltd,82305,,
Chorley Borough Council,http://statistics.data.gov.uk/id/local-authority/30UE,Planning Policy,1092,EARL - Communities,Operational Employees Salaries,10000,Direct Employee Expenses,5001,Supply of agency staff to work on the Central Lancashire Local Plan,28/03/2022,0166132,667.00,Revenue,Park Avenue Recruitment Ltd,82305,,
Chorley Borough Council,http://statistics.data.gov.uk/id/local-authority/30UE,Planning Policy,1092,EARL - Communities,Operational Employees Salaries,10000,Direct Employee Expenses,5001,Supply of agency staff to work on the Central Lancashire Local Plan,28/03/2022,0166440,"1,104.00",Revenue,Park Avenue Recruitment Ltd,82305,,
Chorley Borough Council,http://statistics.data.gov.uk/id/local-authority/30UE,Planning Policy,1092,EARL - Communities,Operational Employees Salaries,10000,Direct Employee Expenses,5001,Supply of agency staff to work on the Central Lancashire Local Plan,28/03/2022,0166441,"1,288.00",Revenue,Park Avenue Recruitment Ltd,82305,,
Chorley Borough Council,http://statistics.data.gov.uk/id/local-authority/30UE,Capital,Capital,EARL - Communities,Other Capital Grants/Loans,03000,Capital Expenditure,Capital,"2nd Phase of development project (Driving Range), Release of funds - Subject to receiving Planning Permission.",23/03/2022,0165211,"38,862.00",Capital,Parkwood Leisure,82926,,
Chorley Borough Council,http://statistics.data.gov.uk/id/local-authority/30UE,Capital,Capital,EARL - Communities,Other Capital Grants/Loans,03000,Capital Expenditure,Capital,"2nd Phase of development project (Driving Range), Release of funds - Subject to receiving Planning Permission.",23/03/2022,0165212,"1,550.00",Capital,Parkwood Leisure,82926,,
Chorley Borough Council,http://statistics.data.gov.uk/id/local-authority/30UE,Capital,Capital,EARL - Communities,Other Capital Grants/Loans,03000,Capital Expenditure,Capital,"2nd Phase of development project (Driving Range), Release of funds - Subject to receiving Planning Permission.",23/03/2022,0165213,"6,980.00",Capital,Parkwood Leisure,82926,,
Chorley Borough Council,http://statistics.data.gov.uk/id/local-authority/30UE,Capital,Capital,EARL - Communities,Other Capital Grants/Loans,03000,Capital Expenditure,Capital,"2nd Phase of development project (Driving Range), Release of funds - Subject to receiving Planning Permission.",23/03/2022,0165479,"14,000.00",Capital,Parkwood Leisure,82926,,
Chorley Borough Council,http://statistics.data.gov.uk/id/local-authority/30UE,Capital,Capital,EARL - Communities,Other Capital Grants/Loans,03000,Capital Expenditure,Capital,"2nd Phase of development project (Driving Range), Release of funds - Subject to receiving Planning Permission.",21/03/2022,0165965,"60,884.00",Capital,Parkwood Leisure,82926,,
Chorley Borough Council,http://statistics.data.gov.uk/id/local-authority/30UE,Business Support,1095,GROW - Commercial & Property,Cleaning Materials,40019,"Equipment, Furniture & Materia",5023,"X 4 Mini Smart toilet rolls, X 8 Handtowels, X 8 Washing Up Liquid, X 3 Packs Microfibre Cloth Green, X 1 Nitirle Gloves Large",02/03/2022,0165317,277.33,Revenue,Pattersons Holdings (Bristol),77537,,
Chorley Borough Council,http://statistics.data.gov.uk/id/local-authority/30UE,Homelessness,1075,GROW - Commercial & Property,Cleaning Materials,40019,"Equipment, Furniture & Materia",5023,"Quote for cleaning items, Quoted by NAME REDACTED 08.02.22",16/03/2022,0165702,332.16,Revenue,Pattersons Holdings (Bristol),77537,,
Chorley Borough Council,http://statistics.data.gov.uk/id/local-authority/30UE,Business Support,1095,GROW - Commercial & Property,Cleaning Materials,40019,"Equipment, Furniture & Materia",5023,"9 x AE208 Paper towels, 2 x BC040-1 Perfumed toilet cleaner, 5 x AA301 Toilet rolls, 1 x 5 litre BA010-5 multipurpose cleaner",28/03/2022,0165944,307.64,Revenue,Pattersons Holdings (Bristol),77537,,
Chorley Borough Council,http://statistics.data.gov.uk/id/local-authority/30UE,Economic Development,1096,GROW - Commercial & Property,Cleaning Materials,40019,"Equipment, Furniture & Materia",5023,Please supply cleaning products as per email,30/03/2022,0166084,445.72,Revenue,Pattersons Holdings (Bristol),77537,,
Chorley Borough Council,http://statistics.data.gov.uk/id/local-authority/30UE,Central Support Services,1009,GOVN - Policy & Governance,HR Recruitment Expenses,15200,Indirect Employee Expenses,5002,DBS checks for staff,30/03/2022,0165832,166.64,Revenue,Personnel Checks Ltd,81534,,
Chorley Borough Council,http://statistics.data.gov.uk/id/local-authority/30UE,Central Support Services,1009,GOVN - Policy & Governance,HR Recruitment Expenses,15200,Indirect Employee Expenses,5002,Enhanced DBS checks for staff,30/03/2022,0165832,320.00,Revenue,Personnel Checks Ltd,81534,,
Chorley Borough Council,http://statistics.data.gov.uk/id/local-authority/30UE,Development Control,1091,PLAN - Planning & Development,Professional Fees,40063,Services,5027,Planning Enforcement Services 18 April 2021 to March 2022,30/03/2022,0161076,"1,786.00",Revenue,Planning and PACE Solutions Ltd,82083,,
Chorley Borough Council,http://statistics.data.gov.uk/id/local-authority/30UE,Development Control,1091,PLAN - Planning & Development,Professional Fees,40063,Services,5027,Planning Enforcement Services 18 April 2021 to March 2022,30/03/2022,0161924,950.00,Revenue,Planning and PACE Solutions Ltd,82083,,
Chorley Borough Council,http://statistics.data.gov.uk/id/local-authority/30UE,Development Control,1091,PLAN - Planning & Development,Professional Fees,40063,Services,5027,Planning Enforcement Services 18 April 2021 to March 2022,30/03/2022,0161924,13.70,Revenue,Planning and PACE Solutions Ltd,82083,,
Chorley Borough Council,http://statistics.data.gov.uk/id/local-authority/30UE,Development Control,1091,PLAN - Planning & Development,Professional Fees,40063,Services,5027,Planning Enforcement Services April 2021 to March 2022,28/03/2022,0165718,"1,558.00",Revenue,Planning and PACE Solutions Ltd,82083,,
Chorley Borough Council,http://statistics.data.gov.uk/id/local-authority/30UE,Development Control,1091,PLAN - Planning & Development,Professional Fees,40063,Services,5027,Planning Enforcement Services April 2021 to March 2022,28/03/2022,0166038,"1,520.00",Revenue,Planning and PACE Solutions Ltd,82083,,
Chorley Borough Council,http://statistics.data.gov.uk/id/local-authority/30UE,Development Control,1091,PLAN - Planning & Development,Professional Fees,40063,Services,5027,Special Delivery Letter,28/03/2022,0166038,6.85,Revenue,Planning and PACE Solutions Ltd,82083,,
Chorley Borough Council,http://statistics.data.gov.uk/id/local-authority/30UE,Development Control,1091,PLAN - Planning & Development,Professional Fees,40063,Services,5027,Planning Enforcement Services April 2021 to March 2022,28/03/2022,0166039,"1,197.00",Revenue,Planning and PACE Solutions Ltd,82083,,
Chorley Borough Council,http://statistics.data.gov.uk/id/local-authority/30UE,Development Control,1091,PLAN - Planning & Development,Professional Fees,40063,Services,5027,Planning Enforcement Services 18 April 2021 to March 2022,30/03/2022,0166092,"1,254.00",Revenue,Planning and PACE Solutions Ltd,82083,,
Chorley Borough Council,http://statistics.data.gov.uk/id/local-authority/30UE,Development Control,1091,PLAN - Planning & Development,Professional Fees,40063,Services,5027,Planning Enforcement Services 18 April 2021 to March 2022,30/03/2022,0166092,61.65,Revenue,Planning and PACE Solutions Ltd,82083,,
Chorley Borough Council,http://statistics.data.gov.uk/id/local-authority/30UE,Development Control,1091,PLAN - Planning & Development,Professional Fees,40063,Services,5027,Planning Enforcement Services April 2021 to March 2022,28/03/2022,0166096,"1,197.00",Revenue,Planning and PACE Solutions Ltd,82083,,
Chorley Borough Council,http://statistics.data.gov.uk/id/local-authority/30UE,Development Control,1091,PLAN - Planning & Development,Professional Fees,40063,Services,5027,Planning Enforcement Services April 2021 to March 2022,28/03/2022,0166097,"1,159.00",Revenue,Planning and PACE Solutions Ltd,82083,,
Chorley Borough Council,http://statistics.data.gov.uk/id/local-authority/30UE,Development Control,1091,PLAN - Planning & Development,Professional Fees,40063,Services,5027,Planning Enforcement Services April 2021 to March 2022,28/03/2022,0166098,874.00,Revenue,Planning and PACE Solutions Ltd,82083,,
Chorley Borough Council,http://statistics.data.gov.uk/id/local-authority/30UE,Development Control,1091,PLAN - Planning & Development,Professional Fees,40063,Services,5027,Planning Enforcement Services April 2021 to March 2022,28/03/2022,0166099,"2,399.90",Revenue,Planning and PACE Solutions Ltd,82083,,
Chorley Borough Council,http://statistics.data.gov.uk/id/local-authority/30UE,Development Control,1091,PLAN - Planning & Development,Professional Fees,40063,Services,5027,,28/03/2022,0166099,13.70,Revenue,Planning and PACE Solutions Ltd,82083,,
Chorley Borough Council,http://statistics.data.gov.uk/id/local-authority/30UE,Development Control,1091,PLAN - Planning & Development,Professional Fees,40063,Services,5027,Planning Enforcement Services April 2021 to March 2022,28/03/2022,0166100,"1,634.00",Revenue,Planning and PACE Solutions Ltd,82083,,
Chorley Borough Council,http://statistics.data.gov.uk/id/local-authority/30UE,Development Control,1091,PLAN - Planning & Development,Professional Fees,40063,Services,5027,,28/03/2022,0166100,13.70,Revenue,Planning and PACE Solutions Ltd,82083,,
Chorley Borough Council,http://statistics.data.gov.uk/id/local-authority/30UE,Development Control,1091,PLAN - Planning & Development,Planning Application Fees,60149,Customer & Client Receipts,5064,Crow Trees House,28/03/2022,0165379,"1,386.00",Revenue,Planning Portal Ltd,77808,,
Chorley Borough Council,http://statistics.data.gov.uk/id/local-authority/30UE,Development Control,1091,PLAN - Planning & Development,Planning Application Fees,60149,Customer & Client Receipts,5064,REDACTED,28/03/2022,0166532,462.00,Revenue,Planning Portal Ltd,77808,,
Chorley Borough Council,http://statistics.data.gov.uk/id/local-authority/30UE,Precepts and Collection Fund,Precepts,GOVN - Policy & Governance,LPA Precept,02010,Precepts & Collection Fund,Precept,Police & Crime Commissioner CTax Precept 2021/22,30/03/2022,0166531,"849,159.00",Revenue,Police & Crime Commissioner,17438,,
Chorley Borough Council,http://statistics.data.gov.uk/id/local-authority/30UE,Central Support Services,1009,GROW - Commercial & Property,General Repairs - Reactive,20004,Repairs Maintenance & Alts,5005,"Brinscall Baths, Supply of works to replace butterfly valve (for last skimmer, in cage) including: 4'' butterfly valve, 4'' pipe, flanges",02/03/2022,0165452,777.15,Revenue,Pool Technical Services Ltd,81000,,
Chorley Borough Council,http://statistics.data.gov.uk/id/local-authority/30UE,Central Support Services,1009,GROW - Commercial & Property,General Repairs - Reactive,20004,Repairs Maintenance & Alts,5005,"Brinscall Baths, Supply of works to repair leak on pipework on bend as it passes through the wall after the heat exchanger",02/03/2022,0165471,"1,046.80",Revenue,Pool Technical Services Ltd,81000,,
Chorley Borough Council,http://statistics.data.gov.uk/id/local-authority/30UE,Central Support Services,1009,GROW - Commercial & Property,General Repairs - Reactive,20004,Repairs Maintenance & Alts,5005,"All Seasons, Callout (Standard, Contract) Re: Flow rate monitors not work (ORDER14265), Poddymeters stripped and cleaned",16/03/2022,0165474,286.50,Revenue,Pool Technical Services Ltd,81000,,
Chorley Borough Council,http://statistics.data.gov.uk/id/local-authority/30UE,Central Support Services,1009,GROW - Commercial & Property,General Repairs - Reactive,20004,Repairs Maintenance & Alts,5005,"Brinscall, Callout (Standard, Contract) Re: Controller issues, Investigate ''biofilm build-up'' in controller (ORDER14139)",16/03/2022,0165475,618.47,Revenue,Pool Technical Services Ltd,81000,,
Chorley Borough Council,http://statistics.data.gov.uk/id/local-authority/30UE,Central Support Services,1009,GROW - Commercial & Property,General Repairs - Reactive,20004,Repairs Maintenance & Alts,5005,5553Brinscall BathsTF14442,28/03/2022,0166250,285.00,Revenue,Pool Technical Services Ltd,81000,,
Chorley Borough Council,http://statistics.data.gov.uk/id/local-authority/30UE,Capital,Capital,GROW - Commercial & Property,Other Capital Related Fees,03024,Capital Expenditure,Capital,"Market Trader Magnetic Signs, Design, Manufacture and Supply, Digitally printed individual trader magnets, gloss over laminate",16/03/2022,0165685,519.26,Capital,Poppy Signs Ltd,21898,,
Chorley Borough Council,http://statistics.data.gov.uk/id/local-authority/30UE,Central Support Services,1009,GOVN - Policy & Governance,Furniture - Purchase,40012,"Equipment, Furniture & Materia",5023,"Positive Plus Medium Back No Neck with arms Black Chair with delivery, setup and packaging recycling.",02/03/2022,0163464,824.36,Revenue,Posturite UK Ltd,18538,,
Chorley Borough Council,http://statistics.data.gov.uk/id/local-authority/30UE,Central Support Services,1009,GROW - Commercial & Property,Planned Maintenance,20006,Repairs Maintenance & Alts,5005,DEC's for Astley Hall,30/03/2022,0166453,150.00,Revenue,Prashant Vara T/A Legency,76869,,
Chorley Borough Council,http://statistics.data.gov.uk/id/local-authority/30UE,Central Support Services,1009,GROW - Commercial & Property,Planned Maintenance,20006,Repairs Maintenance & Alts,5005,DEC's for Town Hall,30/03/2022,0166453,150.00,Revenue,Prashant Vara T/A Legency,76869,,
Chorley Borough Council,http://statistics.data.gov.uk/id/local-authority/30UE,Central Support Services,1009,GROW - Commercial & Property,Planned Maintenance,20006,Repairs Maintenance & Alts,5005,DEC's for Union St,30/03/2022,0166453,150.00,Revenue,Prashant Vara T/A Legency,76869,,
Chorley Borough Council,http://statistics.data.gov.uk/id/local-authority/30UE,Central Support Services,1009,PLAN - Planning & Development,Photocopier Consumables,40049,"Printing, Stationery & General",5026,"Evolution Everyday A4 80gsm, Box 2500",28/03/2022,0165234,743.00,Revenue,Premier Paper Group,54451,,
Chorley Borough Council,http://statistics.data.gov.uk/id/local-authority/30UE,Central Support Services,1009,Chief Executive,Photocopier Consumables,40049,"Printing, Stationery & General",5026,"Evolution Everyday A4 80gsm, Box 2500",28/03/2022,0166205,743.00,Revenue,Premier Paper Group,54451,,
Chorley Borough Council,http://statistics.data.gov.uk/id/local-authority/30UE,Other Short Term Creditors,,GOVN - Policy & Governance,General Balances,00100,Balance Sheet,Balance,Deductions from Salary,23/03/2022,0166054,"3,749.00",Revenue,PRUDENTIAL,18178,,
Chorley Borough Council,http://statistics.data.gov.uk/id/local-authority/30UE,Interest Payable on Debt,1020,GOVN - Policy & Governance,Interest Payable,09009,Interest Payments,5067,interest LN 165470,30/03/2022,0165698,"78,251.25",Revenue,Public Works Loans Board,21480,,
Chorley Borough Council,http://statistics.data.gov.uk/id/local-authority/30UE,Homelessness,1075,EARL - Communities,Bed and Breakfast Accommodation,40232,Miscellaneous Expenses,5034,"2x Block booked rooms for February minus 18/02-20/02, 2x Additional rooms booked for rough sleepers for February",21/03/2022,0165962,"5,000.00",Revenue,Purple Roomz,84223,,
Chorley Borough Council,http://statistics.data.gov.uk/id/local-authority/30UE,Central Support Services,1009,CUST - Customer & Digital,Computer Software-Purchase,40100,Communication and Computing,5028,"iQGrants Wizard, Licence, maintenance & support to 31 March 2023",28/03/2022,0166136,807.89,Revenue,Qtech Applications Ltd,17271,,
Chorley Borough Council,http://statistics.data.gov.uk/id/local-authority/30UE,Culture & Heritage,1036,GOVN - Policy & Governance,Arts Development Initiatives,40187,Miscellaneous Expenses,5034,Projector for illuminated event.,28/03/2022,0165470,269.99,Revenue,Rebecca Chesney,78286,,
Chorley Borough Council,http://statistics.data.gov.uk/id/local-authority/30UE,Culture & Heritage,1036,GOVN - Policy & Governance,General Subscriptions,40146,Grants and Subscriptions,5031,Artist Fee,21/03/2022,0165960,500.00,Revenue,Rebecca Chesney,78286,,
